Date,Category,Description,Amount
02/01/2015,Automotive Fuel                    ,BP NORTHOLT PARK SF CONNE NORTHOLT ,7.04
02/01/2015,Travel - Air/Rail/Road             ,LONDON MIDLAND TIC       MILTON KEY,122.20
02/01/2015,Travel - Air/Rail/Road             ,LONDON MIDLAND           METEOR PAR,10.00
02/01/2015,Travel - Air/Rail/Road             ,OYSTER ISSUE WEB         0343 22212,15.00
02/01/2015,Mail and Courier Services          ,POST OFFICE COUNTER      WORCESTER ,14.30
03/01/2015,Travel - Air/Rail/Road             ,TICKETOFFICESALE         SWTRAINS H,7.00
04/01/2015,Miscellaneous Industrial/Commercial,MAILCHIMP                MAILCHIMP.,250.53
04/01/2015,Miscellaneous Industrial/Commercial,Amazon web services      aws.amazon,25.45
04/01/2015,Computer Equipment & Services      ,THAWTE                   877-438-87,173.03
04/01/2015,Computer Equipment & Services      ,THAWTE                   877-438-87,173.03
04/01/2015,Hotels and Accommodation           ,BALFOUR                  LONDON    ,20.70
04/01/2015,Travel - Air/Rail/Road             ,EC MAINLINE CO T/O       DARLNGTN 7,44.00
05/01/2015,Restaurants and Bars               ,DENISE'S RESTAURAN       LONDON    ,36.15
05/01/2015,Travel - Air/Rail/Road             ,SELFSERVE TICKET         SWTRAINSST,20.00
05/01/2015,Medical Supplies and Services      ,BOOTS 1521               LONDON    ,2.24
05/01/2015,Restaurants and Bars               ,PRET A MANGER            HIGH HOLBU,4.48
05/01/2015,Restaurants and Bars               ,WAGAMAMAAPP              LONDON    ,20.25
05/01/2015,Travel - Air/Rail/Road             ,LUL TICKET MACHINE       PADDINGTON,4.80
05/01/2015,Travel - Air/Rail/Road             ,TSGN                     HUNTINGDON,124.10
05/01/2015,Travel - Air/Rail/Road             ,APCOA FCC                HUNTINGDON,27.50
05/01/2015,Travel - Air/Rail/Road             ,LONDON MIDLAND           METEOR PAR,6.50
05/01/2015,Travel - Air/Rail/Road             ,WEST COAST TRAINS        STAFFORD 8,310.60
05/01/2015,Travel - Air/Rail/Road             ,WEST COAST TRAINS        STAFFORD 1,8.00
05/01/2015,Restaurants and Bars               ,THISTLE BLOOMSBURY PAR   LONDON    ,18.51
05/01/2015,Travel - Air/Rail/Road             ,LONDON MIDLAND           METEOR PAR,25.50
05/01/2015,Computer Equipment & Services      ,SILICON ALLEY            MALDON    ,20.00
05/01/2015,Restaurants and Bars               ,BROWNS CAMBRIDGE         CAMBRIDGE ,28.65
05/01/2015,Restaurants and Bars               ,BROWNS CAMBRIDGE         CAMBRIDGE ,28.65
05/01/2015,Travel - Air/Rail/Road             ,WESTFIELD E20            LONDON  E2,6.00
05/01/2015,Travel - Air/Rail/Road             ,TFGM METROLINK           0161 20520,6.10
05/01/2015,Miscellaneous Industrial/Commercial,ALL STAR LANES HOLBORN   LONDON    ,19.00
05/01/2015,Travel - Air/Rail/Road             ,TAXI FARE BY VERIFONE    0333666100,14.52
05/01/2015,Travel - Air/Rail/Road             ,NCP LIMITED P&D          NEWPORT   ,23.10
05/01/2015,Travel - Air/Rail/Road             ,NEWTON-LE-WILLOWS STN    NEWTON LE ,7.90
05/01/2015,Catering and Catering Supplies     ,CAFE RITAZZA             SALISBURY ,6.35
05/01/2015,Restaurants and Bars               ,CARLUCCIOS LTD           BRUNSWICK ,26.90
05/01/2015,Restaurants and Bars               ,EAGLE                    CAMBRIDGE ,16.40
05/01/2015,Travel - Air/Rail/Road             ,EC MAINLINE CO T/O       RETFORD 65,22.50
05/01/2015,Restaurants and Bars               ,DENISE'S RESTAURAN       LONDON    ,30.75
05/01/2015,Restaurants and Bars               ,EAGLE                    CAMBRIDGE ,26.15
05/01/2015,Hotels and Accommodation           ,HILTON                   CAMBRIDGE ,35.75
05/01/2015,Restaurants and Bars               ,PRET A MANGER            HIGH HOLBU,6.85
05/01/2015,Travel - Air/Rail/Road             ,TFL.GOV.UK/CP            TFL TRAVEL,1.50
05/01/2015,Restaurants and Bars               ,CARLUCCIOS LTD           BRUNSWICK ,17.40
05/01/2015,Restaurants and Bars               ,CARLUCCIOS LTD           BRUNSWICK ,26.05
05/01/2015,Restaurants and Bars               ,PIZZA EXPRESS 0121       COPTIC STR,24.10
05/01/2015,Financial Services                 ,INSUREANDGO  19321696    0844888278,21.41
05/01/2015,Travel - Air/Rail/Road             ,APCOA CONNECT - FGW      UXBRIDGE  ,4.20
05/01/2015,Hotels and Accommodation           ,PARK INN                 NORTHAMPTO,23.85
05/01/2015,Mail and Courier Services          ,POST OFFICE COUNTER      NOTTINGHAM,28.60
05/01/2015,Restaurants and Bars               ,MUSEUM TAVERN            BLOOMSBURY,10.69
05/01/2015,Hotels and Accommodation           ,BEST WESTERN MONKBAR HTL YORK      ,33.45
05/01/2015,Restaurants and Bars               ,CARLUCCIOS LTD           BRUNSWICK ,25.50
05/01/2015,Travel - Air/Rail/Road             ,EUROTAXIS LTD            BRISTOL   ,19.80
05/01/2015,Restaurants and Bars               ,MALIHA                   TAUNTON   ,19.10
05/01/2015,Travel - Air/Rail/Road             ,APCOA NWR LIVERPOOL LI   LIVERPOOL ,13.00
05/01/2015,Travel - Air/Rail/Road             ,WEST COAST TRAINS        SOLIHULL 1,8.00
05/01/2015,Restaurants and Bars               ,CAFE ISTANBUL            MANCHESTER,24.90
05/01/2015,Hotels and Accommodation           ,BEST WESTERN MONKBAR HTL YORK      ,29.90
05/01/2015,Travel - Air/Rail/Road             ,"SPITAL STN T/O           WIRRAL, ME",21.20
05/01/2015,Travel - Air/Rail/Road             ,NEW SOUTHERN RAILW       SEAFORD 40,4.20
05/01/2015,Restaurants and Bars               ,CURRY GARDEN             CAMBRIDGE ,25.45
05/01/2015,General Retail and Wholesale       ,TESCO STORES 3474        LONDON    ,4.30
05/01/2015,General Retail and Wholesale       ,SAINSBURYS S/MKTS        HOLBORN   ,3.00
05/01/2015,General Retail and Wholesale       ,SAINSBURYS               HOLBORN   ,1.25
05/01/2015,Restaurants and Bars               ,COSMOBA RESTAURANT       LONDON    ,20.00
05/01/2015,Catering and Catering Supplies     ,FOOD STANDARDS AGE       LONDON  WC,1.55
05/01/2015,Restaurants and Bars               ,PIZZA EXPRESS            S'HAMPTON ,17.20
05/01/2015,Restaurants and Bars               ,COSTA COFFEE             LONDON WC1,3.50
05/01/2015,Restaurants and Bars               ,COSTA COFFEE             NEWARK    ,2.95
05/01/2015,Restaurants and Bars               ,PRET A MANGER            HIGH HOLBU,7.15
05/01/2015,Travel - Air/Rail/Road             ,ECML NEWCASTLE PARKING   NEWCASTLE ,7.00
05/01/2015,Restaurants and Bars               ,PIZZA EXPRESS            S'HAMPTON ,9.95
05/01/2015,Statutory Bodies                   ,BATH&NE SOMERSET CNCL    515841    ,37.50
05/01/2015,Restaurants and Bars               ,TANDIS RESTAURANT        LONDON  NW,25.90
05/01/2015,Travel - Air/Rail/Road             ,TFL.GOV.UK/CP            TFL TRAVEL,3.00
05/01/2015,Travel - Air/Rail/Road             ,RINGGO                   CHILTERN  ,14.20
05/01/2015,Restaurants and Bars               ,PRET A MANGER            HIGH HOLBU,21.37
05/01/2015,Restaurants and Bars               ,IRAN RESTAURANT LONDON   LONDON  W1,15.00
05/01/2015,Restaurants and Bars               ,EAT                      LONDON  WC,7.40
05/01/2015,Travel - Air/Rail/Road             ,TICKETOFFICESALE         SWTRAINS C,16.50
05/01/2015,Travel - Air/Rail/Road             ,FCC CONNECT              MIDDLESEX ,6.72
05/01/2015,Restaurants and Bars               ,CARLUCCIOS LTD           BRUNSWICK ,14.10
05/01/2015,Travel - Air/Rail/Road             ,WEST COAST TRAINS        RUGBY 1087,5.00
05/01/2015,General Retail and Wholesale       ,SAINSBURYS               HOLBORN   ,3.50
05/01/2015,Restaurants and Bars               ,MW EAT LTD (FS)          FS LONDON ,21.60
05/01/2015,Travel - Air/Rail/Road             ,LUL TICKET OFFICE.       GREEN PARK,50.00
06/01/2015,Travel - Air/Rail/Road             ,NCP LIMITED              NOTTM MOUN,8.20
06/01/2015,Automotive Fuel                    ,SAINSBURYS PETROL        BYST.EDMUN,13.38
06/01/2015,Restaurants and Bars               ,THE MEMSAAB              NOTTINGHAM,34.00
06/01/2015,Restaurants and Bars               ,THE BRAZZ                TAUNTON   ,22.32
06/01/2015,Restaurants and Bars               ,KONAKI RESTAURANT        LONDON WC1,36.80
06/01/2015,Restaurants and Bars               ,LA BISTRO SAVOIR FAIRE   LONDON    ,26.70
06/01/2015,Hotels and Accommodation           ,MACDONALD HOTELS MANCH   M'STER M1 ,15.00
06/01/2015,Travel - Air/Rail/Road             ,SELFSERVE TICKET         SWTRAINSST,20.00
06/01/2015,Travel - Air/Rail/Road             ,PARKINGEYE LTD           CHORLEY   ,8.20
06/01/2015,Travel - Air/Rail/Road             ,LUL TICKET MACHINE       RUSSELL SQ,30.00
06/01/2015,Travel - Air/Rail/Road             ,APCOA PARKING (UK) LTD   UXBRIDGE  ,10.20
06/01/2015,Hotels and Accommodation           ,MACDONALD HOTELS MANCH   M'STER M1 ,15.00
06/01/2015,Professional Services              ,UPT - EMT NOTTINGHAM RAI NOTTINGHAM,7.00
06/01/2015,Medical Supplies and Services      ,BOOTS 1521               LONDON    ,4.44
06/01/2015,Restaurants and Bars               ,MCDONALDS REST           HOLBORN   ,3.89
06/01/2015,Travel - Air/Rail/Road             ,LUL TICKET MACHINE       HOLBORN   ,4.80
06/01/2015,Automotive Fuel                    ,RSS TAUNTON WEST         TAUNTON   ,12.80
06/01/2015,Automotive Fuel                    ,RSS TAUNTON WEST         TAUNTON   ,6.76
06/01/2015,Restaurants and Bars               ,THISTLE KINGSLEY F&B     LONDON    ,21.45
06/01/2015,Restaurants and Bars               ,THISTLE KINGSLEY F&B     LONDON    ,21.45
06/01/2015,Travel - Air/Rail/Road             ,ECML RETFORD PARKING     RETFORD   ,7.50
06/01/2015,Restaurants and Bars               ,ALIMENTUM                CAMBRIDGE ,38.33
06/01/2015,Restaurants and Bars               ,THISTLE KINGSLEY F&B     LONDON    ,21.00
06/01/2015,Travel - Air/Rail/Road             ,MILTON KEYNES DEV        0190861969,4.28
06/01/2015,Restaurants and Bars               ,ALIMENTUM                CAMBRIDGE ,38.33
06/01/2015,Travel - Air/Rail/Road             ,APCOA CONNECT - FGW      UXBRIDGE  ,5.80
06/01/2015,Restaurants and Bars               ,IL FORNELLO              LONDON WC1,31.48
06/01/2015,Travel - Air/Rail/Road             ,Q PARK BIRMINGHAM BRINDLE BIRMINGHA,10.00
06/01/2015,Restaurants and Bars               ,ALIMENTUM                CAMBRIDGE ,38.33
06/01/2015,Hotels and Accommodation           ,THE ROYAL YORK HOTEL     YORK      ,8.00
06/01/2015,Travel - Air/Rail/Road             ,ARRIVA TRAINS WALE       BARRY     ,5.00
06/01/2015,Travel - Air/Rail/Road             ,WEST COAST TRAINS        STAFFORD 1,8.00
06/01/2015,Travel - Air/Rail/Road             ,FRENCHGATE SHOPPING PKNG DONCASTER ,11.00
06/01/2015,Travel - Air/Rail/Road             ,LONDON OVERGROUND-       HARROW 143,30.00
06/01/2015,General Retail and Wholesale       ,TESCO STORES 3269        BIRMINGHAM,2.15
06/01/2015,General Retail and Wholesale       ,TESCO STORES 3269        BIRMINGHAM,2.72
06/01/2015,Restaurants and Bars               ,THE ORIENTAL             BIRMINGHAM,34.81
06/01/2015,Restaurants and Bars               ,KONAKI RESTAURANT        LONDON WC1,36.80
06/01/2015,Travel - Air/Rail/Road             ,C2C - CHALKWELL          WESTCLIF 7,15.20
06/01/2015,Restaurants and Bars               ,RUSTIQUE - CASTLEGATE    YORK      ,17.40
06/01/2015,Restaurants and Bars               ,ALIMENTUM                CAMBRIDGE ,38.33
06/01/2015,Travel - Air/Rail/Road             ,M6 TOLL                  TOLL CHARG,5.50
06/01/2015,Travel - Air/Rail/Road             ,LONDON MIDLAND           BRMNGHAM 3,16.20
06/01/2015,Restaurants and Bars               ,KONAKI RESTAURANT        LONDON WC1,36.80
06/01/2015,Restaurants and Bars               ,ALIMENTUM                CAMBRIDGE ,38.33
06/01/2015,Restaurants and Bars               ,ALIMENTUM                CAMBRIDGE ,38.33
06/01/2015,Restaurants and Bars               ,ALIMENTUM                CAMBRIDGE ,38.33
06/01/2015,Travel - Air/Rail/Road             ,EAST MIDLANDS TRAI       SHEFIELD 9,19.00
06/01/2015,Travel - Air/Rail/Road             ,Q PARK SHEFFIELD STATION SHEFFIELD ,14.30
06/01/2015,Travel - Air/Rail/Road             ,A WILMSLOW TAXI SERVICE  WILMSLOW  ,5.90
06/01/2015,Travel - Air/Rail/Road             ,NORTHERN RAIL LTD-       MANCHESTER,5.30
06/01/2015,Travel - Air/Rail/Road             ,LIVERPOOL LIME STREET    LIVERPOOL ,17.60
06/01/2015,Travel - Air/Rail/Road             ,APCOA NWR LIVERPOOL LI   LIVERPOOL ,13.00
06/01/2015,Restaurants and Bars               ,ALIMENTUM                CAMBRIDGE ,38.33
06/01/2015,Restaurants and Bars               ,ALIMENTUM                CAMBRIDGE ,38.33
06/01/2015,Travel - Air/Rail/Road             ,NCP LIMITED              BHAM ROYAL,18.30
06/01/2015,Travel - Air/Rail/Road             ,METEOR CONNECT           HOUNSLOW  ,4.80
06/01/2015,Travel - Air/Rail/Road             ,NCP LIMITED              NOTTM MOUN,15.38
06/01/2015,Travel - Air/Rail/Road             ,LONDON & SOUTH EAS       BEXLEYHEAT,11.00
06/01/2015,Travel - Air/Rail/Road             ,NCP LIMITED P&D          LONDON    ,5.00
06/01/2015,Travel - Air/Rail/Road             ,LUL TICKET MACHINE       HOLBORN   ,50.00
06/01/2015,Restaurants and Bars               ,THISTLE BIRMINGHAM CIT   BIRMINGHAM,19.50
06/01/2015,Hotels and Accommodation           ,THE ROYAL YORK HOTEL     YORK      ,37.60
06/01/2015,Restaurants and Bars               ,SAN CARLO                BIRMINGHAM,24.38
06/01/2015,Hotels and Accommodation           ,HILTON                   YORK      ,40.00
06/01/2015,Restaurants and Bars               ,THISTLE BIRMINGHAM CIT   BIRMINGHAM,19.70
06/01/2015,Travel - Air/Rail/Road             ,TFGM METROLINK           0161 20520,4.10
06/01/2015,Travel - Air/Rail/Road             ,DAISY HILL STN TO        BOLTON    ,7.80
06/01/2015,Restaurants and Bars               ,THISTLE BIRMINGHAM CIT   BIRMINGHAM,22.00
06/01/2015,Restaurants and Bars               ,PIZZA EXPRESS            S'HAMPTON ,25.90
06/01/2015,Restaurants and Bars               ,PIZZA EXPRESS            S'HAMPTON ,15.40
06/01/2015,Travel - Air/Rail/Road             ,RINGGO                   CHILTERN  ,14.00
06/01/2015,Restaurants and Bars               ,PIZZA EXPRESS            S'HAMPTON ,15.35
06/01/2015,Hotels and Accommodation           ,WHITE HALL HOTEL         GRANGEHOTE,15.45
06/01/2015,Restaurants and Bars               ,EAT                      LONDON  WC,6.00
06/01/2015,Restaurants and Bars               ,PIZZA EXPRESS            S'HAMPTON ,16.00
06/01/2015,Automotive Fuel                    ,FRANKLEY NORTH MWSA      BIRMINGHAM,23.10
06/01/2015,Hotels and Accommodation           ,MILLENNIUM               BIRMINGHAM,12.00
06/01/2015,Hotels and Accommodation           ,MACDONALD HOTELS MANCH   M'STER M1 ,26.75
06/01/2015,Travel - Air/Rail/Road             ,FIRST/KEOLIS TRANS       MANCHSTR 9,19.30
06/01/2015,Travel - Air/Rail/Road             ,NORTHERN RAIL            NEWTON-LE-,8.40
06/01/2015,Travel - Air/Rail/Road             ,ECML YORK PARKING        YORK      ,15.00
06/01/2015,Restaurants and Bars               ,ALIMENTUM                CAMBRIDGE ,38.33
06/01/2015,Restaurants and Bars               ,LA VECCHIA RESTAURANT    YORK      ,21.44
06/01/2015,Restaurants and Bars               ,LA BISTRO SAVOIR FAIRE   LONDON    ,26.70
06/01/2015,Restaurants and Bars               ,ALIMENTUM                CAMBRIDGE ,38.33
06/01/2015,Travel - Air/Rail/Road             ,TSGN                     BEDFORD   ,47.00
06/01/2015,Hotels and Accommodation           ,MARRIOTT                 YORK      ,73.50
06/01/2015,Restaurants and Bars               ,PIZZA EXPRESS            S'HAMPTON ,27.00
06/01/2015,Catering and Catering Supplies     ,WEST COAST TRAINS LTD    B'HAM B5 4,1.95
06/01/2015,General Retail and Wholesale       ,E H BOOTH & CO LTD       PENRITH   ,9.61
06/01/2015,Travel - Air/Rail/Road             ,WEST COAST TRAINS        CUMBRIA 21,8.00
06/01/2015,Restaurants and Bars               ,LA VECCHIA SCUOLA        YORK YO1  ,21.44
06/01/2015,Restaurants and Bars               ,ALIMENTUM                CAMBRIDGE ,20.50
06/01/2015,Travel - Air/Rail/Road             ,PARBOLD STN TO           PARBOLD   ,8.70
06/01/2015,Hotels and Accommodation           ,THE ROYAL YORK HOTEL     YORK      ,8.00
06/01/2015,Restaurants and Bars               ,AKBAR BALTI (YORK) LTD   YORK      ,22.50
06/01/2015,Restaurants and Bars               ,THE BRAZZ                TAUNTON   ,22.32
06/01/2015,Travel - Air/Rail/Road             ,NORTHERN RAIL LTD-       MANCHESTE9,17.15
06/01/2015,Restaurants and Bars               ,THE COSY CLUB            BRISTOL   ,15.45
06/01/2015,Restaurants and Bars               ,THE BRAZZ                TAUNTON   ,22.32
06/01/2015,Restaurants and Bars               ,THE COSY CLUB            BRISTOL   ,21.65
06/01/2015,Restaurants and Bars               ,SAN CARLO                BIRMINGHAM,33.68
06/01/2015,Restaurants and Bars               ,THE BRAZZ                TAUNTON   ,22.32
06/01/2015,Automotive Fuel                    ,BP SNAX 24 DALESIDE 834  NOTTINGHAM,23.39
06/01/2015,Travel - Air/Rail/Road             ,LONDON MIDLAND           METEOR PAR,10.00
06/01/2015,Travel - Air/Rail/Road             ,NCP LIMITED              NOTTM MOUN,8.20
06/01/2015,Restaurants and Bars               ,PICCOLINO                BIRMINGHAM,27.00
06/01/2015,Travel - Air/Rail/Road             ,NCP LIMITED              NOTTM MOUN,15.38
06/01/2015,Restaurants and Bars               ,GREAT NEPALESE           LONDON NW1,17.70
06/01/2015,Automotive Fuel                    ,W M MORRISON             UP HATHERL,22.21
06/01/2015,Travel - Air/Rail/Road             ,NCP LIMITED              NOTTM MOUN,8.20
06/01/2015,Restaurants and Bars               ,IL FORNELLO              LONDON WC1,31.48
06/01/2015,Restaurants and Bars               ,ALIMENTUM                CAMBRIDGE ,38.33
06/01/2015,Hotels and Accommodation           ,MILLENNIUM               BIRMINGHAM,22.55
06/01/2015,Professional Services              ,UPT - EMT NOTTINGHAM RAI NOTTINGHAM,7.00
06/01/2015,Restaurants and Bars               ,FRIEND AT HAND           LONDON    ,11.29
06/01/2015,Hotels and Accommodation           ,HILTON                   YORK      ,54.00
06/01/2015,Hotels and Accommodation           ,THE ROYAL YORK HOTEL     YORK      ,6.00
06/01/2015,Restaurants and Bars               ,RUSTIQUE - CASTLEGATE    YORK      ,19.40
06/01/2015,Travel - Air/Rail/Road             ,CONTRACTOR LEEDS RP      LEEDS     ,21.40
06/01/2015,Restaurants and Bars               ,ALL BAR ONE KINGSW       LONDON  WC,22.25
06/01/2015,Restaurants and Bars               ,PICCOLINO                BIRMINGHAM,27.00
06/01/2015,Restaurants and Bars               ,NATRAJ 123               TAUNTON   ,17.60
06/01/2015,Restaurants and Bars               ,THE BRAZZ                TAUNTON   ,22.32
06/01/2015,Travel - Air/Rail/Road             ,VERUSPARKBYPHONE         SOUTH WEST,14.10
06/01/2015,Travel - Air/Rail/Road             ,BRISTOL STN              CAR PARK  ,7.60
06/01/2015,Restaurants and Bars               ,ALIMENTUM                CAMBRIDGE ,38.33
06/01/2015,Travel - Air/Rail/Road             ,M6 TOLL                  TOLL CHARG,5.50
06/01/2015,Travel - Air/Rail/Road             ,METEOR PARKING LTD       0845603619,8.00
06/01/2015,Travel - Air/Rail/Road             ,SELFSERVE TICKET         NORBITON  ,10.00
06/01/2015,Travel - Air/Rail/Road             ,LONDON MIDLAND ONB       BIRMINGHAM,37.70
06/01/2015,Restaurants and Bars               ,THE BRAZZ                TAUNTON   ,22.32
06/01/2015,Travel - Air/Rail/Road             ,THE CHILTERN RAILW       SOLIHULL 4,7.00
06/01/2015,Restaurants and Bars               ,KONAKI RESTAURANT        LONDON WC1,36.80
06/01/2015,Automotive Fuel                    ,BP ESSEX GARAGE          MARYPORT C,29.81
06/01/2015,Travel - Air/Rail/Road             ,NCP LIMITED              MARKET PLA,18.00
06/01/2015,Restaurants and Bars               ,COSTA COFFEE             YORK      ,3.85
06/01/2015,Restaurants and Bars               ,LA VECCHIA RESTAURANT    YORK      ,21.44
06/01/2015,Restaurants and Bars               ,RUSTIQUE - CASTLEGATE    YORK      ,19.40
06/01/2015,Restaurants and Bars               ,LA VECCHIA RESTAURANT    YORK      ,21.44
06/01/2015,Automotive Fuel                    ,PJ NICHOLLS LTD          TEWKESBURY,10.37
06/01/2015,Restaurants and Bars               ,SHANGHAI SHANGHAI        NOTTINGHAM,18.30
06/01/2015,Restaurants and Bars               ,SHANGHAI SHANGHAI        NOTTINGHAM,18.30
06/01/2015,Restaurants and Bars               ,KONAKI RESTAURANT        LONDON WC1,36.80
06/01/2015,Travel - Air/Rail/Road             ,BRISTOL STN              CAR PARK  ,15.20
06/01/2015,Restaurants and Bars               ,DOMINOS PIZZA HARLOW     HARLOW    ,16.97
06/01/2015,Automotive Fuel                    ,SAINSBURYS PETROL        BATH      ,10.44
06/01/2015,Travel - Air/Rail/Road             ,CARPARK MACHINE          SWTRAINS F,8.00
06/01/2015,Travel - Air/Rail/Road             ,SELFSERVE TICKET         SWTRAINS F,38.70
06/01/2015,Restaurants and Bars               ,KONAKI RESTAURANT        LONDON WC1,36.80
06/01/2015,Travel - Air/Rail/Road             ,FGW CHIP1                CHIPPENHAM,14.20
06/01/2015,Hotels and Accommodation           ,THE PORTLAND             GRANGEHOTE,5.50
06/01/2015,Restaurants and Bars               ,KONAKI RESTAURANT        LONDON WC1,36.80
06/01/2015,Restaurants and Bars               ,PICCOLINO                BIRMINGHAM,27.00
06/01/2015,Travel - Air/Rail/Road             ,NCP LIMITED              NOTTM MOUN,8.20
06/01/2015,Travel - Air/Rail/Road             ,EAST MIDLAND CHESTERFIEL CHESTERFIE,10.50
06/01/2015,Travel - Air/Rail/Road             ,RINGOPARKBYPHONE         SOUTH WEST,7.50
06/01/2015,Restaurants and Bars               ,LA VECCHIA SCUOLA        YORK YO1  ,21.44
06/01/2015,Travel - Air/Rail/Road             ,WEST COAST TRAINS        CREWE 1243,8.00
06/01/2015,Travel - Air/Rail/Road             ,LIVERPOOL LIME ST LOW    LIVERPOOL ,5.65
06/01/2015,Restaurants and Bars               ,ALIMENTUM                CAMBRIDGE ,38.33
06/01/2015,Travel - Air/Rail/Road             ,WEST COAST TRAINS        CUMBRIA 21,8.00
06/01/2015,Travel - Air/Rail/Road             ,APCOA CONNECT - FGW      UXBRIDGE  ,8.40
06/01/2015,General Retail and Wholesale       ,TESCO STORES 3474        LONDON    ,4.30
06/01/2015,General Retail and Wholesale       ,TESCO STORES 3474        LONDON    ,4.20
06/01/2015,Restaurants and Bars               ,BILLS KINGSWAY           LONDON    ,20.21
06/01/2015,Restaurants and Bars               ,BILLS KINGSWAY           LONDON    ,20.21
06/01/2015,Travel - Air/Rail/Road             ,TFL.GOV.UK/CP            TFL TRAVEL,6.10
06/01/2015,Travel - Air/Rail/Road             ,TICKETOFFICESALE         SWTRAINS H,7.00
06/01/2015,Restaurants and Bars               ,BILLS KINGSWAY           LONDON    ,20.21
06/01/2015,Restaurants and Bars               ,BILLS KINGSWAY           LONDON    ,20.03
06/01/2015,Travel - Air/Rail/Road             ,APCOA - NWR MANCHESTER   MANCHESTER,12.00
06/01/2015,Restaurants and Bars               ,FLEET STREET             BIRMINGHAM,25.95
06/01/2015,Restaurants and Bars               ,BILLS KINGSWAY           LONDON    ,20.21
06/01/2015,Restaurants and Bars               ,RED CHILLI RESTAURANT    YORK      ,30.00
06/01/2015,Restaurants and Bars               ,ALIMENTUM                CAMBRIDGE ,38.33
06/01/2015,Travel - Air/Rail/Road             ,CAMBRIDGE LEISURE PARK   CAMBRIDGE ,12.00
06/01/2015,Travel - Air/Rail/Road             ,CARPARK MACHINE          SWTRAINSPE,7.00
06/01/2015,Automotive Fuel                    ,CO-OP GROUP PETROL       PETROL GAL,14.00
06/01/2015,Restaurants and Bars               ,BILLS KINGSWAY           LONDON    ,20.21
06/01/2015,Restaurants and Bars               ,THE MEMSAAB              NOTTINGHAM,34.00
06/01/2015,Restaurants and Bars               ,KONAKI RESTAURANT        LONDON WC1,36.80
06/01/2015,Travel - Air/Rail/Road             ,RINGOPARKBYPHONE         SOUTH WEST,29.10
06/01/2015,Hotels and Accommodation           ,HOLIDAY INN CAMDEN       LONDON  NW,4.00
06/01/2015,Restaurants and Bars               ,TANDIS RESTAURANT        LONDON  NW,33.30
06/01/2015,Travel - Air/Rail/Road             ,TFL.GOV.UK/CP            TFL TRAVEL,4.40
06/01/2015,Travel - Air/Rail/Road             ,Q PARK SHEFFIELD STATION SHEFFIELD ,14.30
06/01/2015,Automotive Fuel                    ,SAINSBURYS PETROL        HUNTINGDON,7.25
06/01/2015,Travel - Air/Rail/Road             ,TSGN                     HUNTINGDON,5.80
06/01/2015,Travel - Air/Rail/Road             ,NCP PAYBYPHONE           LONDON    ,6.00
06/01/2015,Restaurants and Bars               ,BAR ESTILO               BIRMINGHAM,18.23
06/01/2015,Restaurants and Bars               ,THE MEMSAAB              NOTTINGHAM,34.00
06/01/2015,Restaurants and Bars               ,KONAKI RESTAURANT        LONDON WC1,36.80
06/01/2015,Restaurants and Bars               ,PRET A MANGER            HIGH HOLBU,4.99
06/01/2015,Hotels and Accommodation           ,HOLIDAY INN BLOOMSBURY   LONDON    ,52.90
06/01/2015,Restaurants and Bars               ,KONAKI RESTAURANT        LONDON WC1,36.80
06/01/2015,Automotive Fuel                    ,SAINSBURYS PETROL        WORLE     ,12.81
06/01/2015,Hotels and Accommodation           ,MACDONALD HOTELS MANCH   M'STER M1 ,15.00
06/01/2015,Travel - Air/Rail/Road             ,LONDON MIDLAND TIC       KIDDERMINS,8.90
06/01/2015,Restaurants and Bars               ,THE MEMSAAB              NOTTINGHAM,34.00
06/01/2015,Hotels and Accommodation           ,RADISSION BLU EDW        KENILWORTH,46.35
06/01/2015,Restaurants and Bars               ,STRADA                   LONDON    ,27.15
06/01/2015,Travel - Air/Rail/Road             ,NEW SOUTHERN RAILW       CHICESTR 5,9.40
06/01/2015,Restaurants and Bars               ,KONAKI RESTAURANT        LONDON WC1,36.80
06/01/2015,Restaurants and Bars               ,MUMBAI LOUNGE            YORK      ,30.00
06/01/2015,Automotive Fuel                    ,MALTHURST PETROLEU       HULL      ,8.54
06/01/2015,Travel - Air/Rail/Road             ,TICKETOFFICESALE         SWTRAINS S,133.80
06/01/2015,Travel - Air/Rail/Road             ,PAY N DISPLAY            OFF ST SOU,10.00
06/01/2015,Restaurants and Bars               ,BALI BALI                LONDON - W,32.10
06/01/2015,Statutory Bodies                   ,TAUNTON DEANE BOROUGH COU TAUNTON S,15.60
06/01/2015,Travel - Air/Rail/Road             ,BRADFORD INTERCHANGE S   BRADFORD  ,17.60
06/01/2015,Travel - Air/Rail/Road             ,APCOA - NWR MANCHESTER   MANCHESTER,8.50
06/01/2015,Travel - Air/Rail/Road             ,LONDON & SOUTH EAS       HAYES     ,17.00
07/01/2015,Automotive Fuel                    ,SHELL LEICESTER          OADBY     ,18.08
07/01/2015,Travel - Air/Rail/Road             ,NCP LIMITED              NOTTM MOUN,8.20
07/01/2015,Hotels and Accommodation           ,CROWNE PLAZA BIRMINGHA   BIRMINGHAM,21.65
07/01/2015,Travel - Air/Rail/Road             ,NCP LIMITED              NOTTM MOUN,16.40
07/01/2015,Automotive Fuel                    ,SHELL CRIBBS 356         BRISTOL   ,14.94
07/01/2015,Hotels and Accommodation           ,HOLIDAY INN BLOOMSBURY   LONDON    ,23.90
07/01/2015,Travel - Air/Rail/Road             ,APCOA PARKING (UK) LTD   UXBRIDGE  ,20.40
07/01/2015,Automotive Fuel                    ,FERRYBRIDGE MWSA         KNOTTINGLE,13.13
07/01/2015,General Retail and Wholesale       ,WAITROSE 207             BLOOMSBURY,28.06
07/01/2015,Travel - Air/Rail/Road             ,SL-NCP-ADAPTIS ECOM GA   NORFOLK   ,7.50
07/01/2015,Travel - Air/Rail/Road             ,PARK MOBILE              B'HAM B4  ,11.40
07/01/2015,Travel - Air/Rail/Road             ,LUL TICKET MACHINE       NORTHOLT  ,60.00
07/01/2015,Travel - Air/Rail/Road             ,ROBIN CAR PARKS          SOUTHWELL ,17.00
07/01/2015,Automotive Fuel                    ,RSS MAGOR MOTORWAY       CALDICOT  ,37.01
07/01/2015,Automotive Fuel                    ,SHELL MOULTON            NORTHAMPTO,18.33
07/01/2015,Hotels and Accommodation           ,THE ROYAL YORK HOTEL     YORK      ,8.00
07/01/2015,Travel - Air/Rail/Road             ,FRENCHGATE SHOPPING PKNG DONCASTER ,11.00
07/01/2015,Travel - Air/Rail/Road             ,WEST COAST TRAINS        BIRMINGHAM,16.90
07/01/2015,General Retail and Wholesale       ,SAINSBURYS               HOLBORN   ,10.99
07/01/2015,Automotive Fuel                    ,WM MORRISONS PETRO       BREDBURY 2,21.70
07/01/2015,Hotels and Accommodation           ,THE ROYAL YORK HOTEL     YORK      ,8.00
07/01/2015,Automotive Fuel                    ,TESCO PFS 3244           STAFFORD  ,42.24
07/01/2015,Hotels and Accommodation           ,CAMBRIDGE CITY           CAMBRIDGE ,18.00
07/01/2015,Travel - Air/Rail/Road             ,ECML NEWCASTLE PARKING   NEWCASTLE ,15.00
07/01/2015,Automotive Fuel                    ,SHELL LAYBY 146          LAYBY     ,32.03
07/01/2015,Hotels and Accommodation           ,CROWNE PLAZA             NOTTINGHAM,17.95
07/01/2015,Travel - Air/Rail/Road             ,XC TRAINS LTD            BIRMINGHAM,16.20
07/01/2015,Automotive Fuel                    ,SHELL KISLINGBURY        NORTHAMPTO,14.82
07/01/2015,Automotive Fuel                    ,MAYLAND GARAGE           ESSEX     ,18.49
07/01/2015,Hotels and Accommodation           ,HILTON                   CAMBRIDGE ,39.00
07/01/2015,Automotive Fuel                    ,SHELL GROVE              WOODBRIDGE,36.05
07/01/2015,Automotive Fuel                    ,MORRISONS PETROL         CATCLIFFE ,5.96
07/01/2015,Travel - Air/Rail/Road             ,EAST MIDLANDS TRAI       SHEFIELD 9,19.00
07/01/2015,Travel - Air/Rail/Road             ,Q PARK SHEFFIELD STATION SHEFFIELD ,14.30
07/01/2015,Travel - Air/Rail/Road             ,LONDON MIDLAND           METEOR PAR,10.20
07/01/2015,Travel - Air/Rail/Road             ,METEOR CONNECT           HOUNSLOW  ,4.80
07/01/2015,Professional Services              ,UPT - EMT NOTTINGHAM RAI NOTTINGHAM,14.00
07/01/2015,Travel - Air/Rail/Road             ,NCP LIMITED P&D          LONDON    ,5.00
07/01/2015,Restaurants and Bars               ,THISTLE BIRMINGHAM CIT   BIRMINGHAM,18.45
07/01/2015,Restaurants and Bars               ,ASK RESTAURANTS LT       LONDON SW4,16.90
07/01/2015,Hotels and Accommodation           ,MILLENNIUM               BIRMINGHAM,15.20
07/01/2015,Hotels and Accommodation           ,THE BEAUCHAMP            LONDON  WC,21.25
07/01/2015,Travel - Air/Rail/Road             ,PARK MOBILE              B'HAM B4  ,11.30
07/01/2015,Travel - Air/Rail/Road             ,PARK MOBILE              B'HAM B4  ,11.20
07/01/2015,Travel - Air/Rail/Road             ,WEST COAST TRAINS        STOKE-ON-T,8.00
07/01/2015,Catering and Catering Supplies     ,M&S SIMPLY FOOD - SSP    EUSTON STN,13.35
07/01/2015,Hotels and Accommodation           ,MILLENNIUM               BIRMINGHAM,21.90
07/01/2015,Hotels and Accommodation           ,STRAND PALACE HOTE       LONDON    ,18.50
07/01/2015,Travel - Air/Rail/Road             ,APCOA - NWR MANCHESTER   MANCHESTER,34.00
07/01/2015,Travel - Air/Rail/Road             ,ECML YORK PARKING        YORK      ,15.00
07/01/2015,Travel - Air/Rail/Road             ,TSGN                     BEDFORD   ,47.00
07/01/2015,Hotels and Accommodation           ,THE ROYAL YORK HOTEL     YORK      ,8.00
07/01/2015,Hotels and Accommodation           ,MARRIOTT                 YORK      ,31.75
07/01/2015,Travel - Air/Rail/Road             ,ECML NEWCASTLE PARKING   NEWCASTLE ,30.00
07/01/2015,Automotive Fuel                    ,TEX ABBEYWAYSERVIC       886747 GL7,49.96
07/01/2015,Automotive Fuel                    ,BP MOTO HESTON EAST      HOUNSLOW. ,39.43
07/01/2015,Hotels and Accommodation           ,HILTON                   CAMBRIDGE ,48.00
07/01/2015,Hotels and Accommodation           ,RICHMOND GATE HOTEL      RICHMOND T,26.50
07/01/2015,Hotels and Accommodation           ,THE ROYAL YORK HOTEL     YORK      ,38.50
07/01/2015,Hotels and Accommodation           ,THE ROYAL YORK HOTEL     YORK      ,8.00
07/01/2015,Automotive Fuel                    ,WOODSIDE GARAGE          SOUTH MOLT,18.63
07/01/2015,Automotive Fuel                    ,SALTASH SERVICE AREA     SALTASH   ,21.72
07/01/2015,Hotels and Accommodation           ,THE ROYAL YORK HOTEL     YORK      ,8.00
07/01/2015,Automotive Fuel                    ,TESCO PFS 2648           HENLEAZE  ,25.96
07/01/2015,Hotels and Accommodation           ,THE CASTLE HOTEL         TAUNTON   ,8.95
07/01/2015,Automotive Fuel                    ,TESCO PFS 3708           EXETER VAL,11.77
07/01/2015,Automotive Fuel                    ,SHELL PLAY PL 184        TRURO     ,32.40
07/01/2015,Hotels and Accommodation           ,THE CASTLE HOTEL         TAUNTON   ,13.50
07/01/2015,Automotive Fuel                    ,TESCO PFS 3736           LAUNCESTON,23.93
07/01/2015,Restaurants and Bars               ,ITSU LTD                 LNDN WC2B ,4.49
07/01/2015,Travel - Air/Rail/Road             ,LONDON MIDLAND           METEOR PAR,10.00
07/01/2015,Restaurants and Bars               ,WAGAMAMA                 BIRMINGHAM,35.50
07/01/2015,Travel - Air/Rail/Road             ,NCP LIMITED              NOTTM MOUN,4.10
07/01/2015,Hotels and Accommodation           ,THE ROYAL YORK HOTEL     YORK      ,8.00
07/01/2015,Travel - Air/Rail/Road             ,NCP LIMITED              NOTTM MOUN,8.20
07/01/2015,Restaurants and Bars               ,COSTA COFFEE             L'POOL L1 ,2.50
07/01/2015,Restaurants and Bars               ,STARBUCKS                NEW ST RAI,4.55
07/01/2015,Restaurants and Bars               ,MILLER & CARTER MA       BIRMINGHAM,16.20
07/01/2015,Restaurants and Bars               ,COTE BIRMINGHAM          B'HAM B1  ,15.80
07/01/2015,Hotels and Accommodation           ,HILTON                   CAMBRIDGE ,73.80
07/01/2015,Restaurants and Bars               ,ZIZZI                    BIRMINGHAM,16.00
07/01/2015,Restaurants and Bars               ,JAMIES ITALIAN           YORK      ,24.35
07/01/2015,Restaurants and Bars               ,OLD JOINT STOCK          B'HAM B2  ,19.03
07/01/2015,Restaurants and Bars               ,PUSHKAR LTD              BIRMINGHAM,32.50
07/01/2015,Travel - Air/Rail/Road             ,NEW SOUTHERN RAILW       LND SE19 8,10.00
07/01/2015,Hotels and Accommodation           ,ABBEY HILL HOTEL         MILTON KEY,30.20
07/01/2015,Restaurants and Bars               ,PUSHKAR LTD              BIRMINGHAM,32.50
07/01/2015,Catering and Catering Supplies     ,M&S SIMPLY FOOD - SSP    EUSTON STN,4.15
07/01/2015,Restaurants and Bars               ,JAMIE'S ITALIAN          BIRMINGHAM,13.70
07/01/2015,Travel - Air/Rail/Road             ,LUL TICKET MACHINE       HOLBORN   ,20.00
07/01/2015,Statutory Bodies                   ,WAKEFIELD COUNCIL        WAKEFIELD ,10.00
07/01/2015,Restaurants and Bars               ,JAMIE'S ITALIAN          BIRMINGHAM,13.70
07/01/2015,Hotels and Accommodation           ,BEST WESTERN MONKBAR H   YORK      ,10.00
07/01/2015,Automotive Fuel                    ,WEATHEROAKS SERVIC       SUTTON COL,17.10
07/01/2015,Hotels and Accommodation           ,CROWNE PLAZA             NOTTINGHAM,13.00
07/01/2015,General Retail and Wholesale       ,SAINSBURYS S/MKTS        NOTTINGHAM,3.70
07/01/2015,Automotive Fuel                    ,SHELL LYME GREEN         MACCLESFIE,13.26
07/01/2015,Hotels and Accommodation           ,CROWNE PLAZA             NOTTINGHAM,13.00
07/01/2015,Travel - Air/Rail/Road             ,TICKETOFFICESALE         FARNBOROUG,26.40
07/01/2015,Travel - Air/Rail/Road             ,CARPARK MACHINE          SWTRAINS F,8.00
07/01/2015,Hotels and Accommodation           ,HOL INN BIRM CITY        BIRMINGHAM,30.91
07/01/2015,Automotive Fuel                    ,HKS  THREEWAYS           NOTTINGHAM,26.35
07/01/2015,Hotels and Accommodation           ,ROYAL CAMBRIDGE HOTEL    CAMBRIDGE ,16.00
07/01/2015,Automotive Fuel                    ,SEATON BURN SVS ST       NEWCASTLE ,24.70
07/01/2015,Hotels and Accommodation           ,THE ROYAL YORK HOTEL     YORK      ,16.00
07/01/2015,Travel - Air/Rail/Road             ,WEST COAST TRAINS        STAFFORD 1,4.00
07/01/2015,Restaurants and Bars               ,CAMDEN FOOD CO BARRIER   EUSTON    ,7.10
07/01/2015,Hotels and Accommodation           ,THE BEAUCHAMP            LONDON  WC,8.00
07/01/2015,Travel - Air/Rail/Road             ,NCP LIMITED              NEWARK NOR,22.00
07/01/2015,Restaurants and Bars               ,SPAGHETTI HOUSE LT       LONDON  WC,31.35
07/01/2015,Travel - Air/Rail/Road             ,LUL TICKET MACHINE       HOLBORN   ,20.00
07/01/2015,Hotels and Accommodation           ,THE ROYAL YORK HOTEL     YORK      ,21.00
07/01/2015,Travel - Air/Rail/Road             ,WEST COAST TRAINS        CARLISLE 2,30.00
07/01/2015,Restaurants and Bars               ,SPAGHETTI HOUSE LT       LONDON  WC,28.00
07/01/2015,Restaurants and Bars               ,PRET A MANGER            EUSTON STA,3.95
07/01/2015,Hotels and Accommodation           ,THISTLE BLOOMSBURY PK    0871 977 2,5.06
07/01/2015,Travel - Air/Rail/Road             ,NCP LIMITED              NOTTM MOUN,12.30
07/01/2015,Travel - Air/Rail/Road             ,APCOA - NWR EDINBURGH    EDINBURGH ,31.50
07/01/2015,Travel - Air/Rail/Road             ,TFL.GOV.UK/CP            TFL TRAVEL,3.80
07/01/2015,Hotels and Accommodation           ,CROWNE PLAZA BIRMINGHA   BIRMINGHAM,21.00
07/01/2015,Restaurants and Bars               ,PRET A MANGER            HIGH HOLBU,3.65
07/01/2015,Travel - Air/Rail/Road             ,RCP PARKING LTD          NORWICH   ,30.00
07/01/2015,Travel - Air/Rail/Road             ,TFL CC/LEZ CHARGE        0845 900 1,11.50
07/01/2015,Automotive Fuel                    ,LOCKS GARAGE             HEREFORD 4,17.32
07/01/2015,Travel - Air/Rail/Road             ,PRK MAILBOX B'HAM UPT    BIRMINGHM ,16.20
07/01/2015,Travel - Air/Rail/Road             ,LONDON MIDLAND TIC       KIDDERMINS,8.90
07/01/2015,Travel - Air/Rail/Road             ,NCP LIMITED              NOTTM MOUN,12.30
07/01/2015,Travel - Air/Rail/Road             ,PARK MOBILE              B'HAM B4  ,11.40
07/01/2015,Hotels and Accommodation           ,HOLIDAY INN BLOOMSBURY   LONDON    ,7.40
07/01/2015,Travel - Air/Rail/Road             ,NCP LIMITED              NOTTM MOUN,4.10
07/01/2015,Travel - Air/Rail/Road             ,NCP LIMITED              YORK QUEEN,14.00
07/01/2015,Restaurants and Bars               ,PUSHKAR LTD              BIRMINGHAM,32.50
07/01/2015,Catering and Catering Supplies     ,FOOD STANDARDS AGE       LONDON  WC,4.90
07/01/2015,General Retail and Wholesale       ,UPPER CRUST              SWINDON   ,2.80
07/01/2015,Restaurants and Bars               ,ZIZZI                    BIRMINGHAM,16.00
07/01/2015,Hotels and Accommodation           ,ROYAL ALBION-M           BROADSTAIR,40.15
07/01/2015,Restaurants and Bars               ,COTE BIRMINGHAM          B'HAM B1  ,23.70
07/01/2015,Catering and Catering Supplies     ,WELCOME BREAK SEDGEMOO   SEDGEMOOR ,3.75
07/01/2015,Hotels and Accommodation           ,BURLINGTON               B'HAM B2  ,26.25
07/01/2015,Hotels and Accommodation           ,CROWN LODGE HOTEL        WISBECH 01,77.70
07/01/2015,Restaurants and Bars               ,PUSHKAR LTD              BIRMINGHAM,32.50
07/01/2015,Restaurants and Bars               ,MILLER & CARTER MA       BIRMINGHAM,16.20
07/01/2015,Restaurants and Bars               ,LA GALLERIA              BIRMINGHAM,35.65
07/01/2015,Restaurants and Bars               ,THE WONKY TABLE RESTAU   DERBY     ,36.55
07/01/2015,Restaurants and Bars               ,OLD JOINT STOCK          B'HAM B2  ,19.03
07/01/2015,Hotels and Accommodation           ,BURLINGTON               B'HAM B2  ,19.85
07/01/2015,Automotive Fuel                    ,TESCO PAY AT PUMP 3833   BASINGSTOK,14.00
07/01/2015,Hotels and Accommodation           ,HOLIDAY INN              BASINGSTOK,31.40
07/01/2015,Restaurants and Bars               ,OLD JOINT STOCK          B'HAM B2  ,19.03
07/01/2015,Automotive Fuel                    ,ESSO WHITEHOUSE SERVICE S KESTON   ,12.95
07/01/2015,Restaurants and Bars               ,HAPPY GARDEN (BROMLEY)   BROMLEY   ,37.40
08/01/2015,Travel - Air/Rail/Road             ,SELFSERVE TICKET         SWTRAINS W,20.00
08/01/2015,Travel - Air/Rail/Road             ,SELFSERVE TICKET         SWTRAINSST,20.00
08/01/2015,Travel - Air/Rail/Road             ,CCP LONDON LTD           SALFORD   ,8.00
08/01/2015,Travel - Air/Rail/Road             ,OYSTER AUTOTOPUP         0343 22212,20.00
08/01/2015,Travel - Air/Rail/Road             ,WEST COAST TRAINS        STOKE-ON-T,8.00
08/01/2015,General Retail and Wholesale       ,SAINSBURYS               HOLBORN   ,9.50
08/01/2015,Travel - Air/Rail/Road             ,ECML RETFORD PARKING     RETFORD   ,15.00
08/01/2015,Automotive Fuel                    ,RSS LONDON BRIDGE        YORK      ,10.00
08/01/2015,Mail and Courier Services          ,POST OFFICE COUNTER      NORTHAMPTO,7.15
08/01/2015,Travel - Air/Rail/Road             ,APCOA CONNECT - FGW      UXBRIDGE  ,5.80
08/01/2015,Travel - Air/Rail/Road             ,M6 TOLL                  TOLL CHARG,5.50
08/01/2015,Travel - Air/Rail/Road             ,WEST COAST TRAINS        STAFFORD 1,8.00
08/01/2015,Travel - Air/Rail/Road             ,LUL TICKET MACHINE       LEYTONSTON,20.00
08/01/2015,Travel - Air/Rail/Road             ,NCP LIMITED P&D          LONDON    ,5.00
08/01/2015,Travel - Air/Rail/Road             ,WEST COAST TRAINS        PRESTON 27,10.00
08/01/2015,Travel - Air/Rail/Road             ,TFGM METROLINK           0161 20520,2.10
08/01/2015,Travel - Air/Rail/Road             ,PARK MOBILE              B'HAM B4  ,11.30
08/01/2015,Travel - Air/Rail/Road             ,PARK MOBILE              B'HAM B4  ,11.40
08/01/2015,Restaurants and Bars               ,CABANA ST GILES PIAZZA   LONDON    ,31.25
08/01/2015,General Retail and Wholesale       ,E H BOOTH & CO LTD       PENRITH   ,7.71
08/01/2015,Restaurants and Bars               ,MCDONALDS REST           PENRITH   ,1.29
08/01/2015,Travel - Air/Rail/Road             ,WEST COAST TRAINS        CUMBRIA 21,8.00
08/01/2015,Hotels and Accommodation           ,RICHMOND GATE HOTEL      RICHMOND T,22.50
08/01/2015,Restaurants and Bars               ,STARBUCKS                LONDON    ,8.98
08/01/2015,Travel - Air/Rail/Road             ,SELFSERVE TICKET         SWTRAINS R,20.00
08/01/2015,Travel - Air/Rail/Road             ,NCP LIMITED              RICHMOND M,18.66
08/01/2015,Automotive Fuel                    ,ARMSTRONG MASSEY L       DRIFFIELD ,16.39
08/01/2015,Restaurants and Bars               ,PIZZA EXPRESS            HIGH HOLBU,25.65
08/01/2015,Travel - Air/Rail/Road             ,TFL.GOV.UK/CP            TFL TRAVEL,1.50
08/01/2015,Travel - Air/Rail/Road             ,LUL TICKET MACHINE       CHANCERY L,30.00
08/01/2015,Professional Services              ,UPT - EMT NOTTINGHAM RAI NOTTINGHAM,7.00
08/01/2015,Restaurants and Bars               ,POD                      LONDON    ,4.99
08/01/2015,Travel - Air/Rail/Road             ,LONDON MIDLAND SEL       LONDON NW1,20.00
08/01/2015,Travel - Air/Rail/Road             ,LONDON MIDLAND TIC       MILTON KEY,122.20
08/01/2015,Automotive Fuel                    ,ALLER VALE GARAGE LTD    NEWTON ABB,23.00
08/01/2015,Automotive Fuel                    ,NORTHFIELD 171           BIRMINGHAM,43.79
08/01/2015,Travel - Air/Rail/Road             ,PARK MOBILE              B'HAM B4  ,11.40
08/01/2015,Travel - Air/Rail/Road             ,NCP LIMITED              NOTTM MOUN,4.10
08/01/2015,Travel - Air/Rail/Road             ,OYSTER ISSUE WEB         0343 22212,25.00
08/01/2015,Travel - Air/Rail/Road             ,LONDON MIDLAND SEL       LONDON NW1,20.00
08/01/2015,Professional Services              ,UPT - EMT NOTTINGHAM RAI NOTTINGHAM,7.00
08/01/2015,Travel - Air/Rail/Road             ,APCOA CONNECT - FGW      UXBRIDGE  ,4.20
08/01/2015,Professional Services              ,UPT - EMT NOTTINGHAM RAI NOTTINGHAM,7.00
08/01/2015,Restaurants and Bars               ,MALABAR JUNCTION         LONDON    ,33.50
08/01/2015,General Retail and Wholesale       ,WM MORRISONS STORE       MANCHESTER,11.31
08/01/2015,Travel - Air/Rail/Road             ,BRISTOL STN              CAR PARK  ,15.20
08/01/2015,Hotels and Accommodation           ,RADISSON BLU HOTEL BIR   BIRMINGHAM,30.10
08/01/2015,Hotels and Accommodation           ,RADISSON BLU HOTEL BIR   BIRMINGHAM,5.00
08/01/2015,Travel - Air/Rail/Road             ,PARK MOBILE              B'HAM B4  ,11.40
08/01/2015,Utilities and Non Automotive Fuel  ,LEWES SERVICE STATION    LEWES     ,44.75
08/01/2015,Automotive Fuel                    ,OSSETT SERVICE STA       WAKEFIELD ,18.82
08/01/2015,Hotels and Accommodation           ,RADISSON BLU HOTEL BIR   BIRMINGHAM,30.95
08/01/2015,Automotive Fuel                    ,TESCO PAY AT PUMP 4007   GAINSBOROU,45.82
08/01/2015,Travel - Air/Rail/Road             ,EAST MIDLAND CHESTERFIEL CHESTERFIE,10.50
08/01/2015,Travel - Air/Rail/Road             ,BRISTOL STN              CAR PARK  ,7.60
08/01/2015,Travel - Air/Rail/Road             ,WEST COAST TRAINS        LIVERPOL 9,21.00
08/01/2015,Hotels and Accommodation           ,HOLIDAY INN EX TAMWORT   TAMWORTH  ,15.00
08/01/2015,Travel - Air/Rail/Road             ,M6 TOLL                  TOLL CHARG,4.00
08/01/2015,Restaurants and Bars               ,TRY THAI                 MANCHESTER,29.40
08/01/2015,Restaurants and Bars               ,LANCASTER S/W COSTA      NR LANCAST,2.85
08/01/2015,Travel - Air/Rail/Road             ,WEST COAST TRAINS        STAFFORD 1,8.00
08/01/2015,Computer Equipment & Services      ,THAWTE                   877-438-87,-176.29
08/01/2015,Computer Equipment & Services      ,THAWTE                   877-438-87,236.28
08/01/2015,Computer Equipment & Services      ,THAWTE                   877-438-87,-176.29
08/01/2015,Computer Equipment & Services      ,THAWTE                   877-438-87,236.28
08/01/2015,Travel - Air/Rail/Road             ,WEST COAST TRAINS        MANCHSTR 8,79.60
08/01/2015,Travel - Air/Rail/Road             ,APCOA - NWR MANCHESTER   MANCHESTER,12.00
08/01/2015,Travel - Air/Rail/Road             ,LUL TICKET MACHINE       HOLBORN   ,15.00
08/01/2015,Restaurants and Bars               ,PATISSERIE VALERIE       LONDON    ,6.45
08/01/2015,Travel - Air/Rail/Road             ,ECML NEWCASTLE PARKING   NEWCASTLE ,7.00
08/01/2015,Travel - Air/Rail/Road             ,CCP LONDON LTD           SALFORD   ,8.00
08/01/2015,Travel - Air/Rail/Road             ,TFL.GOV.UK/CP            TFL TRAVEL,6.80
08/01/2015,Travel - Air/Rail/Road             ,Q PARK SHEFFIELD STATION SHEFFIELD ,13.30
08/01/2015,Restaurants and Bars               ,BAR ESTILO               BIRMINGHAM,32.75
08/01/2015,Hotels and Accommodation           ,HOLIDAY INN WYCOMBE      HIGH WYCOM,39.95
08/01/2015,Hotels and Accommodation           ,PARKMORE HOTEL           STOCKTON-O,23.00
08/01/2015,General Retail and Wholesale       ,THE SOUTHERN CO-OP       RADCLIFFE ,3.09
08/01/2015,Travel - Air/Rail/Road             ,OYSTER BUS AUTOTOP       0343 22212,20.00
08/01/2015,Catering and Catering Supplies     ,WEST COAST TRAINS LTD    B'HAM B5 4,3.05
08/01/2015,Restaurants and Bars               ,MALABAR JUNCTION         LONDON    ,33.50
08/01/2015,Restaurants and Bars               ,ROADCHEF SEDGEMOOR       AXBRIDGE  ,4.83
08/01/2015,Travel - Air/Rail/Road             ,NCP LIMITED              BHAM ALBAN,24.30
08/01/2015,Travel - Air/Rail/Road             ,PAY N DISPLAY            OFF ST SOU,10.00
08/01/2015,Travel - Air/Rail/Road             ,WEST COAST TRAINS        MACLSFLD 2,8.00
08/01/2015,Restaurants and Bars               ,PRET A MANGER            52 NEW STR,4.65
08/01/2015,Automotive Fuel                    ,MALTHURST BARNETBY       BARNETBY  ,16.72
08/01/2015,Travel - Air/Rail/Road             ,APCOA NWR LIVERPOOL LI   LIVERPOOL ,13.00
08/01/2015,Automotive Fuel                    ,ESSO WHITEHOUSE SERVICE S KESTON   ,49.47
09/01/2015,Hotels and Accommodation           ,ABODE MANCHESTER         MANCHESTER,23.90
09/01/2015,Travel - Air/Rail/Road             ,SELFSERVE TICKET         SWTRAINSST,20.00
09/01/2015,Travel - Air/Rail/Road             ,NEWTON-LE-WILLOWS STN    NEWTON LE ,8.40
09/01/2015,Leisure Activities                 ,BRISTOL CITY COUNCIL -   BRISTOL   ,3.00
09/01/2015,Travel - Air/Rail/Road             ,LONDON MIDLAND TIC       TRING     ,13.00
09/01/2015,Automotive Fuel                    ,TEXACO CROSSGATES        LLANDRINDO,37.04
09/01/2015,Travel - Air/Rail/Road             ,Q PARK THE SHAMBLES      YORK      ,13.50
09/01/2015,Travel - Air/Rail/Road             ,OYSTER AUTOTOPUP         0343 22212,40.00
09/01/2015,Travel - Air/Rail/Road             ,EC MAINLINE CO T/O       DONCSTER 6,15.00
09/01/2015,Hotels and Accommodation           ,THE PLACE                MANCHESTER,9.00
09/01/2015,Automotive Fuel                    ,WM MORRISONS PETRO       BREDBURY 2,20.25
09/01/2015,Travel - Air/Rail/Road             ,XC TRAINS LTD            BIRMINGHAM,16.20
09/01/2015,Hotels and Accommodation           ,HILTON LEICESTER         LEICESTER ,5.00
09/01/2015,Automotive Fuel                    ,K R WILSON GARAGES LTD   WALES BAR ,12.77
09/01/2015,Automotive Fuel                    ,CO-OP GROUP 014029       Petrol Dea,20.08
09/01/2015,Automotive Fuel                    ,SAINSBURYS S/MKTS        HEATON PAR,16.66
09/01/2015,Travel - Air/Rail/Road             ,Q PARK THE SHAMBLES      YORK      ,13.50
09/01/2015,Travel - Air/Rail/Road             ,DAISY HILL STN TO        BOLTON    ,7.80
09/01/2015,General Retail and Wholesale       ,SAINSBURYS S/MKTS        HOLBORN   ,3.00
09/01/2015,Travel - Air/Rail/Road             ,LUL TICKET MACHINE       EUSTON    ,9.60
09/01/2015,Travel - Air/Rail/Road             ,APCOA - NWR MANCHESTER   MANCHESTER,12.00
09/01/2015,Automotive Fuel                    ,BHAM PARTNERS            SHEFFIELD ,55.00
09/01/2015,Travel - Air/Rail/Road             ,Q PARK THE SHAMBLES      YORK      ,13.50
09/01/2015,Automotive Fuel                    ,TEXPARKGARAGE            886901BB19,58.69
09/01/2015,Hotels and Accommodation           ,THE EARL OF DONCASTER    DONCASTER ,34.25
09/01/2015,Travel - Air/Rail/Road             ,ECML NEWCASTLE PARKING   NEWCASTLE ,15.00
09/01/2015,Automotive Fuel                    ,BP MALTHURST GILLINGHAM  BECCLES NO,20.61
09/01/2015,Travel - Air/Rail/Road             ,PARBOLD STN TO           PARBOLD   ,6.00
09/01/2015,Restaurants and Bars               ,DEFRA FOSSE HOUSE        YORK      ,4.79
09/01/2015,Restaurants and Bars               ,PRET A MANGER            HIGH HOLBU,4.40
09/01/2015,Travel - Air/Rail/Road             ,Q PARK THE SHAMBLES      YORK      ,13.50
09/01/2015,Mail and Courier Services          ,POST OFFICE COUNTER      UMBERLEIGH,10.40
09/01/2015,Travel - Air/Rail/Road             ,Q PARK THE SHAMBLES      YORK      ,13.50
09/01/2015,Travel - Air/Rail/Road             ,LUL TICKET MACHINE       WATERLOO A,20.00
09/01/2015,Restaurants and Bars               ,POD                      LONDON    ,5.99
09/01/2015,Travel - Air/Rail/Road             ,LONDON MIDLAND           METEOR PAR,10.00
09/01/2015,Restaurants and Bars               ,PRET A MANGER            HIGH HOLBU,6.24
09/01/2015,Travel - Air/Rail/Road             ,ECML NEWARK PARKING      NEWARK    ,10.50
09/01/2015,Automotive Fuel                    ,W M MORRISON             UP HATHERL,39.28
09/01/2015,Travel - Air/Rail/Road             ,FRENCHGATE SHOPPING PKNG DONCASTER ,11.00
09/01/2015,Miscellaneous Industrial/Commercial,FAST KEY SERVICES        WICKFORD  ,31.08
09/01/2015,Automotive Fuel                    ,G E MURGATROYD GEM DERWEN KESWICK  ,32.50
09/01/2015,Travel - Air/Rail/Road             ,Q PARK THE SHAMBLES      YORK      ,13.50
09/01/2015,Professional Services              ,DTZ RE: SOUTHGATE        0121710574,10.10
09/01/2015,Travel - Air/Rail/Road             ,PARK MOBILE              B'HAM B4  ,11.40
09/01/2015,Mail and Courier Services          ,POST OFFICE COUNTER      CHICHESTER,24.05
09/01/2015,Travel - Air/Rail/Road             ,WEST COAST TRAINS        SOLIHULL 1,8.00
09/01/2015,Travel - Air/Rail/Road             ,GREATER ANGLIA T/O       LONDON EC2,50.00
09/01/2015,Restaurants and Bars               ,PRET A MANGER            HIGH HOLBU,8.13
09/01/2015,Hotels and Accommodation           ,HILTON LEICESTER         LEICESTER ,5.00
09/01/2015,Restaurants and Bars               ,DEFRA FOSSE HOUSE        YORK      ,2.94
09/01/2015,Automotive Fuel                    ,CO-OP GROUP 014269       Petrol Whi,29.13
09/01/2015,Travel - Air/Rail/Road             ,CITY OF YORK COUNCIL     YORK      ,7.30
09/01/2015,Automotive Fuel                    ,SHELL NEWBROOK           BOLTON    ,27.00
09/01/2015,Automotive Fuel                    ,PJ NICHOLLS LTD          TEWKESBURY,13.16
09/01/2015,Automotive Fuel                    ,SYMONDS FORECOURTS       GLOUCESTER,17.84
09/01/2015,Travel - Air/Rail/Road             ,FGW CHIP1                CHIPPENHAM,7.10
09/01/2015,Automotive Fuel                    ,SAINSBURYS PETROL        BIRKENHEAD,27.85
09/01/2015,Travel - Air/Rail/Road             ,M6 TOLL                  TOLL CHARG,5.50
09/01/2015,Travel - Air/Rail/Road             ,NCP LTD                  MANCHESTER,15.30
09/01/2015,Travel - Air/Rail/Road             ,WEST COAST TRAINS        STAFFORD 1,8.00
09/01/2015,Travel - Air/Rail/Road             ,TICKETOFFICESALE         SWTRAINS H,21.00
09/01/2015,Automotive Fuel                    ,ESSO ROTHWELL SSTN       KETTERING ,8.45
09/01/2015,Automotive Fuel                    ,TESCO PFS 2484           ERDINGTON ,14.50
09/01/2015,Automotive Fuel                    ,TESCO PFS 3923           CHORLEY   ,4.78
09/01/2015,Travel - Air/Rail/Road             ,TFL.GOV.UK/CP            TFL TRAVEL,4.60
09/01/2015,Travel - Air/Rail/Road             ,EAST MIDLAND CHESTERFIEL CHESTERFIE,26.50
09/01/2015,Travel - Air/Rail/Road             ,WEST COAST TRAINS        BIRMINGHAM,4.60
09/01/2015,Automotive Fuel                    ,SHELL BURNT CM 199       WOKING    ,8.84
09/01/2015,Automotive Fuel                    ,SKYWAY FILLING STN       WOLSINGTON,12.54
09/01/2015,Catering and Catering Supplies     ,WEST COAST TRAINS LTD    B'HAM B5 4,-3.05
09/01/2015,Restaurants and Bars               ,CAFFE NERO               KINGSWAY  ,5.25
09/01/2015,Automotive Fuel                    ,Q8 BHR S/STN             HULL      ,4.09
09/01/2015,Travel - Air/Rail/Road             ,NCP LIMITED - MJV        CTRL GMEX ,18.40
09/01/2015,Travel - Air/Rail/Road             ,WEST COAST TRAINS        PRESTON 27,20.00
10/01/2015,Books and Periodicals              ,TIMES NEWSPAPERS LTD     LONDON E98,26.00
11/01/2015,Travel - Air/Rail/Road             ,FGW CONNECT WEB          UXBRIDGE  ,25.80
11/01/2015,Hotels and Accommodation           ,RICHMOND GATE HOTEL      RICHMOND T,4.00
11/01/2015,Restaurants and Bars               ,CASA BRINDISA            LONDON  SW,24.35
11/01/2015,Travel - Air/Rail/Road             ,SELFSERVE TICKET         SWTRAINS R,20.00
11/01/2015,Travel - Air/Rail/Road             ,"SPITAL STN T/O           WIRRAL, ME",21.20
12/01/2015,Restaurants and Bars               ,BEEFEATER40017110        SMUGGLERS ,16.97
12/01/2015,Travel - Air/Rail/Road             ,APCOA PARKING (UK) LTD   UXBRIDGE  ,20.40
12/01/2015,Hotels and Accommodation           ,HOLIDAY INNS             NORWICH   ,24.90
12/01/2015,Travel - Air/Rail/Road             ,LUL TICKET MACHINE       PADDINGTON,4.80
12/01/2015,Medical Supplies and Services      ,BOOTS 1521               LONDON    ,4.64
12/01/2015,Restaurants and Bars               ,PANOPOLIS AIRSIDE        LONDON E16,1.80
12/01/2015,Restaurants and Bars               ,STIX AND STONES          BELFAST   ,30.00
12/01/2015,Restaurants and Bars               ,Giraffe                  HEATHROW T,7.80
12/01/2015,Automotive Fuel                    ,SHELL KISLINGBURY        NORTHAMPTO,9.50
12/01/2015,Travel - Air/Rail/Road             ,SL-NCP-ADAPTIS ECOM GA   NORFOLK   ,7.50
12/01/2015,Travel - Air/Rail/Road             ,TSGN                     HUNTINGDON,25.30
12/01/2015,Travel - Air/Rail/Road             ,APCOA FCC                HUNTINGDON,27.50
12/01/2015,Automotive Fuel                    ,TEXACO CROSSGATES        LLANDRINDO,46.95
12/01/2015,Travel - Air/Rail/Road             ,NCP LIMITED P&D          UXBRIDGE  ,6.00
12/01/2015,Hotels and Accommodation           ,HOLIDAY INNS             NORWICH   ,24.45
12/01/2015,General Retail and Wholesale       ,TESCO STORE 2081         BARRY     ,32.14
12/01/2015,Travel - Air/Rail/Road             ,APCOA CONNECT - FGW      UXBRIDGE  ,5.70
12/01/2015,Travel - Air/Rail/Road             ,WEST COAST TRAINS        STAFFORD 8,310.60
12/01/2015,Travel - Air/Rail/Road             ,WEST COAST TRAINS        STAFFORD 1,8.00
12/01/2015,Automotive Fuel                    ,PLAWSWORTH SERIVCE       CHESTER LE,6.43
12/01/2015,Restaurants and Bars               ,COTE COVENT GARDEN       LONDON  WC,47.00
12/01/2015,Travel - Air/Rail/Road             ,LONDON MIDLAND           METEOR PAR,17.00
12/01/2015,General Retail and Wholesale       ,WAITROSE 690             RUSHDEN   ,15.74
12/01/2015,Travel - Air/Rail/Road             ,APCOA NWR LIVERPOOL LI   LIVERPOOL ,13.00
12/01/2015,Hotels and Accommodation           ,CASA HOTEL               CHESTERFIE,36.00
12/01/2015,Travel - Air/Rail/Road             ,NORWICH AIRPORT ADF 3    NORWICH   ,10.00
12/01/2015,Travel - Air/Rail/Road             ,TFGM METROLINK           0161 20520,6.10
12/01/2015,Mail and Courier Services          ,THE POST OFFICE          WIGAN     ,7.15
12/01/2015,Restaurants and Bars               ,LL CASTELLETTO           LONDON    ,22.40
12/01/2015,Restaurants and Bars               ,LL CASTELLETTO           LONDON    ,22.15
12/01/2015,Travel - Air/Rail/Road             ,APCOA CONNECT - FGW      UXBRIDGE  ,16.50
12/01/2015,Travel - Air/Rail/Road             ,NEWTON-LE-WILLOWS STN    NEWTON LE ,8.40
12/01/2015,Restaurants and Bars               ,PETIT PARIS              NOTTINGHAM,33.00
12/01/2015,Travel - Air/Rail/Road             ,CARPARK MACHINE          SWTRAINS S,14.50
12/01/2015,Travel - Air/Rail/Road             ,ECML RETFORD PARKING     RETFORD   ,7.50
12/01/2015,Travel - Air/Rail/Road             ,TSGN                     BEDFORD   ,134.60
12/01/2015,Restaurants and Bars               ,CARLUCCIOS LTD           BRUNSWICK ,24.00
12/01/2015,Travel - Air/Rail/Road             ,LUL TICKET OFFICE.       EAST ACTON,20.00
12/01/2015,Travel - Air/Rail/Road             ,CARPARK MACHINE          SWTRAINS S,14.50
12/01/2015,Hotels and Accommodation           ,MERCURE LONDON BLOOMSB   THE BRASSE,27.00
12/01/2015,Catering and Catering Supplies     ,FOOD STANDARDS AGE       LONDON  WC,3.70
12/01/2015,Hotels and Accommodation           ,RICHMOND GATE HOTEL      RICHMOND T,22.50
12/01/2015,Travel - Air/Rail/Road             ,PARBOLD STN TO           PARBOLD   ,8.70
12/01/2015,Restaurants and Bars               ,PRET A MANGER            HIGH HOLBU,6.60
12/01/2015,Restaurants and Bars               ,PREZZO                   LONDON NW1,10.95
12/01/2015,Restaurants and Bars               ,PRET A MANGER            HIGH HOLBU,4.40
12/01/2015,Restaurants and Bars               ,COSMOBA RESTAURANT       LONDON    ,30.50
12/01/2015,Travel - Air/Rail/Road             ,APCOA CONNECT - FGW      UXBRIDGE  ,5.50
12/01/2015,Restaurants and Bars               ,PREZZO                   LONDON NW1,14.00
12/01/2015,Travel - Air/Rail/Road             ,APCOA CONNECT - FGW      UXBRIDGE  ,25.20
12/01/2015,Restaurants and Bars               ,DINER COVENT GARDEN      LONDON    ,15.30
12/01/2015,Restaurants and Bars               ,POD                      LONDON    ,6.98
12/01/2015,Travel - Air/Rail/Road             ,LONDON MIDLAND           METEOR PAR,10.00
12/01/2015,Travel - Air/Rail/Road             ,LUL TICKET MACHINE       HOLBORN   ,20.00
12/01/2015,Automotive Fuel                    ,PELLON LANE SSTN         HALIFAX   ,22.70
12/01/2015,Travel - Air/Rail/Road             ,APCOA - NWR MANCHESTER   MANCHESTER,17.00
12/01/2015,Hotels and Accommodation           ,BEST WESTERN STOKE       BOREHAMWOO,4.50
12/01/2015,Restaurants and Bars               ,BEEFEATER40017110        SMUGGLERS ,14.58
12/01/2015,Catering and Catering Supplies     ,M&S SIMPLY FOOD - SSP    ST PANCRAS,5.85
12/01/2015,Travel - Air/Rail/Road             ,SELFSERVE TICKET         NORBITON  ,20.00
12/01/2015,Mail and Courier Services          ,POST OFFICE COUNTER      KETTERING ,8.45
12/01/2015,Mail and Courier Services          ,POST OFFICE COUNTER      PLYMOUTH  ,9.45
12/01/2015,Restaurants and Bars               ,COSMOBA RESTAURANT       LONDON    ,31.80
12/01/2015,Travel - Air/Rail/Road             ,LUL TICKET MACHINE       PADDINGTON,12.00
12/01/2015,Travel - Air/Rail/Road             ,FGW PLYMTH               PLYMOUTH  ,18.60
12/01/2015,Travel - Air/Rail/Road             ,WEST COAST TRAINS        SOLIHULL 1,8.00
12/01/2015,Auto Rental                        ,EUROPCAR                 LARNACA   ,119.29
12/01/2015,Restaurants and Bars               ,COTE COVENT GARDEN       LONDON  WC,46.49
12/01/2015,Hotels and Accommodation           ,MERCURE CHESTER EA       01244 3334,18.70
12/01/2015,Automotive Fuel                    ,BP ESSEX GARAGE          MARYPORT C,29.39
12/01/2015,Hotels and Accommodation           ,MERCURE LONDON BLOOMSB   THE BRASSE,27.00
12/01/2015,Automotive Fuel                    ,WEATHEROAKS SERVIC       SUTTON COL,23.64
12/01/2015,General Retail and Wholesale       ,TESCO STORES 5392        BIRMINGHAM,3.00
12/01/2015,Travel - Air/Rail/Road             ,NCP LIMITED              BHAM NEWHA,16.50
12/01/2015,Travel - Air/Rail/Road             ,LUL TICKET MACHINE       HIGH BARNE,85.00
12/01/2015,Restaurants and Bars               ,PIZZA EXPRESS            S'HAMPTON ,14.85
12/01/2015,Hotels and Accommodation           ,HOLIDAY INN STOKE        0208 334 4,20.79
12/01/2015,Hotels and Accommodation           ,HOLIDAY INN EXPRESS DU   DUNSTABLE ,14.50
12/01/2015,Catering and Catering Supplies     ,WOLVERHAMPTON            WOLVERHAMP,28.95
12/01/2015,Restaurants and Bars               ,MOTIJ HEEL               LONDON  WC,23.05
12/01/2015,Travel - Air/Rail/Road             ,WEST COAST TRAINS        CUMBRIA 21,32.00
12/01/2015,Automotive Fuel                    ,ESSO PACE WHITE ROSE     DONCASTER ,5.53
12/01/2015,Travel - Air/Rail/Road             ,APCOA CONNECT - FGW      UXBRIDGE  ,22.00
12/01/2015,General Retail and Wholesale       ,TESCO STORES 3474        LONDON    ,6.64
12/01/2015,General Retail and Wholesale       ,SAINSBURYS               HOLBORN   ,3.00
12/01/2015,Hotels and Accommodation           ,THE STRAND PALACE        WC2R 0JJ  ,22.00
12/01/2015,Restaurants and Bars               ,GIRAFFE CONCEPTS LTD     STRATFORD ,14.05
12/01/2015,General Retail and Wholesale       ,SAINSBURYS S/MKTS        BLOOMSBURY,3.29
12/01/2015,Restaurants and Bars               ,CAFE ROUGE               LONDON  WC,24.00
12/01/2015,General Retail and Wholesale       ,TESCO STORES 3327        UTTOXETER ,14.69
12/01/2015,Hotels and Accommodation           ,PARK PLAZA NOTTINGHAM    NOTTINGHAM,28.95
12/01/2015,General Retail and Wholesale       ,TESCO STORES 6430        NOTTINGHAM,5.11
12/01/2015,General Retail and Wholesale       ,SAINSBURYS S/MKTS        BLOOMSBURY,3.35
12/01/2015,Restaurants and Bars               ,CAFE ROUGE               LONDON  WC,24.00
12/01/2015,Restaurants and Bars               ,DOG & PARTRIDGE          RUGELEY   ,28.90
12/01/2015,Travel - Air/Rail/Road             ,M6 TOLL                  TOLL CHARG,4.00
12/01/2015,Hotels and Accommodation           ,BALFOUR                  LONDON    ,20.00
12/01/2015,General Retail and Wholesale       ,WAITROSE 208             CHICHESTER,23.81
12/01/2015,Restaurants and Bars               ,PETIT PARIS              NOTTINGHAM,33.00
12/01/2015,Restaurants and Bars               ,FRATELLI DELI CAFE       EUSTON    ,6.20
12/01/2015,Restaurants and Bars               ,CARLUCCIOS LTD           BRUNSWICK ,24.00
12/01/2015,Hotels and Accommodation           ,BALFOUR                  LONDON    ,20.00
12/01/2015,Travel - Air/Rail/Road             ,EC MAINLINE CO T/O       DARLNGTN 7,44.00
12/01/2015,Travel - Air/Rail/Road             ,NEW SOUTHERN RAILW       CHICESTR 5,4.70
12/01/2015,General Retail and Wholesale       ,SAINSBURYS S/MKTS        HOLBORN   ,4.00
12/01/2015,Travel - Air/Rail/Road             ,SOLD BY GUARDWEY         SWTRAINS M,133.80
12/01/2015,Travel - Air/Rail/Road             ,PAY N DISPLAY            OFF ST SOU,10.00
12/01/2015,Travel - Air/Rail/Road             ,NCP LIMITED              NOTTM MOUN,5.13
12/01/2015,Restaurants and Bars               ,TABLE TABLE41010575      BALKERNE G,21.42
12/01/2015,Travel - Air/Rail/Road             ,APCOA NWR LIVERPOOL LI   LIVERPOOL ,13.00
13/01/2015,Automotive Fuel                    ,RSS WALCOT               BATH      ,20.05
13/01/2015,Travel - Air/Rail/Road             ,WEST COAST TRAINS        PRESTON 27,10.00
13/01/2015,Travel - Air/Rail/Road             ,SELFSERVE TICKET         SWTRAINSST,20.00
13/01/2015,Travel - Air/Rail/Road             ,CCP LONDON LTD           SALFORD   ,16.00
13/01/2015,Hotels and Accommodation           ,PARK PLAZA COUNTY HALL HO LONDON   ,29.53
13/01/2015,Medical Supplies and Services      ,BOOTS 1521               LONDON    ,2.89
13/01/2015,Restaurants and Bars               ,PITA PIT                 CHESSINGTO,7.25
13/01/2015,Travel - Air/Rail/Road             ,LUL TICKET MACHINE       HOLBORN   ,4.80
13/01/2015,Travel - Air/Rail/Road             ,LUL TICKET MACHINE       WESTMINSTE,4.80
13/01/2015,General Retail and Wholesale       ,WAITROSE 207             BLOOMSBURY,24.02
13/01/2015,Hotels and Accommodation           ,FITZWILLIAM HOTEL        BELFAST   ,87.00
13/01/2015,Restaurants and Bars               ,AUTOGRILL CATERING UK BEL SYDENHAM ,3.99
13/01/2015,Automotive Fuel                    ,MONKTON MOOR GARAGE      HARROGATE ,47.52
13/01/2015,Restaurants and Bars               ,BEEFEATER40015155        MOOR FARM ,12.09
13/01/2015,Hotels and Accommodation           ,THE TIMBERS COUNTRY HO   KINGS LYNN,17.60
13/01/2015,Travel - Air/Rail/Road             ,EC MAINLINE CO SST       LNDON N1 7,25.30
13/01/2015,Hotels and Accommodation           ,BEST WESTERN STOKE       BOREHAMWOO,17.25
13/01/2015,Travel - Air/Rail/Road             ,APCOA CONNECT - FGW      UXBRIDGE  ,11.50
13/01/2015,Travel - Air/Rail/Road             ,FGW TICKET OFFICE        BRISTOL TM,20.70
13/01/2015,Travel - Air/Rail/Road             ,E COAST MAIN LN CO LTD   PETERBOROU,13.00
13/01/2015,Restaurants and Bars               ,MANDARIN ORIENTAL BRASSE STAFFORD  ,22.26
13/01/2015,Restaurants and Bars               ,COSMOBA RESTAURANT       LONDON    ,30.30
13/01/2015,Hotels and Accommodation           ,MARRIOTT                 TWICKENHAM,30.50
13/01/2015,Travel - Air/Rail/Road             ,FRENCHGATE SHOPPING PKNG DONCASTER ,11.00
13/01/2015,Travel - Air/Rail/Road             ,WEST COAST TRAINS        STOKE-ON-T,4.00
13/01/2015,Travel - Air/Rail/Road             ,WEST COAST TRAINS        STAFFORD 1,8.00
13/01/2015,Travel - Air/Rail/Road             ,FIRST GTR WESTERN-       OXFORD    ,30.30
13/01/2015,Automotive Fuel                    ,SHELL KISLINGBURY        NORTHAMPTO,26.73
13/01/2015,Catering and Catering Supplies     ,WELCOME B/WAITROSE       NEWPORT PA,10.30
13/01/2015,Hotels and Accommodation           ,RIVERSIDE HOUSE HOTEL LT MILDENHALL,13.95
13/01/2015,Hotels and Accommodation           ,CASA HOTEL               CHESTERFIE,29.20
13/01/2015,Travel - Air/Rail/Road             ,METEOR CONNECT           HOUNSLOW  ,4.80
13/01/2015,Hotels and Accommodation           ,MANNING HOTELS LTD       SOUTHSEA  ,18.50
13/01/2015,Automotive Fuel                    ,CO-OP GROUP 014029       Petrol Dea,12.92
13/01/2015,Hotels and Accommodation           ,CEDAR COURT HOTEL        BRADFORD  ,23.20
13/01/2015,Hotels and Accommodation           ,MANNING HOTELS LTD       SOUTHSEA  ,18.50
13/01/2015,Hotels and Accommodation           ,MANNING HOTELS LTD       SOUTHSEA  ,18.50
13/01/2015,Travel - Air/Rail/Road             ,RINGGO                   CHILTERN  ,26.00
13/01/2015,Restaurants and Bars               ,KSAR                     LONDON    ,21.44
13/01/2015,Automotive Fuel                    ,S & M TYRES LTD          TRURO     ,27.51
13/01/2015,Travel - Air/Rail/Road             ,M6 TOLL                  TOLL CHARG,5.50
13/01/2015,Hotels and Accommodation           ,MACDONALD HOTELS MANCH   M'STER M1 ,25.35
13/01/2015,Miscellaneous Industrial/Commercial,ROWNHAMS EAST SERVICE  ST SOUTHAMPT,13.48
13/01/2015,Travel - Air/Rail/Road             ,ECML RETFORD PARKING     RETFORD   ,7.50
13/01/2015,Catering and Catering Supplies     ,FOOD STANDARDS AGE       LONDON  WC,8.10
13/01/2015,Restaurants and Bars               ,COSMOBA RESTAURANT       LONDON    ,16.45
13/01/2015,Travel - Air/Rail/Road             ,NCP LIMITED              RICHMOND M,18.66
13/01/2015,Leisure Activities                 ,FLEET RIVER BAKERY       0207691145,9.20
13/01/2015,Restaurants and Bars               ,ST PANCRAS INTL          LONDON    ,5.10
13/01/2015,Restaurants and Bars               ,COSMOBA RESTAURANT       LONDON    ,30.20
13/01/2015,Travel - Air/Rail/Road             ,EAST MIDLANDS TRAI       DERBY     ,51.50
13/01/2015,General Retail and Wholesale       ,CO-OP GROUP 310442       LINGFIELD ,5.58
13/01/2015,Travel - Air/Rail/Road             ,LUL TICKET MACHINE       COVENT GAR,20.00
13/01/2015,Travel - Air/Rail/Road             ,LUL TICKET OFFICE.       PADDINGTON,10.00
13/01/2015,Hotels and Accommodation           ,CEDAR COURT HOTEL        BRADFORD  ,22.80
13/01/2015,Hotels and Accommodation           ,MERCURE HOLLAND HOUSE HOT BRISTOL  ,37.45
13/01/2015,Travel - Air/Rail/Road             ,APCOA CONNECT - FGW      UXBRIDGE  ,14.40
13/01/2015,Travel - Air/Rail/Road             ,NCP LIMITED              NOTTM MOUN,8.20
13/01/2015,Travel - Air/Rail/Road             ,LONDON MIDLAND           METEOR PAR,10.00
13/01/2015,Restaurants and Bars               ,GIRAFFE CONCEPTS LTD     BRUNSWICK ,35.16
13/01/2015,Hotels and Accommodation           ,BEST WESTERN STOKE       BOREHAMWOO,16.50
13/01/2015,Hotels and Accommodation           ,IBIS NORTHAMPTON.        NORTHAMPTO,8.50
13/01/2015,Travel - Air/Rail/Road             ,LUL TICKET MACHINE       KINGS CROS,30.00
13/01/2015,Travel - Air/Rail/Road             ,ECML NEWARK PARKING      NEWARK    ,10.50
13/01/2015,Statutory Bodies                   ,WAKEFIELD COUNCIL        WAKEFIELD ,10.00
13/01/2015,Travel - Air/Rail/Road             ,APCOA CONNECT - FGW      UXBRIDGE  ,4.20
13/01/2015,Hotels and Accommodation           ,MERCURE LEICESTER        HOTEL 0116,20.47
13/01/2015,Travel - Air/Rail/Road             ,NCP LIMITED              NOTTM MOUN,15.38
13/01/2015,Restaurants and Bars               ,RISING SUN               LONDON    ,9.99
13/01/2015,Restaurants and Bars               ,FINBARRS RESTAURAN       DURHAM    ,36.65
13/01/2015,Mail and Courier Services          ,THE POST OFFICE          KEIGHLEY  ,7.15
13/01/2015,Travel - Air/Rail/Road             ,APCOA - NWR MANCHESTER   MANCHESTER,25.50
13/01/2015,Hotels and Accommodation           ,LINGFIELD PARK RECEPTION LINGFIELD ,30.25
13/01/2015,Hotels and Accommodation           ,BEST WESTERN STOKE       BOREHAMWOO,13.25
13/01/2015,Travel - Air/Rail/Road             ,APCOA NWR LIVERPOOL LI   LIVERPOOL ,14.50
13/01/2015,Automotive Fuel                    ,BP PETERSFIELD CONNECT   PETERSFIEL,15.20
13/01/2015,General Retail and Wholesale       ,SAINSBURYS S/MKTS        NOTTINGHAM,6.43
13/01/2015,Travel - Air/Rail/Road             ,BRISTOL STN              CAR PARK  ,15.20
13/01/2015,Hotels and Accommodation           ,PREMIER INN44533120      HIGH WYCOM,19.99
13/01/2015,Hotels and Accommodation           ,BEST WESTERN             01635 273 ,32.57
13/01/2015,Restaurants and Bars               ,EAT                      LONDON  WC,5.25
13/01/2015,Restaurants and Bars               ,PRET A MANGER            EUSTON STA,5.24
13/01/2015,Travel - Air/Rail/Road             ,LUL TICKET MACHINE       EUSTON    ,9.60
13/01/2015,Travel - Air/Rail/Road             ,LONDON MIDLAND           METEOR PAR,7.20
13/01/2015,Travel - Air/Rail/Road             ,SELFSERVE TICKET         SWTRAINS W,10.00
13/01/2015,Hotels and Accommodation           ,BEST WESTERN STOKE       BOREHAMWOO,17.25
13/01/2015,Restaurants and Bars               ,CAFE SPICE NAMASTE       LONDON E1 ,39.43
13/01/2015,Travel - Air/Rail/Road             ,SELFSERVE TICKET         SWTRAINS W,20.00
13/01/2015,Travel - Air/Rail/Road             ,LUL TICKET MACHINE       HOLBORN   ,4.80
13/01/2015,Travel - Air/Rail/Road             ,WEST COAST TRAINS        SOLIHULL 1,8.00
13/01/2015,Hotels and Accommodation           ,MERCURE LEICESTER        HOTEL 0116,20.48
13/01/2015,Hotels and Accommodation           ,AJAX HOTEL               LIMASSOL  ,70.94
13/01/2015,Hotels and Accommodation           ,MERCURE CHESTER EA       01244 3334,18.50
13/01/2015,Hotels and Accommodation           ,MERCURE CHESTER EA       01244 3334,20.70
13/01/2015,Travel - Air/Rail/Road             ,NCP LIMITED              BRADFORD S,8.20
13/01/2015,Automotive Fuel                    ,CO-OP GROUP 014449       Petrol Thr,54.21
13/01/2015,Travel - Air/Rail/Road             ,WEST COAST TRAINS        WIGAN 2363,12.00
13/01/2015,Automotive Fuel                    ,SYMONDS FORECOURTS       GLOUCESTER,29.92
13/01/2015,Travel - Air/Rail/Road             ,CMT (UK) LTD - GLASGOW   LONDON  W1,5.94
13/01/2015,Travel - Air/Rail/Road             ,LUL TICKET MACHINE       EUSTON    ,12.00
13/01/2015,Travel - Air/Rail/Road             ,NCP LIMITED              NOTTM ST J,9.74
13/01/2015,Travel - Air/Rail/Road             ,FGW CHIP1                CHIPPENHAM,7.10
13/01/2015,Hotels and Accommodation           ,BEST WESTERN STOKE       BOREHAMWOO,12.45
13/01/2015,Hotels and Accommodation           ,MERCURE LEICESTER        HOTEL 0116,20.48
13/01/2015,Hotels and Accommodation           ,HOLIDAY INN STOKE        0208 334 4,15.90
13/01/2015,Restaurants and Bars               ,BREWERS FAYRE 40536580   STOKE ON T,10.44
13/01/2015,Travel - Air/Rail/Road             ,ECML NEWARK PARKING      NEWARK    ,21.00
13/01/2015,Hotels and Accommodation           ,HILTON                   SHEFFIELD ,34.00
13/01/2015,Hotels and Accommodation           ,MACDONALD HOTELS MANCH   M'STER M1 ,26.00
13/01/2015,Restaurants and Bars               ,LE BISTROT PIERRE        NOTTINGHAM,22.95
13/01/2015,Restaurants and Bars               ,LITTLE CHEF DONCASTER    DONCASTER ,9.08
13/01/2015,Travel - Air/Rail/Road             ,WEST COAST TRAINS        STAFFORD 1,8.00
13/01/2015,General Retail and Wholesale       ,CO-OP GROUP 500593       STRAND    ,8.92
13/01/2015,Restaurants and Bars               ,BILLS KINGSWAY           LONDON    ,24.00
13/01/2015,General Retail and Wholesale       ,TESCO STORES 2249        LONDON    ,3.57
13/01/2015,Travel - Air/Rail/Road             ,WEST COAST TRAINS        CARLISLE 2,14.00
13/01/2015,Automotive Fuel                    ,BP GILHAMS S/STN         MIDHURST W,22.82
13/01/2015,Hotels and Accommodation           ,DOUBLE TREE HILTON       0207 24228,12.50
13/01/2015,Hotels and Accommodation           ,ST JAMES HOTEL           NOTTINGHAM,8.00
13/01/2015,Hotels and Accommodation           ,LINGFIELD PARK RECEPTION LINGFIELD ,24.50
13/01/2015,Restaurants and Bars               ,BILLS KINGSWAY           LONDON    ,24.00
13/01/2015,Restaurants and Bars               ,TABLE TABLE41017950      RACECOURSE,26.72
13/01/2015,Travel - Air/Rail/Road             ,APCOA - NWR MANCHESTER   MANCHESTER,25.50
13/01/2015,Books and Periodicals              ,WH SMITH                 EUSTON    ,3.29
13/01/2015,Travel - Air/Rail/Road             ,WEST COAST TRAINS        WOLVERHAMP,8.00
13/01/2015,Travel - Air/Rail/Road             ,RINGGO                   CHILTERN  ,6.70
13/01/2015,General Retail and Wholesale       ,TESCO STORES             WEYMOUTH  ,9.52
13/01/2015,General Retail and Wholesale       ,TESCO STORES             WEYMOUTH  ,7.26
13/01/2015,Restaurants and Bars               ,ENZO                     WEYMOUTH  ,27.00
13/01/2015,Travel - Air/Rail/Road             ,FLETCHERGATE CARPARK     NOTTINGHAM,3.50
13/01/2015,Restaurants and Bars               ,CARLUCCIOS LTD           BRUNSWICK ,19.00
13/01/2015,Travel - Air/Rail/Road             ,FLETCHERGATE CARPARK     NOTTINGHAM,3.50
13/01/2015,Travel - Air/Rail/Road             ,ECML NEWCASTLE PARKING   NEWCASTLE ,15.00
13/01/2015,Travel - Air/Rail/Road             ,LUL TICKET MACHINE       HOLBORN   ,20.00
13/01/2015,Travel - Air/Rail/Road             ,PAY N DISPLAY            OFF ST SOU,10.00
13/01/2015,Travel - Air/Rail/Road             ,SEVERN RIVER CROSSIN PLC BRISTOL   ,6.50
13/01/2015,Mail and Courier Services          ,POST OFFICE COUNTER      WOOLER    ,8.45
13/01/2015,Restaurants and Bars               ,HARVESTER                NOTTINGHAM,19.42
13/01/2015,Travel - Air/Rail/Road             ,CARPARK MACHINE          SWTRAINS F,15.00
13/01/2015,Restaurants and Bars               ,CAFFE NERO               KINGSWAY  ,3.60
13/01/2015,Travel - Air/Rail/Road             ,LONDON & SOUTH EAS       HAYES     ,17.00
14/01/2015,Automotive Fuel                    ,SHELL LEICESTER          OADBY     ,8.43
14/01/2015,Travel - Air/Rail/Road             ,GREATER ANGLIA T/O       BRENTWOD 6,21.40
14/01/2015,Hotels and Accommodation           ,HILTON GDN               BIRMINGHAM,50.80
14/01/2015,Automotive Fuel                    ,ESSO HANDBRIDGE SERVICES HANDBRIDGE,14.23
14/01/2015,Travel - Air/Rail/Road             ,LUL TICKET MACHINE       HOLBORN   ,30.00
14/01/2015,Restaurants and Bars               ,CARLUCCIOS LTD           BRUNSWICK ,20.50
14/01/2015,Medical Supplies and Services      ,BOOTS 1521               LONDON    ,4.59
14/01/2015,Travel - Air/Rail/Road             ,OYSTER AUTOTOPUP         0343 22212,20.00
14/01/2015,Travel - Air/Rail/Road             ,ECML RETFORD PARKING     RETFORD   ,22.50
14/01/2015,Restaurants and Bars               ,AQUILA                   BRISTOL   ,44.35
14/01/2015,Automotive Fuel                    ,SHELL KISLINGBURY        NORTHAMPTO,23.00
14/01/2015,Travel - Air/Rail/Road             ,TSGN                     HUNTINGDON,25.30
14/01/2015,Hotels and Accommodation           ,BEST WESTERN STOKE       BOREHAMWOO,20.70
14/01/2015,Travel - Air/Rail/Road             ,ROBIN CAR PARKS          SOUTHWELL ,8.50
14/01/2015,Miscellaneous Industrial/Commercial,BRISTOL CITY COUNCIL     BRISTOL   ,3.70
14/01/2015,Miscellaneous Industrial/Commercial,BRISTOL CITY COUNCIL     BRISTOL   ,3.70
14/01/2015,Restaurants and Bars               ,BREWERS FAYRE 40536580   STOKE ON T,12.78
14/01/2015,Automotive Fuel                    ,BP ABINGTON AVENUE CONNEC NORTHAMPT,29.00
14/01/2015,Automotive Fuel                    ,CO-OP GROUP PETROL       PETROL WEY,58.15
14/01/2015,Travel - Air/Rail/Road             ,OYSTER AUTOTOPUP         0343 22212,20.00
14/01/2015,Automotive Fuel                    ,ESSO MALTHURST CASTLE    WORCESTER ,9.74
14/01/2015,Hotels and Accommodation           ,HILTON GDN               BIRMINGHAM,24.70
14/01/2015,Automotive Fuel                    ,TESCO PAY AT PUMP 4035   GLOSSOP   ,13.13
14/01/2015,Travel - Air/Rail/Road             ,NCP LIMITED              NOTTM MOUN,15.38
14/01/2015,Travel - Air/Rail/Road             ,EAST MIDLANDS TRAI       NOTTINGHAM,58.40
14/01/2015,Travel - Air/Rail/Road             ,XC TRAINS LTD            BIRMINGHAM,16.20
14/01/2015,Restaurants and Bars               ,AQUILA                   BRISTOL   ,44.35
14/01/2015,Automotive Fuel                    ,SHELL GROVE              WOODBRIDGE,29.27
14/01/2015,Hotels and Accommodation           ,CASA HOTEL               CHESTERFIE,31.50
14/01/2015,Automotive Fuel                    ,SAINSBURYS PETROL        POUND LANE,26.24
14/01/2015,Travel - Air/Rail/Road             ,WESTFIELD E20            LONDON  E2,6.00
14/01/2015,Travel - Air/Rail/Road             ,LONDON OVERGROUND-       WATFORD 13,50.00
14/01/2015,Travel - Air/Rail/Road             ,METEOR CONNECT           HOUNSLOW  ,4.80
14/01/2015,Travel - Air/Rail/Road             ,NCP LIMITED              NOTTM MOUN,2.56
14/01/2015,Automotive Fuel                    ,TESCO PAY AT PUMP 3851   ROCHDALE  ,17.29
14/01/2015,Statutory Bodies                   ,PORTSMOUTH CITY CO       PORTSMOUTH,12.20
14/01/2015,Statutory Bodies                   ,PORTSMOUTH CITY CO       PORTSMOUTH,12.00
14/01/2015,Hotels and Accommodation           ,PREMIER INN44516325      PUTNEY BRI,21.90
14/01/2015,Travel - Air/Rail/Road             ,LUL TICKET MACHINE       HOUNSLOW C,30.00
14/01/2015,Automotive Fuel                    ,ESSO CITY SSTN           CAMBRIDGE ,13.28
14/01/2015,Automotive Fuel                    ,SAINSBURYS PETROL        HARROGATE ,14.32
14/01/2015,Restaurants and Bars               ,CARLUCCIOS LTD           BRUNSWICK ,25.55
14/01/2015,Catering and Catering Supplies     ,M&S SIMPLY FOOD - SSP    ST PANCRAS,6.78
14/01/2015,Hotels and Accommodation           ,WHITLEY HALL HOTEL LIM   SHEFFIELD ,48.15
14/01/2015,Automotive Fuel                    ,BP MANDEVILLE S/SERVE    NORTHOLT M,47.94
14/01/2015,Travel - Air/Rail/Road             ,APCOA PARKING (UK) LTD   UXBRIDGE  ,10.40
14/01/2015,Hotels and Accommodation           ,RICHMOND GATE HOTEL      RICHMOND T,26.50
14/01/2015,Travel - Air/Rail/Road             ,SELFSERVE TICKET         SWTRAINS R,20.00
14/01/2015,Travel - Air/Rail/Road             ,NCP LIMITED              RICHMOND M,18.66
14/01/2015,Restaurants and Bars               ,PRET A MANGER            HIGH HOLBU,4.40
14/01/2015,Restaurants and Bars               ,HOT CHILLI INDIAN        LONDON  WC,19.90
14/01/2015,Travel - Air/Rail/Road             ,OYSTER AUTOTOPUP         0343 22212,20.00
14/01/2015,Automotive Fuel                    ,TESCO PFS 3708           EXETER VAL,13.57
14/01/2015,Hotels and Accommodation           ,HOLIDAY INNS             PLYMOUTH  ,66.55
14/01/2015,Restaurants and Bars               ,POD                      LONDON    ,4.99
14/01/2015,Travel - Air/Rail/Road             ,LONDON MIDLAND           METEOR PAR,10.00
14/01/2015,Travel - Air/Rail/Road             ,NCP LIMITED              NOTTM MOUN,8.20
14/01/2015,Hotels and Accommodation           ,BEST WESTERN STOKE       BOREHAMWOO,21.90
14/01/2015,Hotels and Accommodation           ,IBIS NORTHAMPTON.        NORTHAMPTO,11.00
14/01/2015,Hotels and Accommodation           ,IBIS NORTHAMPTON.        NORTHAMPTO,8.50
14/01/2015,Travel - Air/Rail/Road             ,APCOA CONNECT - FGW      UXBRIDGE  ,4.20
14/01/2015,Restaurants and Bars               ,SAN CARLO                LEICESTER ,23.47
14/01/2015,Restaurants and Bars               ,MARCOS OLIVE BRANCH      BRISTOL   ,25.82
14/01/2015,Restaurants and Bars               ,BREWERS FAYRE 40536580   STOKE ON T,11.28
14/01/2015,Travel - Air/Rail/Road             ,APCOA - NWR MANCHESTER   MANCHESTER,29.00
14/01/2015,Hotels and Accommodation           ,CLOSEGATE HOTEL DEVELO   DURHAM    ,24.50
14/01/2015,Hotels and Accommodation           ,SANDMAN SIGNATURE HOTEL N NEWCASTLE,8.00
14/01/2015,Restaurants and Bars               ,JAMIE'S ITALIAN NEWCAS   NEWCASTLE ,25.50
14/01/2015,Hotels and Accommodation           ,LINGFIELD PARK RECEPTION LINGFIELD ,33.00
14/01/2015,Hotels and Accommodation           ,BEST WESTERN STOKE       BOREHAMWOO,20.70
14/01/2015,Restaurants and Bars               ,MCDONALDS                HIGH WYCOM,7.27
14/01/2015,Automotive Fuel                    ,SAINSBURYS PETROL        LYOS FARM ,30.86
14/01/2015,Hotels and Accommodation           ,BEST WESTERN             01635 273 ,56.08
14/01/2015,Hotels and Accommodation           ,BEST WESTERN STOKE       BOREHAMWOO,22.70
14/01/2015,Restaurants and Bars               ,RIVER LOUNGE ITALIAN     LONDON    ,31.33
14/01/2015,Travel - Air/Rail/Road             ,WEST COAST TRAINS        SOLIHULL 1,8.00
14/01/2015,Statutory Bodies                   ,WAKEFIELD COUNCIL        WAKEFIELD ,10.00
14/01/2015,Restaurants and Bars               ,SAN CARLO                LEICESTER ,23.47
14/01/2015,Travel - Air/Rail/Road             ,OYSTER AUTOTOPUP         0343 22212,20.00
14/01/2015,Automotive Fuel                    ,BP ESSEX GARAGE          MARYPORT C,40.26
14/01/2015,Restaurants and Bars               ,JAMIE'S ITALIAN NEWCAS   NEWCASTLE ,25.50
14/01/2015,Hotels and Accommodation           ,HILTON                   NORTHAMPTO,20.00
14/01/2015,Statutory Bodies                   ,RINGGO                   WOKING    ,10.40
14/01/2015,Hotels and Accommodation           ,BEST WESTERN STOKE       BOREHAMWOO,17.25
14/01/2015,Travel - Air/Rail/Road             ,WEST COAST TRAINS        STOKE-ON-T,274.00
14/01/2015,Restaurants and Bars               ,CAFE ROUGE               LEICESTER ,14.90
14/01/2015,Mail and Courier Services          ,POST OFFICE COUNTER      ALDERSHOT ,14.30
14/01/2015,Hotels and Accommodation           ,HOLIDAY INN EXPRESS      LUTON     ,14.50
14/01/2015,Restaurants and Bars               ,BREWERS FAYRE 40536580   STOKE ON T,17.94
14/01/2015,Hotels and Accommodation           ,LYSSES HOUSE HOTEL       FAREHAM   ,22.50
14/01/2015,Restaurants and Bars               ,CAFFE NERO               NOTTINGHAM,6.65
14/01/2015,Automotive Fuel                    ,LEEMING BAR MWSA         BEDALE    ,44.00
14/01/2015,Hotels and Accommodation           ,PARK PLAZA NOTTINGHAM    NOTTINGHAM,28.80
14/01/2015,General Retail and Wholesale       ,TESCO STORES 3474        LONDON    ,7.30
14/01/2015,General Retail and Wholesale       ,TESCO STORES             LONDON    ,3.00
14/01/2015,Restaurants and Bars               ,EAT                      LONDON  WC,9.90
14/01/2015,Catering and Catering Supplies     ,M&S SIMPLY FOOD - SSP    BRIGHTON S,3.50
14/01/2015,Catering and Catering Supplies     ,STARBUCKS UTTOXETER      UTTOXETER ,6.05
14/01/2015,General Retail and Wholesale       ,TESCO STORE 3327         UTTOXETER ,14.21
14/01/2015,Automotive Fuel                    ,TESCO PFS 2484           ERDINGTON ,14.67
14/01/2015,Restaurants and Bars               ,RIVER LOUNGE ITALIAN     LONDON    ,31.33
14/01/2015,Hotels and Accommodation           ,SECKFORD HALL HOTE       WOODBRIDGE,13.95
14/01/2015,Travel - Air/Rail/Road             ,OYSTER AUTOTOPUP         0343 22212,20.00
14/01/2015,Hotels and Accommodation           ,LINGFIELD PARK RECEPTION LINGFIELD ,33.50
14/01/2015,General Retail and Wholesale       ,SAINSBURYS               HOLBORN   ,10.00
14/01/2015,Hotels and Accommodation           ,THISTLE CITY BARBICAN    0871 977 2,25.00
14/01/2015,Hotels and Accommodation           ,GRANGE BLOOMS            GRANGEHOTE,29.05
14/01/2015,Restaurants and Bars               ,TABLE TABLE41017950      RACECOURSE,30.67
14/01/2015,Automotive Fuel                    ,BP BRAMPTON HUT S/SERVE  HUNTINGDON,22.30
14/01/2015,General Retail and Wholesale       ,TESCO STORES 3423        WEYMOUTH  ,26.88
14/01/2015,Restaurants and Bars               ,APPLEWOOD FARM           WORSLEY   ,8.50
14/01/2015,Restaurants and Bars               ,BOUNDRY STONE            MANCHESTER,17.60
14/01/2015,Hotels and Accommodation           ,GEORGE HOTEL-M           CRANBROOK ,28.35
14/01/2015,Hotels and Accommodation           ,BALFOUR                  LONDON    ,18.40
14/01/2015,Travel - Air/Rail/Road             ,LUL TICKET MACHINE       HOLBORN   ,9.60
14/01/2015,General Retail and Wholesale       ,SAINSBURYS S/MKTS        LONDON  SE,10.70
14/01/2015,Hotels and Accommodation           ,DEVONPORT HOUSE          LONDON  SE,13.50
14/01/2015,Restaurants and Bars               ,BIANCO RESTAURANT LTD    LONDON    ,27.68
14/01/2015,Restaurants and Bars               ,PITA PIT                 CHESSINGTO,8.75
14/01/2015,Automotive Fuel                    ,MALTHURST PETROLEU       HULL      ,10.64
14/01/2015,Automotive Fuel                    ,ESSO SOUTH PETHERTON SSTN SOUTH PET,38.44
14/01/2015,Automotive Fuel                    ,ESSO WHITEHOUSE SERVICE S KESTON   ,59.49
14/01/2015,General Retail and Wholesale       ,TESCO STORES 6430        NOTTINGHAM,12.06
14/01/2015,Travel - Air/Rail/Road             ,NCP LIMITED              NOTTM MOUN,15.38
15/01/2015,Automotive Fuel                    ,W M MORRISON             ROSS ON WY,22.52
15/01/2015,Automotive Fuel                    ,RSS WALCOT               BATH      ,13.15
15/01/2015,Automotive Fuel                    ,SHELL PETERBOROUGH       HADDON    ,41.48
15/01/2015,Restaurants and Bars               ,THIWANYA                 LONDON  WC,35.95
15/01/2015,Leisure Activities                 ,BRISTOL CITY COUNCIL -   BRISTOL   ,10.00
15/01/2015,Print and Advertising              ,INFORMA UK ECOM GB       LONDON    ,60.00
15/01/2015,Hotels and Accommodation           ,HOLIDAY INN COLCHE       0208 334 4,25.60
15/01/2015,Automotive Fuel                    ,CO-OP GROUP PETROL       PETROL PIC,46.31
15/01/2015,Leisure Activities                 ,ST MELLION GOLF CLUB     SALTASH   ,26.62
15/01/2015,Automotive Fuel                    ,SHELL MOULTON            NORTHAMPTO,10.01
15/01/2015,Hotels and Accommodation           ,RAMADA HOTELS & SUITES   LONDON    ,47.85
15/01/2015,General Retail and Wholesale       ,MARKS & SPENCER          COVENT GAR,19.58
15/01/2015,Travel - Air/Rail/Road             ,WEST COAST TRAINS        STAFFORD 8,23.00
15/01/2015,Hotels and Accommodation           ,MARRIOTT                 BEXLEYHEAT,34.90
15/01/2015,Hotels and Accommodation           ,CASA HOTEL               CHESTERFIE,22.00
15/01/2015,Hotels and Accommodation           ,MANNING HOTELS LTD       SOUTHSEA  ,10.00
15/01/2015,Restaurants and Bars               ,LL CASTELLETTO           LONDON    ,17.27
15/01/2015,Hotels and Accommodation           ,MANNING HOTELS LTD       SOUTHSEA  ,5.30
15/01/2015,Restaurants and Bars               ,LL CASTELLETTO           LONDON    ,14.24
15/01/2015,Restaurants and Bars               ,RAIL GOURMET UK          PORTSMOUTH,4.00
15/01/2015,Catering and Catering Supplies     ,M&S SIMPLY FOOD - SSP    RICHMOND S,2.01
15/01/2015,Travel - Air/Rail/Road             ,PARK MOBILE              B'HAM B4  ,4.00
15/01/2015,Travel - Air/Rail/Road             ,NORTHERN RAIL            NEWTON-LE-,8.40
15/01/2015,Travel - Air/Rail/Road             ,EC MAINLINE CO T/O       RETFORD 65,15.00
15/01/2015,General Retail and Wholesale       ,SAINSBURYS S/MKTS        HOLBORN   ,5.00
15/01/2015,Travel - Air/Rail/Road             ,LUL TICKET OFFICE.       EAST ACTON,20.00
15/01/2015,Automotive Fuel                    ,SHELL OAK LANE           TWICKENHAM,21.93
15/01/2015,Hotels and Accommodation           ,RICHMOND GATE HOTEL      RICHMOND T,26.50
15/01/2015,Travel - Air/Rail/Road             ,NCP LIMITED              RICHMOND M,18.66
15/01/2015,Restaurants and Bars               ,THE CHAMBELI REST        LONDON  WC,20.14
15/01/2015,Leisure Activities                 ,ST MELLION GOLF CLUB     SALTASH   ,42.06
15/01/2015,Hotels and Accommodation           ,LINGFIELD PARK RECEPTION LINGFIELD ,48.05
15/01/2015,Restaurants and Bars               ,DIWANA RESTAURANT LTD    LONDON  NW,27.61
15/01/2015,Automotive Fuel                    ,MURCO EAGLE THREE        NORTH YORK,24.59
15/01/2015,Hotels and Accommodation           ,RADISSON BLU HOTEL       BRISTOL   ,28.95
15/01/2015,Restaurants and Bars               ,PATISSERIE VALERIE       LONDON    ,3.50
15/01/2015,Travel - Air/Rail/Road             ,FGW SELF SERVICE         PADDINGTON,98.50
15/01/2015,Travel - Air/Rail/Road             ,LONDON MIDLAND           METEOR PAR,20.00
15/01/2015,Automotive Fuel                    ,SHELL TALKE              NEWCASTLE ,15.01
15/01/2015,Restaurants and Bars               ,SAN CARLO                LEICESTER ,27.14
15/01/2015,Hotels and Accommodation           ,HILTON GDN               BRISTOL   ,48.05
15/01/2015,Hotels and Accommodation           ,HILTON                   LONDON  W2,34.45
15/01/2015,Automotive Fuel                    ,BP ALVINGTON SERVICE STAT ALVINGTON,34.32
15/01/2015,Restaurants and Bars               ,FRANKLEY S/W BK          BIRMINGHAM,6.89
15/01/2015,Automotive Fuel                    ,G E MURGATROYD GEM DERWEN KESWICK  ,33.50
15/01/2015,Restaurants and Bars               ,EASTERN CITY             HOLBORN   ,27.83
15/01/2015,Automotive Fuel                    ,ROSS ON WYE SERVICE STATI HEREFORDS,36.79
15/01/2015,Automotive Fuel                    ,SHELL KINGSLEY           ST COLUMB ,22.95
15/01/2015,Hotels and Accommodation           ,ROYAL HOTEL              BIDEFORD  ,36.50
15/01/2015,Restaurants and Bars               ,MCDONALDS                FRADDON   ,4.89
15/01/2015,Hotels and Accommodation           ,MERCURE NORTON GRANGE HOT ROCHDALE ,25.40
15/01/2015,Automotive Fuel                    ,LEIGH DELAMERE WEST MWSA CHIPPENHAM,14.25
15/01/2015,Travel - Air/Rail/Road             ,BRISTOL STN              CAR PARK  ,7.60
15/01/2015,Automotive Fuel                    ,ESSO ILFORD SSTN         EASTERN AV,15.91
15/01/2015,Automotive Fuel                    ,SHELL GYPSY  346         LONDON SE1,10.11
15/01/2015,Hotels and Accommodation           ,THE HOTEL RUSSELL        LONDON    ,25.26
15/01/2015,Travel - Air/Rail/Road             ,SELFSERVE TICKET         SWTRAINS V,10.00
15/01/2015,Automotive Fuel                    ,PJ NICHOLLS LTD          TEWKESBURY,24.38
15/01/2015,Leisure Activities                 ,ST MELLION GOLF CLUB     SALTASH   ,26.62
15/01/2015,Travel - Air/Rail/Road             ,TFGM METROLINK           0161 20520,5.40
15/01/2015,Restaurants and Bars               ,SAN CARLO                LEICESTER ,27.14
15/01/2015,Hotels and Accommodation           ,LORDOS BEACH HOTEL       LARNACA   ,32.07
15/01/2015,Restaurants and Bars               ,ATRIUM                   LARNACA   ,10.93
15/01/2015,Hotels and Accommodation           ,MICHAELSON HOUSE HOTEL   BARROW IN ,21.95
15/01/2015,Automotive Fuel                    ,TEX NEWBY BRIDGE         LA128N 886,7.15
15/01/2015,Automotive Fuel                    ,TESCO PFS 5204           BRAMHALL  ,30.88
15/01/2015,Hotels and Accommodation           ,MICHAELSON HOUSE HOTEL   BARROW IN ,20.40
15/01/2015,Automotive Fuel                    ,CO-OP GROUP 014449       Petrol Thr,30.40
15/01/2015,Hotels and Accommodation           ,THISTLE NEWCASTLE HTL    0871977232,10.00
15/01/2015,Automotive Fuel                    ,SHELL NEWBROOK           BOLTON    ,12.00
15/01/2015,Automotive Fuel                    ,PJ NICHOLLS LTD          TEWKESBURY,34.06
15/01/2015,Automotive Fuel                    ,WEATHEROAKS SERVIC       SUTTON COL,27.50
15/01/2015,Restaurants and Bars               ,RONNIE SCOTTS CLUB       LONDON    ,41.80
15/01/2015,Restaurants and Bars               ,SAN CARLO                LEICESTER ,27.14
15/01/2015,Automotive Fuel                    ,AVOR GARAGES (N/E)       STANNINGTO,34.70
15/01/2015,Hotels and Accommodation           ,HOLIDAY INN EXPRESS      LUTON     ,8.00
15/01/2015,Automotive Fuel                    ,SAINSBURYS PETROL        BIRKENHEAD,21.70
15/01/2015,Restaurants and Bars               ,SHAH JEHAN               PETERBOROU,24.80
15/01/2015,Automotive Fuel                    ,LIPHOOK NORTH 229        LIPHOOK   ,20.02
15/01/2015,Hotels and Accommodation           ,WHITES                   BOLTON    ,25.95
15/01/2015,Restaurants and Bars               ,GOURMET BURGER KIT       0207 27824,14.55
15/01/2015,Automotive Fuel                    ,SHELL KINGS 587          BIRMINGHAM,35.73
15/01/2015,Hotels and Accommodation           ,THE ANGLESEY HOTEL       ALVERSTOKE,8.30
15/01/2015,General Retail and Wholesale       ,TESCO STORES 3474        LONDON    ,4.30
15/01/2015,Restaurants and Bars               ,BILLS KINGSWAY           LONDON    ,21.12
15/01/2015,Restaurants and Bars               ,BILLS KINGSWAY           LONDON    ,21.11
15/01/2015,Automotive Fuel                    ,Shell Newark             NEWARK    ,30.96
15/01/2015,Catering and Catering Supplies     ,WEST COAST TRAINS LTD    B'HAM B5 4,2.75
15/01/2015,Restaurants and Bars               ,MOTIJ HEEL               LONDON  WC,19.08
15/01/2015,Automotive Fuel                    ,TESCO PFS 2902           MAIDSTONE ,16.75
15/01/2015,General Retail and Wholesale       ,TESCO STORES (6885)      TUNBRIDGE ,3.00
15/01/2015,Automotive Fuel                    ,EMBANKMENT SERVICE       LONDON    ,38.01
15/01/2015,Hotels and Accommodation           ,THISTLE CITY BARBICAN    0871 977 2,28.92
15/01/2015,Travel - Air/Rail/Road             ,TFL CC/LEZ CHARGE        0845 900 1,11.50
15/01/2015,Travel - Air/Rail/Road             ,M6 TOLL                  TOLL CHARG,4.00
15/01/2015,Automotive Fuel                    ,SAINSBURYS S/MKTS        COLNE     ,18.38
15/01/2015,General Retail and Wholesale       ,SAINSBURY'S S/MKT        CANNOCK   ,2.25
15/01/2015,Restaurants and Bars               ,BREWERS FARYE 41511510   ORBITAL   ,19.87
15/01/2015,Travel - Air/Rail/Road             ,M6 TOLL                  TOLL CHARG,5.50
15/01/2015,Travel - Air/Rail/Road             ,M6 TOLL                  TOLL CHARG,4.00
15/01/2015,General Retail and Wholesale       ,TESCO STORES             WEYMOUTH  ,22.31
15/01/2015,Hotels and Accommodation           ,HOLIDAY INN EXPRESS      PRESTON   ,5.30
15/01/2015,Travel - Air/Rail/Road             ,PARK MOBILE              B'HAM B4  ,11.40
15/01/2015,Hotels and Accommodation           ,INTER CONTINE            LONDON    ,11.10
15/01/2015,Restaurants and Bars               ,PRET A MANGER            WESTERN CO,7.00
15/01/2015,Automotive Fuel                    ,CASINO FILLING STN       KENT      ,25.77
15/01/2015,General Retail and Wholesale       ,SACAT MARKS & SPENCER    BLUEWATER ,5.25
15/01/2015,Automotive Fuel                    ,CO-OP GROUP PETROL       BEVERLEY  ,25.00
15/01/2015,Hotels and Accommodation           ,HUNLEY HALL LLP          SALTBURN  ,86.90
15/01/2015,General Retail and Wholesale       ,CO-OP GROUP 160029       CALLINGTON,8.38
15/01/2015,Hotels and Accommodation           ,FANHAMS HALL HOTEL       WARE      ,24.20
15/01/2015,General Retail and Wholesale       ,SAINSBURYS S/MKTS        HOLBORN   ,3.00
15/01/2015,Travel - Air/Rail/Road             ,PAY N DISPLAY            OFF ST SOU,10.00
15/01/2015,Hotels and Accommodation           ,RADISSON BLU HOTEL       STANSTED  ,51.35
15/01/2015,Travel - Air/Rail/Road             ,WEST COAST TRAINS        MACLSFLD 2,8.00
15/01/2015,General Retail and Wholesale       ,SACAT MARKS & SPENCER    HALIFAX   ,7.10
15/01/2015,Medical Supplies and Services      ,BOOTS 5072               HALIFAX   ,6.99
15/01/2015,Hotels and Accommodation           ,HOLIDAY INN GATWICK      SURREY    ,52.00
15/01/2015,Travel - Air/Rail/Road             ,EC MAINLINE CO T/O       DONCSTER 6,19.00
16/01/2015,Travel - Air/Rail/Road             ,APCOA PARKING (UK) LTD   UXBRIDGE  ,10.20
16/01/2015,Travel - Air/Rail/Road             ,WEST COAST TRAINS        LONDON NW1,66.40
16/01/2015,General Retail and Wholesale       ,SAINSBURYS               HOLBORN   ,3.85
16/01/2015,Travel - Air/Rail/Road             ,EAST COAST               ON BOARD  ,3.35
16/01/2015,Travel - Air/Rail/Road             ,ECML RETFORD PARKING     RETFORD   ,7.50
16/01/2015,Automotive Fuel                    ,HALES SERVICE STATION    NORFOLK   ,31.19
16/01/2015,Hotels and Accommodation           ,MERCURE HOLLAND HOUSE HOT BRISTOL  ,13.00
16/01/2015,Travel - Air/Rail/Road             ,TSGN                     HUNTINGDON,25.30
16/01/2015,Travel - Air/Rail/Road             ,ROBIN CAR PARKS          SOUTHWELL ,8.50
16/01/2015,Automotive Fuel                    ,TEXACO CROSSGATES        LLANDRINDO,42.93
16/01/2015,Restaurants and Bars               ,IZ  THE TURKISH DELI LIMI LONDON   ,6.00
16/01/2015,Restaurants and Bars               ,UPPER CRUST TROLLEY      CARDIFF   ,2.45
16/01/2015,Travel - Air/Rail/Road             ,ARRIVA TRAINS WALE       BARRY     ,5.00
16/01/2015,Travel - Air/Rail/Road             ,LUL TICKET MACHINE       PADDINGTON,12.00
16/01/2015,Travel - Air/Rail/Road             ,GREATER ANGLIA           CAMBRIDGE ,23.00
16/01/2015,Travel - Air/Rail/Road             ,WEST COAST TRAINS        STAFFORD 1,16.00
16/01/2015,Hotels and Accommodation           ,MERCURE HOLLAND HOUSE HOT BRISTOL  ,59.60
16/01/2015,Automotive Fuel                    ,K R WILSON GARAGES LTD   WALES BAR ,13.33
16/01/2015,Automotive Fuel                    ,SAINSBURYS PETROL        POUND LANE,24.94
16/01/2015,Travel - Air/Rail/Road             ,LONDON & SOUTH EAS       LONDON SE9,8.60
16/01/2015,Hotels and Accommodation           ,THE BUCKINGHAM           GRANGEHOTE,5.50
16/01/2015,Hotels and Accommodation           ,THE BUCKINGHAM           GRANGEHOTE,5.50
16/01/2015,Travel - Air/Rail/Road             ,LUL TICKET MACHINE       PADDINGTON,20.00
16/01/2015,Travel - Air/Rail/Road             ,APCOA CONNECT - FGW      UXBRIDGE  ,5.50
16/01/2015,Hotels and Accommodation           ,WHITLEY HALL HOTEL LIM   SHEFFIELD ,40.00
16/01/2015,Travel - Air/Rail/Road             ,LUL TICKET MACHINE       NORTHOLT  ,17.00
16/01/2015,Automotive Fuel                    ,BP MALTHURST GILLINGHAM  BECCLES NO,22.60
16/01/2015,Travel - Air/Rail/Road             ,NCP LIMITED              RICHMOND M,12.51
16/01/2015,General Retail and Wholesale       ,SAINSBURYS S/MKTS        FULFORD LO,3.00
16/01/2015,Restaurants and Bars               ,43036690 COSTA COFFEE    BIRMINGHAM,4.65
16/01/2015,Travel - Air/Rail/Road             ,EAST MIDLAND CHESTERFIEL CHESTERFIE,21.00
16/01/2015,Automotive Fuel                    ,TESCO PFS 3708           EXETER VAL,11.73
16/01/2015,Automotive Fuel                    ,TESCO PFS 3736           LAUNCESTON,16.87
16/01/2015,Automotive Fuel                    ,GORDANO M 30137600       BRISTOL   ,64.22
16/01/2015,Travel - Air/Rail/Road             ,NCP LIMITED              NOTTM MOUN,8.20
16/01/2015,Travel - Air/Rail/Road             ,FGW SELF SERVICE         BRISTOL TM,66.00
16/01/2015,Hotels and Accommodation           ,THE BUCKINGHAM           GRANGEHOTE,22.25
16/01/2015,Automotive Fuel                    ,ESSO WALMER              DEAL      ,11.32
16/01/2015,Travel - Air/Rail/Road             ,Q PARK WATERSIDE         MANCHESTER,3.50
16/01/2015,Restaurants and Bars               ,STARBUCKS                LONDON    ,7.60
16/01/2015,Travel - Air/Rail/Road             ,ECML NEWARK PARKING      NEWARK    ,10.50
16/01/2015,Hotels and Accommodation           ,MERCURE LEICESTER        HOTEL 0116,24.00
16/01/2015,Hotels and Accommodation           ,HILTON                   LONDON  W1,35.00
16/01/2015,Travel - Air/Rail/Road             ,G L TAXIS                ST ALBANS ,10.90
16/01/2015,Automotive Fuel                    ,MALTHURST LIMITED        BINGLEY   ,14.35
16/01/2015,Hotels and Accommodation           ,HOLDSWORTH HOUSE H       HALIFAX   ,89.33
16/01/2015,Travel - Air/Rail/Road             ,APCOA - NWR MANCHESTER   MANCHESTER,21.00
16/01/2015,Hotels and Accommodation           ,MERCURE HOLLAND HOUSE HOT BRISTOL  ,21.20
16/01/2015,Travel - Air/Rail/Road             ,BRISTOL STN              CAR PARK  ,7.60
16/01/2015,Travel - Air/Rail/Road             ,PARK MOBILE              B'HAM B4  ,11.40
16/01/2015,Travel - Air/Rail/Road             ,LUL TICKET MACHINE       KINGS X (N,9.60
16/01/2015,Automotive Fuel                    ,SHELL LYME GREEN         MACCLESFIE,13.10
16/01/2015,Automotive Fuel                    ,TESCO PFS (5524)         SOMERSET  ,32.68
16/01/2015,Automotive Fuel                    ,HKS  THREEWAYS           NOTTINGHAM,25.16
16/01/2015,Travel - Air/Rail/Road             ,WEST COAST TRAINS        CREWE 1243,20.00
16/01/2015,Hotels and Accommodation           ,HOLDSWORTH HOUSE H       HALIFAX   ,103.45
16/01/2015,Hotels and Accommodation           ,HOLDSWORTH HOUSE H       HALIFAX   ,-89.00
16/01/2015,Travel - Air/Rail/Road             ,WEST COAST TRAINS        STAFFORD 1,12.00
16/01/2015,General Retail and Wholesale       ,SAINSBURYS S/MKTS        HOLBORN   ,2.20
16/01/2015,Travel - Air/Rail/Road             ,TFL.GOV.UK/CP            TFL TRAVEL,6.10
16/01/2015,Hotels and Accommodation           ,INTER CONTINE            LONDON    ,5.00
16/01/2015,Automotive Fuel                    ,BP GILHAMS S/STN         MIDHURST W,24.01
16/01/2015,Automotive Fuel                    ,SHELL TYNEMOUTH          NORTH SHIE,9.36
16/01/2015,Automotive Fuel                    ,RSS MILL LANE            NEWTON LE ,30.66
16/01/2015,Hotels and Accommodation           ,HOLDSWORTH HOUSE H       HALIFAX   ,58.71
16/01/2015,General Retail and Wholesale       ,SAINSBURYS               HOLBORN   ,15.20
16/01/2015,Hotels and Accommodation           ,RICHMOND GATE HOTEL      RICHMOND T,35.95
16/01/2015,Travel - Air/Rail/Road             ,OYSTER AUTOTOPUP         0343 22212,20.00
16/01/2015,Automotive Fuel                    ,ESSO LOCKSHEATH SSTN     PARK GATE ,61.37
16/01/2015,Automotive Fuel                    ,CHADDESLEY GARAGE        CHADDESLEY,13.42
16/01/2015,Hotels and Accommodation           ,HOTEL REMBRANDT          WEYMOUTH  ,51.65
16/01/2015,Travel - Air/Rail/Road             ,WEST COAST TRAINS        CARLISLE 2,10.00
16/01/2015,Automotive Fuel                    ,HAUGH HEAD GARAGE        WOOLER    ,41.46
16/01/2015,Hotels and Accommodation           ,HOLDSWORTH HOUSE H       HALIFAX   ,46.46
16/01/2015,Leisure Activities                 ,BRISTOL CITY COUNCIL -   BRISTOL   ,10.00
16/01/2015,Automotive Fuel                    ,MORRISONS PETROL         DOXFORD 10,15.01
16/01/2015,Hotels and Accommodation           ,CROWNE PLAZA             LEEDS     ,42.65
16/01/2015,Travel - Air/Rail/Road             ,APCOA NWR LIVERPOOL LI   LIVERPOOL ,13.00
17/01/2015,General Retail and Wholesale       ,T K MAXX                 LINCOLN   ,59.99
17/01/2015,Mail and Courier Services          ,POST OFFICE COUNTER      NORTHAMPTO,6.40
17/01/2015,Automotive Fuel                    ,CO-OP GROUP PETROL       CLITHEROE ,35.64
17/01/2015,Mail and Courier Services          ,POST OFFICE COUNTER      CAMBRIDGE ,7.15
18/01/2015,Travel - Air/Rail/Road             ,OYSTER AUTOTOPUP         0343 22212,20.00
18/01/2015,Automotive Fuel                    ,PACE THETFORD WEST       THETFORD N,4.99
18/01/2015,Hotels and Accommodation           ,RICHMOND GATE HOTEL      RICHMOND T,17.50
18/01/2015,Travel - Air/Rail/Road             ,OYSTER AUTOTOPUP         0343 22212,20.00
18/01/2015,Restaurants and Bars               ,HOLLYBROOK               DERBY     ,10.85
19/01/2015,Hotels and Accommodation           ,BEST WESTERN STOKE       BOREHAMWOO,19.60
19/01/2015,Restaurants and Bars               ,MINO JAPANESE RESTAURA   KINGSTON  ,32.00
19/01/2015,Travel - Air/Rail/Road             ,SELFSERVE TICKET         SWTRAINSST,20.00
19/01/2015,Restaurants and Bars               ,NANDOS NOTTINGHAM ANGE   NOTTINGHAM,23.00
19/01/2015,Automotive Fuel                    ,MALTHURST BILBROUGHT     TADCASTER ,14.02
19/01/2015,Travel - Air/Rail/Road             ,APCOA CONNECT - FGW      UXBRIDGE  ,5.60
19/01/2015,Travel - Air/Rail/Road             ,SL-NCP-ADAPTIS ECOM GA   NORFOLK   ,3.80
19/01/2015,Travel - Air/Rail/Road             ,TSGN                     HUNTINGDON,25.30
19/01/2015,Travel - Air/Rail/Road             ,APCOA FCC                HUNTINGDON,27.50
19/01/2015,Travel - Air/Rail/Road             ,LONDON MIDLAND           METEOR PAR,6.50
19/01/2015,Travel - Air/Rail/Road             ,E COAST MAIN LN CO LTD   PETERBOROU,13.00
19/01/2015,Travel - Air/Rail/Road             ,EAST MIDLANDS WELLINGBOR WELLINGBOR,5.00
19/01/2015,General Retail and Wholesale       ,TESCO STORES 5421        CARDIFF   ,9.24
19/01/2015,Restaurants and Bars               ,MINO JAPANESE RESTAURA   KINGSTON  ,32.00
19/01/2015,Restaurants and Bars               ,INDIAN VILLAGE           WYMONDHAM ,35.15
19/01/2015,Restaurants and Bars               ,MCDONALDS REST           HADLEIGH  ,3.49
19/01/2015,Travel - Air/Rail/Road             ,WEST COAST TRAINS        STAFFORD 8,310.60
19/01/2015,Travel - Air/Rail/Road             ,WEST COAST TRAINS        STAFFORD 1,8.00
19/01/2015,Travel - Air/Rail/Road             ,EC MAINLINE CO SST       DURHAM 708,11.50
19/01/2015,Travel - Air/Rail/Road             ,Q PARK SHEFFIELD STATION SHEFFIELD ,14.30
19/01/2015,Automotive Fuel                    ,FALCON SERVICE STATIONS- STAFFS    ,34.40
19/01/2015,Automotive Fuel                    ,Shell Marston Mort       BEDFORD   ,32.29
19/01/2015,Travel - Air/Rail/Road             ,LUL TICKET MACHINE       FINCHLEY C,50.00
19/01/2015,Travel - Air/Rail/Road             ,NCP LIMITED P&D          LONDON    ,5.00
19/01/2015,Hotels and Accommodation           ,FEATHERS (LEYLAND) LTD   LEYLAND   ,23.00
19/01/2015,Hotels and Accommodation           ,FEATHERS (LEYLAND) LTD   LEYLAND   ,23.00
19/01/2015,Computer Equipment & Services      ,SURVEYMONKEY.COM         LUXEMBOURG,299.00
19/01/2015,General Retail and Wholesale       ,TESCO STORES 6048        DEPTFORD  ,3.08
19/01/2015,Hotels and Accommodation           ,HILTON                   WATERLOO  ,18.25
19/01/2015,Restaurants and Bars               ,PICCANTE                 BIRMINGHAM,12.40
19/01/2015,Automotive Fuel                    ,SHELL HOSP BDG 353       TWICKENHAM,30.63
19/01/2015,Catering and Catering Supplies     ,WELCOME B/WAITROSE       WARWICK   ,7.85
19/01/2015,General Retail and Wholesale       ,TESCO STORES 6542        WOKING    ,3.59
19/01/2015,Restaurants and Bars               ,CHARLIE CHOYS AND        WOKING    ,18.65
19/01/2015,Hotels and Accommodation           ,BEST WESTERN STOKE       BOREHAMWOO,20.50
19/01/2015,Travel - Air/Rail/Road             ,TSGN                     BEDFORD   ,43.80
19/01/2015,Miscellaneous Industrial/Commercial,ROWNHAMS EAST SERVICE  ST SOUTHAMPT,10.01
19/01/2015,Travel - Air/Rail/Road             ,SELFSERVE TICKET         SWTRAINS R,20.00
19/01/2015,Hotels and Accommodation           ,MERCURE MANCHESTER       HOTEL 0161,20.35
19/01/2015,Restaurants and Bars               ,PIZZA EXPRESS 0121       COPTIC STR,26.65
19/01/2015,Travel - Air/Rail/Road             ,LONDON MIDLAND           METEOR PAR,10.00
19/01/2015,Catering and Catering Supplies     ,KEELE SOUTH WHS          KEELE     ,3.34
19/01/2015,Catering and Catering Supplies     ,WELCOME B/WAITROSE       WARWICK   ,8.15
19/01/2015,General Retail and Wholesale       ,TESCO STORES 6542        WOKING    ,1.49
19/01/2015,Restaurants and Bars               ,CHARLIE CHOYS AND        WOKING    ,18.65
19/01/2015,Travel - Air/Rail/Road             ,M6 TOLL                  TOLL CHARG,5.50
19/01/2015,Restaurants and Bars               ,VERDI                    LONDON WC1,18.85
19/01/2015,Hotels and Accommodation           ,BEST WESTERN STOKE       BOREHAMWOO,30.25
19/01/2015,Hotels and Accommodation           ,HOLIDAY INNS             LONDON BLO,17.55
19/01/2015,Travel - Air/Rail/Road             ,HOLMES CHAPEL STN TO     HOLMES CHA,126.50
19/01/2015,Travel - Air/Rail/Road             ,G L TAXIS                ST ALBANS ,12.20
19/01/2015,General Retail and Wholesale       ,SAINSBURYS S/MKTS        BIRMINGHAM,3.00
19/01/2015,Travel - Air/Rail/Road             ,SELFSERVE TICKET         NORBITON  ,10.00
19/01/2015,Travel - Air/Rail/Road             ,TICKETOFFICESALE         SWTRAINS F,8.00
19/01/2015,Travel - Air/Rail/Road             ,FGW PLYMTH               PLYMOUTH  ,9.30
19/01/2015,Restaurants and Bars               ,VERDI                    LONDON WC1,18.85
19/01/2015,Travel - Air/Rail/Road             ,LUL TICKET MACHINE       KINGS X (N,9.60
19/01/2015,Restaurants and Bars               ,PRUNO LTD                LIVERPOOL ,22.75
19/01/2015,Automotive Fuel                    ,CO-OP GROUP 014449       Petrol Thr,19.29
19/01/2015,General Retail and Wholesale       ,TESCO STORES 5223        BIRMINGHAM,1.98
19/01/2015,General Retail and Wholesale       ,TESCO STORES 5223        BIRMINGHAM,3.00
19/01/2015,Restaurants and Bars               ,DRAGON INN               BIRMINGHAM,11.29
19/01/2015,Restaurants and Bars               ,PRET A MANGER            102 SOUTHA,5.00
19/01/2015,Restaurants and Bars               ,CARLUCCIOS LTD           BRUNSWICK ,12.05
19/01/2015,Automotive Fuel                    ,WM MORRISONS PETRO       SEAFORD   ,11.26
19/01/2015,Travel - Air/Rail/Road             ,FGW TUNTN                TAUNTON   ,6.10
19/01/2015,Hotels and Accommodation           ,HOLIDAY INNS             LONDON BLO,17.55
19/01/2015,General Retail and Wholesale       ,SAINSBURYS S/MKTS        HOLBORN   ,7.04
19/01/2015,Restaurants and Bars               ,PIZZA EXPRESS            S'HAMPTON ,22.40
19/01/2015,Travel - Air/Rail/Road             ,RINGOPARKBYPHONE         SOUTH WEST,7.50
19/01/2015,Hotels and Accommodation           ,KAVI RESTAURANT          WOLVERHAMP,15.60
19/01/2015,Travel - Air/Rail/Road             ,ECML NEWARK PARKING      NEWARK    ,10.50
19/01/2015,Travel - Air/Rail/Road             ,WEST COAST TRAINS        CREWE 1243,10.00
19/01/2015,Travel - Air/Rail/Road             ,WEST COAST TRAINS        STAFFORD 1,8.00
19/01/2015,Automotive Fuel                    ,SAINSBURYS PETROL        BIRKENHEAD,53.32
19/01/2015,Catering and Catering Supplies     ,WELCOME BREAK WHS-STH    CORLEY    ,4.47
19/01/2015,Hotels and Accommodation           ,THE CROWN AND CROWN MORAN LONDON   ,21.50
19/01/2015,Mail and Courier Services          ,POST OFFICE COUNTER      BIRKENHEAD,7.44
19/01/2015,Travel - Air/Rail/Road             ,M6 TOLL                  TOLL CHARG,5.50
19/01/2015,Restaurants and Bars               ,MARY WARD CAFE           LONDON    ,7.55
19/01/2015,Restaurants and Bars               ,KIMCHEE                  LONDON  WC,20.41
19/01/2015,Catering and Catering Supplies     ,WELCOME BREAK/WAITROSE   MICHAELWOO,5.10
19/01/2015,Restaurants and Bars               ,PRET A MANGER            HIGH HOLBU,3.49
19/01/2015,Catering and Catering Supplies     ,M&S SIMPLY FOOD          SCOTCH COR,2.95
19/01/2015,Restaurants and Bars               ,PIZZA EXPRESS            S'HAMPTON ,22.40
19/01/2015,Catering and Catering Supplies     ,M&S SIMPLY FOOD - SSP    ST PANCRAS,4.15
19/01/2015,Travel - Air/Rail/Road             ,LOUGHBOROUGH SST         LOUGHBOROU,60.50
19/01/2015,Hotels and Accommodation           ,NOVOTEL LONDON WEMBLEY   LONDON    ,35.65
19/01/2015,Hotels and Accommodation           ,PARK PLAZA NOTTINGHAM    NOTTINGHAM,23.60
19/01/2015,Travel - Air/Rail/Road             ,GATWICK EXP.COM          EAST CROYD,31.05
19/01/2015,General Retail and Wholesale       ,SAINSBURYS S/MKTS        NORWICH ST,16.25
19/01/2015,Hotels and Accommodation           ,HI NORWICH               0208 334 4,13.75
19/01/2015,Miscellaneous Industrial/Commercial,INFRA RED UK RETAIL GE   NORWICH   ,1.10
19/01/2015,Travel - Air/Rail/Road             ,M6 TOLL                  TOLL CHARG,5.50
19/01/2015,Automotive Fuel                    ,CHADDESLEY GARAGE        CHADDESLEY,11.76
19/01/2015,Restaurants and Bars               ,PIZZA EXPRESS            S'HAMPTON ,22.40
19/01/2015,Restaurants and Bars               ,BRASSERIE VACHERIN       SUTTON    ,34.00
19/01/2015,Restaurants and Bars               ,COSTA COFFEE             DARLINGTON,5.65
19/01/2015,Travel - Air/Rail/Road             ,EC MAINLINE CO T/O       DARLNGTN 7,47.00
19/01/2015,Automotive Fuel                    ,BP OAKTREE CONNECT       LOWER KING,5.59
19/01/2015,General Retail and Wholesale       ,WM MORRISONS             SUTTON    ,2.58
19/01/2015,Restaurants and Bars               ,BRASSERIE VACHERIN       SUTTON    ,34.00
19/01/2015,Travel - Air/Rail/Road             ,WWW.METEOR-PERMITS       01279 6660,6.80
19/01/2015,General Retail and Wholesale       ,SAINSBURYS S/MKTS        HOLBORN   ,3.00
19/01/2015,Travel - Air/Rail/Road             ,PAY N DISPLAY            OFF ST SOU,10.00
19/01/2015,Statutory Bodies                   ,TAUNTON DEANE BOROUGH COU TAUNTON S,5.40
19/01/2015,Travel - Air/Rail/Road             ,CARPARK MACHINE          SWTRAINS F,7.50
19/01/2015,Automotive Fuel                    ,MALTHURST THIRSK         THIRSK    ,5.57
20/01/2015,Restaurants and Bars               ,JIN JIN                  KINGSTON U,26.33
20/01/2015,Travel - Air/Rail/Road             ,PARBOLD STN TO           PARBOLD   ,13.20
20/01/2015,Catering and Catering Supplies     ,M&S SIMPLY FOOD - SSP    PICADILLY ,4.25
20/01/2015,Restaurants and Bars               ,UPPERCRUST               NOTTINGHAM,3.99
20/01/2015,General Retail and Wholesale       ,SAINSBURYS               HOLBORN   ,5.00
20/01/2015,Restaurants and Bars               ,ROSSO POMODORO           LONDON    ,26.67
20/01/2015,Restaurants and Bars               ,NAKORN THAI LTD          LUTON     ,22.00
20/01/2015,Travel - Air/Rail/Road             ,LONDON MIDLAND TIC       TRING     ,28.60
20/01/2015,Travel - Air/Rail/Road             ,ROBIN CAR PARKS          SOUTHWELL ,8.50
20/01/2015,Hotels and Accommodation           ,HILTON GARDEN INN        HOUNSLOW  ,7.00
20/01/2015,Restaurants and Bars               ,HAN                      BRISTOL   ,35.00
20/01/2015,Travel - Air/Rail/Road             ,E COAST MAIN LN CO LTD   PETERBOROU,13.00
20/01/2015,Automotive Fuel                    ,W M MORRISON             BROMSGROVE,43.28
20/01/2015,General Retail and Wholesale       ,TESCO STORE 2081         BARRY     ,17.28
20/01/2015,Restaurants and Bars               ,JIN JIN                  KINGSTON U,26.33
20/01/2015,Travel - Air/Rail/Road             ,EC MAINLINE CO T/O       DONCSTER 6,15.00
20/01/2015,Automotive Fuel                    ,PACE MARTINEAU           NORWICH   ,2.10
20/01/2015,Automotive Fuel                    ,PACE MARTINEAU           NORWICH   ,2.10
20/01/2015,Miscellaneous Industrial/Commercial,ACLE CONNECT             NORWICH   ,6.59
20/01/2015,Restaurants and Bars               ,THE MARSH HARRIER        NORWICH   ,13.45
20/01/2015,Travel - Air/Rail/Road             ,WEST COAST TRAINS        LNDN NW1 9,17.50
20/01/2015,Travel - Air/Rail/Road             ,LONDON MIDLAND           METEOR PAR,14.00
20/01/2015,Catering and Catering Supplies     ,M&S SIMPLY FOOD          TDDGTN SVS,19.18
20/01/2015,Travel - Air/Rail/Road             ,LUL TICKET MACHINE       CHANCERY L,30.00
20/01/2015,Hotels and Accommodation           ,THORNTON HALL HOTE       WIRRAL    ,27.00
20/01/2015,Hotels and Accommodation           ,HILTON                   WATERLOO  ,17.70
20/01/2015,Restaurants and Bars               ,MCDONALDS                WALWORTH  ,3.18
20/01/2015,Hotels and Accommodation           ,VILLAGE HOTEL DUDLEY (B) DUDLEY    ,15.30
20/01/2015,Restaurants and Bars               ,SHERE KHAN               BIRMINGHAM,22.00
20/01/2015,Hotels and Accommodation           ,VILLAGE HOTEL DUDLEY (B) DUDLEY    ,25.80
20/01/2015,General Retail and Wholesale       ,ASDA STORE 4443          TWICKENHAM,4.37
20/01/2015,Restaurants and Bars               ,BEEFEATER40012785        FOUNTAIN  ,6.25
20/01/2015,Restaurants and Bars               ,WAGAMAMA KINGSTON        KINGSTON  ,20.70
20/01/2015,Hotels and Accommodation           ,THE FRENCHGATE           RICHMOND Y,259.85
20/01/2015,Restaurants and Bars               ,NAKORN THAI LTD          LUTON     ,22.00
20/01/2015,General Retail and Wholesale       ,SAINSBURYS S/MKTS        FAIRFIELD ,10.00
20/01/2015,Automotive Fuel                    ,TEXPARKGARAGE            886901BB19,20.34
20/01/2015,Hotels and Accommodation           ,VILLAGE HOTEL LEEDS (B)  LEEDS     ,40.00
20/01/2015,Restaurants and Bars               ,SITAR                    LONDON  WC,35.25
20/01/2015,Mail and Courier Services          ,PADDINGTON STATION       LONDON    ,10.00
20/01/2015,Automotive Fuel                    ,SHELL                    TWICKENHAM,21.63
20/01/2015,General Retail and Wholesale       ,TESCO STORES 6174        TWICKENHAM,18.91
20/01/2015,General Retail and Wholesale       ,SAINSBURYS SMKT          PICADILLY ,3.00
20/01/2015,Restaurants and Bars               ,PRET A MANGER            40 BERNARD,7.50
20/01/2015,Restaurants and Bars               ,PRET A MANGER            HIGH HOLBU,7.39
20/01/2015,Restaurants and Bars               ,PRET A MANGER            HIGH HOLBU,4.40
20/01/2015,Restaurants and Bars               ,THE CHAMBELI REST        LONDON  WC,15.69
20/01/2015,Automotive Fuel                    ,ROGERS GARAGE            SOUTH MOLT,26.31
20/01/2015,Hotels and Accommodation           ,PARKHOUSE MOTEL          SALISBURY ,17.95
20/01/2015,Automotive Fuel                    ,MURCO EAGLE THREE        NORTH YORK,14.16
20/01/2015,Hotels and Accommodation           ,KENWOOD HALL             SHEFFIELD ,26.20
20/01/2015,Travel - Air/Rail/Road             ,SELFSERVE TICKET         SWTRAINS W,12.70
20/01/2015,Restaurants and Bars               ,ATLAS BAR                LEEDS     ,12.45
20/01/2015,Restaurants and Bars               ,DELICE DE FRANCE         LONDON    ,2.85
20/01/2015,Travel - Air/Rail/Road             ,LONDON MIDLAND           METEOR PAR,37.00
20/01/2015,General Retail and Wholesale       ,ASDA STORE 4443          TWICKENHAM,15.15
20/01/2015,Restaurants and Bars               ,WAGAMAMA KINGSTON        KINGSTON  ,20.40
20/01/2015,Restaurants and Bars               ,BEEFEATER40012785        FOUNTAIN  ,6.25
20/01/2015,Hotels and Accommodation           ,BEST WESTERN STOKE       BOREHAMWOO,13.25
20/01/2015,Restaurants and Bars               ,CARLUCCIOS LTD           BRUNSWICK ,24.37
20/01/2015,Restaurants and Bars               ,ANDARO LIMITED           TOFT BOURN,20.45
20/01/2015,Travel - Air/Rail/Road             ,NCP LIMITED              NOTTM MOUN,8.20
20/01/2015,Automotive Fuel                    ,COTE HILL SERVICE STAT   HALIFAX   ,15.36
20/01/2015,Hotels and Accommodation           ,HILTON                   STANSTED  ,28.60
20/01/2015,Hotels and Accommodation           ,CROWNE PLAZA BIRMINGHA   BIRMINGHAM,26.90
20/01/2015,Travel - Air/Rail/Road             ,NCP LIMITED              NOTTM MOUN,15.38
20/01/2015,Restaurants and Bars               ,PIZZA EXPRESS            S'HAMPTON ,21.20
20/01/2015,Travel - Air/Rail/Road             ,LUL TICKET MACHINE       RUSSELL SQ,30.00
20/01/2015,Restaurants and Bars               ,SITAR                    LONDON  WC,36.00
20/01/2015,Travel - Air/Rail/Road             ,NCP LIMITED - MJV        CTRL GMEX ,10.50
20/01/2015,Hotels and Accommodation           ,REGENCY PARK HOTEL LTD   THATCHAM  ,24.00
20/01/2015,General Retail and Wholesale       ,SAINSBURYS S/MKTS        HOLBORN   ,4.20
20/01/2015,Restaurants and Bars               ,SITAR                    LONDON  WC,36.00
20/01/2015,Travel - Air/Rail/Road             ,LUL TICKET MACHINE       PADDINGTON,4.80
20/01/2015,Hotels and Accommodation           ,MARRIOTT                 MANCHESTER,14.36
20/01/2015,Hotels and Accommodation           ,CEDAR COURT HOTEL        HARROGATE ,12.75
20/01/2015,Automotive Fuel                    ,EMSWORTH SF CONNECT      EMSWORTH  ,30.76
20/01/2015,Travel - Air/Rail/Road             ,M6 TOLL                  TOLL CHARG,5.50
20/01/2015,Travel - Air/Rail/Road             ,PARK MOBILE              B'HAM B4  ,11.40
20/01/2015,General Retail and Wholesale       ,MARKS & SPENCER          HEDGE END ,8.30
20/01/2015,Travel - Air/Rail/Road             ,SELFSERVE TICKET         NORBITON  ,20.00
20/01/2015,Hotels and Accommodation           ,THE PRIORY BAY HOTEL     SEAVIEW   ,51.87
20/01/2015,Travel - Air/Rail/Road             ,WEST COAST TRAINS        SOLIHULL 1,16.00
20/01/2015,Catering and Catering Supplies     ,WELCOME BREAK WAITROSE   BISHOPS ST,21.90
20/01/2015,Automotive Fuel                    ,BP MOTO LANCASTER NORTH  LANCASTER ,20.89
20/01/2015,Automotive Fuel                    ,BP ESSEX GARAGE          MARYPORT C,28.23
20/01/2015,Hotels and Accommodation           ,MERCURE HULL NORTH       HOTEL 0148,30.50
20/01/2015,Automotive Fuel                    ,TESCO PFS 5204           BRAMHALL  ,2.63
20/01/2015,Restaurants and Bars               ,UPPER CRUST              MANCHESTER,6.29
20/01/2015,Travel - Air/Rail/Road             ,NCP LTD                  MANCHESTER,12.00
20/01/2015,Automotive Fuel                    ,WEATHEROAKS SERVIC       SUTTON COL,20.05
20/01/2015,Restaurants and Bars               ,LEGEND BIRMINGHAM        BIRMINGHAM,29.80
20/01/2015,Restaurants and Bars               ,THE LOFT LOUNGE LTD      B'HAM B5  ,3.95
20/01/2015,Restaurants and Bars               ,CARLUCCIOS LTD           BRUNSWICK ,24.36
20/01/2015,General Retail and Wholesale       ,SAINSBURYS               HOLBORN   ,8.05
20/01/2015,Travel - Air/Rail/Road             ,NCP LIMITED              NOTTM MOUN,8.20
20/01/2015,Restaurants and Bars               ,ATLAS BAR                LEEDS     ,12.46
20/01/2015,Hotels and Accommodation           ,KAVI RESTAURANT          WOLVERHAMP,13.70
20/01/2015,Automotive Fuel                    ,SAINSBURYS PETROL        BIRKENHEAD,19.57
20/01/2015,Restaurants and Bars               ,MOAT HOUSE RESTAURANT    STAFFORD  ,41.50
20/01/2015,Travel - Air/Rail/Road             ,ECML NEWCASTLE PARKING   NEWCASTLE ,15.00
20/01/2015,General Retail and Wholesale       ,UPPER CRUST              CREWE     ,9.09
20/01/2015,Travel - Air/Rail/Road             ,WEST COAST TRAINS        STAFFORD 1,8.00
20/01/2015,General Retail and Wholesale       ,CO-OP GROUP 070791       Cricklewoo,5.19
20/01/2015,Hotels and Accommodation           ,THE CROWN AND CROWN MORAN LONDON   ,18.80
20/01/2015,Hotels and Accommodation           ,THE STAG                 NEWPORT   ,21.45
20/01/2015,Travel - Air/Rail/Road             ,WIGHTLINK FERRIES PSD    PORTSMOUTH,4.25
20/01/2015,Books and Periodicals              ,JOHN CATT EDUC           01394 3898,14.86
20/01/2015,General Retail and Wholesale       ,WAITROSE 207             BLOOMSBURY,2.99
20/01/2015,Restaurants and Bars               ,YO! SUSHI                RUSSELL   ,23.60
20/01/2015,Hotels and Accommodation           ,DOUBLE TREE HILTON       0207 24228,18.09
20/01/2015,Restaurants and Bars               ,BREWERS FAYRE 41012400   DUKE OF YO,3.99
20/01/2015,Restaurants and Bars               ,BREWERS FAYRE 41012400   DUKE OF YO,16.93
20/01/2015,Books and Periodicals              ,WATERSTONES              TRAFALGAR ,9.99
20/01/2015,Travel - Air/Rail/Road             ,TFL.GOV.UK/CP            TFL TRAVEL,4.60
20/01/2015,Hotels and Accommodation           ,NOVOTEL LONDON WEMBLEY   LONDON    ,28.00
20/01/2015,Travel - Air/Rail/Road             ,WWW.ANYCABS.CO.UK        NORTH HARR,7.00
20/01/2015,Restaurants and Bars               ,THE MARSH HARRIER        NORWICH   ,11.95
20/01/2015,Restaurants and Bars               ,BUTTERFLY CAFE           NORWICH   ,5.60
20/01/2015,Hotels and Accommodation           ,THE NOTTINGHAM BELFRY    NOTTINGHAM,32.10
20/01/2015,Restaurants and Bars               ,PRET A MANGER            PRET A MAN,6.15
20/01/2015,Travel - Air/Rail/Road             ,WEST COAST TRAINS        WOLVERHAMP,5.30
20/01/2015,Travel - Air/Rail/Road             ,WEST COAST TRAINS        WOLVERHAMP,4.00
20/01/2015,Catering and Catering Supplies     ,FOOD STANDARDS AGE       LONDON  WC,9.10
20/01/2015,Restaurants and Bars               ,CASA NOSTRA LTD          SUTTON    ,27.00
20/01/2015,Restaurants and Bars               ,PIZZA EXPRESS 0121       COPTIC STR,21.00
20/01/2015,Automotive Fuel                    ,Shell Birdham Serv       CHICHESTER,28.76
20/01/2015,Automotive Fuel                    ,SHELL SUTTON ELMS        LEICESTER ,12.24
20/01/2015,General Retail and Wholesale       ,ASDA STORES              SUTTON    ,6.38
20/01/2015,Restaurants and Bars               ,CASA NOSTRA LTD          SUTTON    ,27.00
20/01/2015,Restaurants and Bars               ,BREWERS FAYRE 41020040   RISING SUN,17.68
20/01/2015,Restaurants and Bars               ,ATLAS BAR                LEEDS     ,12.45
20/01/2015,Leisure Activities                 ,BRISTOL CITY COUNCIL -   BRISTOL   ,10.00
21/01/2015,Restaurants and Bars               ,MONTYS TANDOORI RESTAURA KINGSTON U,24.30
21/01/2015,Restaurants and Bars               ,COTE CAMDEN              LONDON  NW,42.92
21/01/2015,Travel - Air/Rail/Road             ,FIRST HULL TRAINS        HULL 8788 ,51.50
21/01/2015,Travel - Air/Rail/Road             ,ECML RETFORD PARKING     RETFORD   ,15.00
21/01/2015,Restaurants and Bars               ,BREWERS FAYRE 41518225   WESSINGTON,14.55
21/01/2015,Restaurants and Bars               ,BLANC BRASSERIE          PORTSMOUTH,34.00
21/01/2015,Travel - Air/Rail/Road             ,EC MAINLINE CO SST       LNDON N1 7,25.30
21/01/2015,Travel - Air/Rail/Road             ,APCOA CONNECT - FGW      UXBRIDGE  ,11.50
21/01/2015,Travel - Air/Rail/Road             ,ROBIN CAR PARKS          SOUTHWELL ,8.50
21/01/2015,Automotive Fuel                    ,LEIGH DELAMERE WEST MWSA CHIPPENHAM,38.60
21/01/2015,Automotive Fuel                    ,SHELL MOULTON            NORTHAMPTO,14.03
21/01/2015,Hotels and Accommodation           ,THE BEDFORD SWAN HOTEL   BEDFORD   ,52.35
21/01/2015,Automotive Fuel                    ,ROSS ON WYE SERVICE STATI HEREFORDS,4.70
21/01/2015,Hotels and Accommodation           ,HOLIDAY INN BROMSG       BROMSGROVE,23.95
21/01/2015,Travel - Air/Rail/Road             ,FIRST GREATER WESTERN    SWINDON   ,3.10
21/01/2015,General Retail and Wholesale       ,W M MORRISON PLC         NORWICH   ,4.94
21/01/2015,Restaurants and Bars               ,THE MARSH HARRIER        NORWICH   ,11.24
21/01/2015,Restaurants and Bars               ,MCDONALDS REST           NORWICH TU,3.39
21/01/2015,Hotels and Accommodation           ,THE ACADEMY HOTEL        LONDON    ,3.25
21/01/2015,Restaurants and Bars               ,MEVAN OCAKBASI RESTAURANT HITCHIN  ,30.30
21/01/2015,Automotive Fuel                    ,WOODSIDE GARAGE          SOUTH MOLT,15.56
21/01/2015,Hotels and Accommodation           ,IMPERIAL HOTEL           TORQUAY   ,64.05
21/01/2015,Hotels and Accommodation           ,OAKS  HOTEL              BURY      ,53.45
21/01/2015,Hotels and Accommodation           ,MERCURE SOUTHGATE HOTEL & EXETER DE,21.45
21/01/2015,Hotels and Accommodation           ,PARK INN                 NORTHAMPTO,25.15
21/01/2015,Restaurants and Bars               ,ROYAL OAK                WIRRAL    ,10.98
21/01/2015,Hotels and Accommodation           ,OAKS  HOTEL              BURY      ,24.55
21/01/2015,Restaurants and Bars               ,ANTONELLOS               LEYLAND   ,15.29
21/01/2015,Hotels and Accommodation           ,OAKS  HOTEL              BURY      ,26.25
21/01/2015,Restaurants and Bars               ,ANTONELLOS               LEYLAND   ,17.29
21/01/2015,Catering and Catering Supplies     ,M&S SIMPLY FOOD - SSP    WATERLOO R,5.25
21/01/2015,Automotive Fuel                    ,CO-OP GROUP PETROL       PETROL RIV,21.11
21/01/2015,Hotels and Accommodation           ,VILLAGE HOTEL DUDLEY (B) DUDLEY    ,16.05
21/01/2015,Hotels and Accommodation           ,VILLAGE HOTEL DUDLEY (B) DUDLEY    ,16.55
21/01/2015,Restaurants and Bars               ,BEEFEATER40012785        FOUNTAIN  ,8.75
21/01/2015,Restaurants and Bars               ,NANDOS HOUNSLOW          HOUNSLOW  ,18.40
21/01/2015,Restaurants and Bars               ,LUSSO                    HOUNSLOW  ,3.00
21/01/2015,Restaurants and Bars               ,NANDOS HOUNSLOW          HOUNSLOW  ,1.50
21/01/2015,Automotive Fuel                    ,ESSO CITY SSTN           CAMBRIDGE ,13.21
21/01/2015,Travel - Air/Rail/Road             ,EC MAINLINE CO T/O       RETFORD 65,15.00
21/01/2015,Automotive Fuel                    ,SAINSBURYS PETROL        HARROGATE ,13.84
21/01/2015,Hotels and Accommodation           ,CEDAR COURT HOTEL        BRADFORD  ,23.90
21/01/2015,General Retail and Wholesale       ,WAITROSE 601             HIGH HOLBO,18.70
21/01/2015,Travel - Air/Rail/Road             ,TSGN                     BEDFORD   ,25.00
21/01/2015,Travel - Air/Rail/Road             ,LUL TICKET OFFICE.       HOLBRON   ,20.00
21/01/2015,Hotels and Accommodation           ,PARK INN                 NORTHAMPTO,25.40
21/01/2015,Automotive Fuel                    ,BP NORTHOLT PARK SF CONNE NORTHOLT ,32.66
21/01/2015,Catering and Catering Supplies     ,FOOD STANDARDS AGE       LONDON  WC,4.60
21/01/2015,Hotels and Accommodation           ,RICHMOND GATE HOTEL      RICHMOND T,25.50
21/01/2015,Travel - Air/Rail/Road             ,NCP LIMITED              RICHMOND M,18.66
21/01/2015,Restaurants and Bars               ,LI VELI                  LONDON    ,30.00
21/01/2015,Restaurants and Bars               ,PRET A MANGER            HIGH HOLBU,7.14
21/01/2015,Restaurants and Bars               ,PRET A MANGER            HIGH HOLBU,8.30
21/01/2015,Restaurants and Bars               ,MOTIJ HEEL               LONDON  WC,12.45
21/01/2015,Restaurants and Bars               ,LI VELI                  LONDON    ,30.00
21/01/2015,Travel - Air/Rail/Road             ,APCOA CONNECT - FGW      UXBRIDGE  ,8.40
21/01/2015,Automotive Fuel                    ,TESCO PFS 3708           EXETER VAL,10.11
21/01/2015,Hotels and Accommodation           ,IMPERIAL HOTEL           TORQUAY   ,67.00
21/01/2015,Automotive Fuel                    ,TESCO PFS 3736           LAUNCESTON,17.43
21/01/2015,Restaurants and Bars               ,VIVA RESTAURANT (LEEDS   LEEDS     ,33.15
21/01/2015,Restaurants and Bars               ,PIZZA EXPRESS            SLOUGH 257,28.35
21/01/2015,Restaurants and Bars               ,BEEFEATER40012785        FOUNTAIN  ,8.75
21/01/2015,Restaurants and Bars               ,NANDOS HOUNSLOW          HOUNSLOW  ,12.40
21/01/2015,Restaurants and Bars               ,LUSSO                    HOUNSLOW  ,3.95
21/01/2015,Restaurants and Bars               ,THISTLE CITY BARBICAN    LONDON    ,39.40
21/01/2015,Restaurants and Bars               ,POD                      LONDON    ,8.48
21/01/2015,Hotels and Accommodation           ,BEST WESTERN STOKE       BOREHAMWOO,13.95
21/01/2015,Hotels and Accommodation           ,HILTON GDN               BRISTOL   ,30.40
21/01/2015,Automotive Fuel                    ,MURCO ELTON              GLOUCESTER,23.20
21/01/2015,Hotels and Accommodation           ,CROWNE PLAZA BIRMINGHA   BIRMINGHAM,20.00
21/01/2015,Restaurants and Bars               ,CAFE MODE                LONDON    ,27.83
21/01/2015,Restaurants and Bars               ,BROWN COW & DRAGON       M6693     ,48.05
21/01/2015,Automotive Fuel                    ,MURCO WICK               BRISTOL   ,15.15
21/01/2015,Restaurants and Bars               ,CHETTINAD RESTAURANT     LONDON    ,31.55
21/01/2015,Automotive Fuel                    ,LAVENDER HILL            ENFIELD   ,8.83
21/01/2015,Hotels and Accommodation           ,VILLAGE H BOURNEMOUTH (B BOURNEMOUT,11.50
21/01/2015,Travel - Air/Rail/Road             ,NEW SOUTHERN RAILW       HAYWARDS 5,25.50
21/01/2015,Travel - Air/Rail/Road             ,METEOR PARKING LTD       0845603619,8.20
21/01/2015,Mail and Courier Services          ,POST OFFICE COUNTER      HOVE      ,7.15
21/01/2015,Automotive Fuel                    ,Shell Emsworth           EMSWORTH  ,23.32
21/01/2015,Travel - Air/Rail/Road             ,SELFSERVE TICKET         SWTRAINS W,20.00
21/01/2015,Hotels and Accommodation           ,HOLIDAY INN              AYLESBURY ,25.63
21/01/2015,Mail and Courier Services          ,THE POST OFFICE          LONDON    ,14.30
21/01/2015,Travel - Air/Rail/Road             ,LUL TICKET OFFICE.       EUSTON    ,20.00
21/01/2015,Automotive Fuel                    ,ESSO CORONATION SSTN     LEEDS     ,15.59
21/01/2015,Restaurants and Bars               ,BREWERS FAYRE 41518225   WESSINGTON,15.00
21/01/2015,Automotive Fuel                    ,PJ NICHOLLS LTD          TEWKESBURY,13.88
21/01/2015,Hotels and Accommodation           ,VILLAGE HOTEL WALSALL    WALSALL   ,19.95
21/01/2015,Automotive Fuel                    ,ESSO MACCLESFIELD SERVICE MACCLESFI,15.07
21/01/2015,Hotels and Accommodation           ,THE DERBYSHIRE HOTEL     DERBY     ,32.00
21/01/2015,General Retail and Wholesale       ,TESCO STORES 5223        BIRMINGHAM,3.00
21/01/2015,Restaurants and Bars               ,DRAGON INN               BIRMINGHAM,6.29
21/01/2015,Restaurants and Bars               ,KIPLINGS RESTAURANT ILKLE ILKLEY   ,23.50
21/01/2015,Hotels and Accommodation           ,HOLIDAY INN ROCHES       0208334483,22.50
21/01/2015,Hotels and Accommodation           ,THE ACADEMY HOTEL        LONDON    ,3.25
21/01/2015,Hotels and Accommodation           ,MILLENIUM MAJEDSKI HOT   READING   ,19.75
21/01/2015,Automotive Fuel                    ,MURCO BICKERSTAFFE       LANCASHIRE,12.46
21/01/2015,Hotels and Accommodation           ,HILTON GDN               BIRMINGHAM,38.00
21/01/2015,Restaurants and Bars               ,BEEFEATER40017800        THREE PEAR,10.59
21/01/2015,Automotive Fuel                    ,SHELL BUCKLAND 238       REIGATE   ,26.56
21/01/2015,Hotels and Accommodation           ,OAKS  HOTEL              BURY      ,53.20
21/01/2015,Hotels and Accommodation           ,SCOLE INN                SCOLE     ,20.80
21/01/2015,Restaurants and Bars               ,COTE BIRMINGHAM          B'HAM B1  ,27.00
21/01/2015,Travel - Air/Rail/Road             ,WEST COAST TRAINS        STAFFORD 8,16.00
21/01/2015,Automotive Fuel                    ,ESSO ROADCHEF SANDBACH NO BARNETT W,44.19
21/01/2015,Catering and Catering Supplies     ,WELCOME BREAK WHS-NTH    CORLEY    ,15.61
21/01/2015,Travel - Air/Rail/Road             ,M6 TOLL                  TOLL CHARG,5.50
21/01/2015,Hotels and Accommodation           ,MARRIOTT                 LONDON  17,14.95
21/01/2015,Restaurants and Bars               ,FURZTON LAKE             MILTON KEY,9.19
21/01/2015,Hotels and Accommodation           ,THE STAG                 NEWPORT   ,14.25
21/01/2015,General Retail and Wholesale       ,WAITROSE 207             BLOOMSBURY,23.33
21/01/2015,Restaurants and Bars               ,STARBUCKS                LONDON    ,5.45
21/01/2015,Restaurants and Bars               ,MARY WARD CAFE           LONDON    ,6.70
21/01/2015,Restaurants and Bars               ,THE COSY CLUB            TAUNTON   ,25.00
21/01/2015,Restaurants and Bars               ,SUBWAY                   HIGH STREE,4.00
21/01/2015,Restaurants and Bars               ,PRET A MANGER            117 EUSTON,2.45
21/01/2015,Hotels and Accommodation           ,REDWORTH HALL            NEWTON AYC,12.70
21/01/2015,Automotive Fuel                    ,SAINSBURYS PETROL        NEWBURY   ,15.84
21/01/2015,Restaurants and Bars               ,BREWERS FAYRE 41012400   DUKE OF YO,15.93
21/01/2015,Restaurants and Bars               ,BREWERS FAYRE 41012400   DUKE OF YO,3.99
21/01/2015,Hotels and Accommodation           ,NOVOTEL LONDON WEMBLEY   LONDON    ,3.00
21/01/2015,Travel - Air/Rail/Road             ,METEOR PARKING LTD       0845603619,25.40
21/01/2015,Restaurants and Bars               ,SMOKEY BARN COFFEE       NORWICH   ,6.00
21/01/2015,Restaurants and Bars               ,RISHI                    NORWICH   ,22.90
21/01/2015,Restaurants and Bars               ,BUTTERFLY CAFE           NORWICH   ,6.80
21/01/2015,Restaurants and Bars               ,LAZIZA                   NOTTINGHAM,23.00
21/01/2015,Automotive Fuel                    ,EASTWOOD RD FOODST       BOSTON    ,58.06
21/01/2015,Hotels and Accommodation           ,HOLIDAY INN FAREHAM      FAREHAM   ,33.52
21/01/2015,Travel - Air/Rail/Road             ,GOV.UK/DART-CHARGE       DART-CHARG,2.50
21/01/2015,Hotels and Accommodation           ,HOLIDAY INN FAREHAM      FAREHAM   ,79.54
21/01/2015,Travel - Air/Rail/Road             ,LUL TICKET MACHINE       PADDINGTON,4.80
21/01/2015,Restaurants and Bars               ,KIPLINGS RESTAURANT ILKLE ILKLEY   ,23.50
21/01/2015,Restaurants and Bars               ,COTE CAMDEN              LONDON  NW,35.00
21/01/2015,Restaurants and Bars               ,EAT                      LONDON  WC,7.84
21/01/2015,Restaurants and Bars               ,ZIZZI                    SUTTON    ,26.37
21/01/2015,Restaurants and Bars               ,COTE CAMDEN              LONDON  NW,18.00
21/01/2015,Restaurants and Bars               ,COTE CAMDEN              LONDON  NW,35.10
21/01/2015,Restaurants and Bars               ,ZIZZI                    SUTTON    ,26.12
21/01/2015,"Office Stationery, Equipment and Su",ARQIVA WIFI LTD          HEMEL HEMP,6.00
21/01/2015,Restaurants and Bars               ,VIVA RESTAURANT (LEEDS   LEEDS     ,33.15
21/01/2015,Hotels and Accommodation           ,HOLIDAY INN              BASILDON  ,30.35
21/01/2015,Restaurants and Bars               ,CAFE MODE                LONDON    ,27.83
21/01/2015,Restaurants and Bars               ,THE COSY CLUB            TAUNTON   ,30.80
21/01/2015,Restaurants and Bars               ,COTE BIRMINGHAM          B'HAM B1  ,27.00
21/01/2015,Statutory Bodies                   ,TAUNTON DEANE BOROUGH COU TAUNTON S,15.60
21/01/2015,Restaurants and Bars               ,THE COSY CLUB            TAUNTON   ,17.95
22/01/2015,Automotive Fuel                    ,SHELL LEICESTER          OADBY     ,13.91
22/01/2015,Restaurants and Bars               ,WAGGON & HORSES          SURBITON  ,16.40
22/01/2015,Automotive Fuel                    ,SHELL PETERBOROUGH       HADDON    ,36.64
22/01/2015,Travel - Air/Rail/Road             ,SELFSERVE TICKET         SWTRAINSST,20.00
22/01/2015,Restaurants and Bars               ,CIAO BELLA               LONDON    ,50.00
22/01/2015,Hotels and Accommodation           ,BEST WESTERN MONKBAR H   YORK      ,10.00
22/01/2015,Restaurants and Bars               ,LA VECCHIA RESTAURANT    YORK      ,19.39
22/01/2015,Automotive Fuel                    ,W M MORRISON PETRO       LOWESTOFT ,10.49
22/01/2015,Hotels and Accommodation           ,YEOVIL COURT HOTEL LTD   YEOVIL    ,41.25
22/01/2015,Restaurants and Bars               ,LA VECCHIA RESTAURANT    YORK      ,19.39
22/01/2015,Automotive Fuel                    ,SHELL FENSTATN 005       FENSTANTON,11.61
22/01/2015,Travel - Air/Rail/Road             ,TSGN                     HUNTINGDON,25.30
22/01/2015,Miscellaneous Industrial/Commercial,BRISTOL CITY COUNCIL     BRISTOL   ,5.20
22/01/2015,Professional Services              ,RIVERSIDE ENTERTAINMEN   NORWICH   ,20.00
22/01/2015,General Retail and Wholesale       ,TESCO STORE 3019         PENARTH   ,15.04
22/01/2015,Travel - Air/Rail/Road             ,OYSTER AUTOTOPUP         0343 22212,20.00
22/01/2015,Automotive Fuel                    ,TEXACO ST STEPHENS       WR37JF 252,12.33
22/01/2015,Restaurants and Bars               ,WAGGON & HORSES          SURBITON  ,18.95
22/01/2015,Hotels and Accommodation           ,HI NORWICH               0208 334 4,9.95
22/01/2015,Restaurants and Bars               ,BUTTERFLY CAFE           NORWICH   ,5.40
22/01/2015,Automotive Fuel                    ,TESCO PFS 3244           STAFFORD  ,43.96
22/01/2015,Automotive Fuel                    ,ESSO BRANCH END SSTN     STOCKSFIEL,19.38
22/01/2015,Automotive Fuel                    ,SHELL LAYBY 146          LAYBY     ,25.11
22/01/2015,Automotive Fuel                    ,SHELL KISLINGBURY        NORTHAMPTO,13.96
22/01/2015,Automotive Fuel                    ,SHELL MACKNADE           FAVERSHAM ,9.38
22/01/2015,Automotive Fuel                    ,MAYLAND GARAGE           ESSEX     ,34.35
22/01/2015,Automotive Fuel                    ,SHELL GROVE              WOODBRIDGE,26.45
22/01/2015,Automotive Fuel                    ,K R WILSON GARAGES LTD   WALES BAR ,14.49
22/01/2015,Hotels and Accommodation           ,THISTLE HAYDOCK HTL      0871 977 2,56.90
22/01/2015,Automotive Fuel                    ,SAINSBURYS PETROL        POUND LANE,16.11
22/01/2015,Automotive Fuel                    ,SAINSBURYS PETROL        ALPHINGTON,33.76
22/01/2015,Automotive Fuel                    ,TONG SELF SERVE          SHROPSHIRE,23.12
22/01/2015,Travel - Air/Rail/Road             ,METEOR CONNECT           HOUNSLOW  ,4.80
22/01/2015,Travel - Air/Rail/Road             ,NCP LIMITED              NOTTM MOUN,2.56
22/01/2015,Automotive Fuel                    ,BP MOTO DONNINGTON PARK  DERBY     ,42.09
22/01/2015,Automotive Fuel                    ,CO-OP GROUP PETROL       PETROL HOP,24.83
22/01/2015,Restaurants and Bars               ,BOBBIN MILL              CHORLEY   ,8.00
22/01/2015,Restaurants and Bars               ,OLIVE TREE BRASSERIE     PRESTON   ,22.45
22/01/2015,Restaurants and Bars               ,BOBBIN MILL              CHORLEY   ,8.00
22/01/2015,Restaurants and Bars               ,OLIVE TREE BRASSERIE     PRESTON   ,17.45
22/01/2015,Automotive Fuel                    ,MURCO DROITWICH          WORCESTERS,9.27
22/01/2015,General Retail and Wholesale       ,MARKS & SPENCER SIMPLY   TWICKENHAM,4.94
22/01/2015,Restaurants and Bars               ,PINCHO                   TWICKENHAM,19.10
22/01/2015,Restaurants and Bars               ,COSTA COFFEE             HAMPTON 73,7.45
22/01/2015,Travel - Air/Rail/Road             ,LUL TICKET MACHINE       WATERLOO A,20.00
22/01/2015,Hotels and Accommodation           ,PENTAHOTEL IPSWICH       IPSWICH   ,30.75
22/01/2015,Restaurants and Bars               ,LA VECCHIA RESTAURANT    YORK      ,19.39
22/01/2015,Automotive Fuel                    ,MORRISONS PETROL         SCUNTHORPE,28.67
22/01/2015,Catering and Catering Supplies     ,M&S SIMPLY FOOD - SSP    CHARING X ,13.93
22/01/2015,Restaurants and Bars               ,LA VECCHIA RESTAURANT    YORK      ,19.39
22/01/2015,Automotive Fuel                    ,ESSO GREATBRIDGE SERVICE ROMSEY  HA,33.35
22/01/2015,Travel - Air/Rail/Road             ,OYSTER AUTOTOPUP         0343 22212,40.00
22/01/2015,Travel - Air/Rail/Road             ,APCOA PARKING (UK) LTD   UXBRIDGE  ,20.60
22/01/2015,Catering and Catering Supplies     ,FOOD STANDARDS AGE       LONDON  WC,6.50
22/01/2015,Hotels and Accommodation           ,RICHMOND GATE HOTEL      RICHMOND T,17.50
22/01/2015,Travel - Air/Rail/Road             ,SELFSERVE TICKET         SWTRAINS R,20.00
22/01/2015,Restaurants and Bars               ,LA VECCHIA RESTAURANT    YORK      ,19.39
22/01/2015,Restaurants and Bars               ,PRET A MANGER            HIGH HOLBU,6.35
22/01/2015,Restaurants and Bars               ,CANTINA LAREDO           LONDON  WC,32.40
22/01/2015,Restaurants and Bars               ,PRET A MANGER            HIGH HOLBU,4.40
22/01/2015,Automotive Fuel                    ,RSS THE DOWNS            BRISTOL   ,10.97
22/01/2015,Restaurants and Bars               ,BIBIS RESTAURANTS        LEEDS     ,24.25
22/01/2015,General Retail and Wholesale       ,MARKS & SPENCER SIMPLY   TWICKENHAM,6.09
22/01/2015,General Retail and Wholesale       ,SAINSBURYS S/MKTS        HAMPTON HI,3.20
22/01/2015,Restaurants and Bars               ,COSTA COFFEE             HAMPTON 73,3.35
22/01/2015,Restaurants and Bars               ,PINCHO                   TWICKENHAM,25.40
22/01/2015,Travel - Air/Rail/Road             ,FGW ON TRAIN SALES       PLYMOUTH  ,53.50
22/01/2015,Hotels and Accommodation           ,BEST WESTERN STOKE       BOREHAMWOO,12.70
22/01/2015,Automotive Fuel                    ,ESSO WALMER              DEAL      ,28.11
22/01/2015,Travel - Air/Rail/Road             ,NCP LIMITED              NOTTM MOUN,4.10
22/01/2015,Hotels and Accommodation           ,ISLES OF SCILLY SS CO LT ST MARYS  ,13.95
22/01/2015,Travel - Air/Rail/Road             ,NCP LIMITED              NOTTM MOUN,4.10
22/01/2015,Restaurants and Bars               ,THE CHAMBELI REST        LONDON  WC,21.96
22/01/2015,Restaurants and Bars               ,LA VECCHIA RESTAURANT    YORK      ,19.39
22/01/2015,Hotels and Accommodation           ,BEST WESTERN MONKBAR H   YORK      ,5.00
22/01/2015,Restaurants and Bars               ,LA VECCHIA RESTAURANT    YORK      ,19.39
22/01/2015,Automotive Fuel                    ,ROSS ON WYE SERVICE STATI HEREFORDS,28.09
22/01/2015,Travel - Air/Rail/Road             ,VERUSPARKBYPHONE         SOUTH WEST,7.10
22/01/2015,Automotive Fuel                    ,BP BULLSMOOR LANE F/STN  ENFIELD MI,6.39
22/01/2015,Mail Order / Direct Selling        ,Amazon EU                AMAZON.CO.,64.72
22/01/2015,Travel - Air/Rail/Road             ,M6 TOLL                  TOLL CHARG,5.50
22/01/2015,Hotels and Accommodation           ,GUOMAN CUMBERLAND HTL    0871 977 2,25.31
22/01/2015,Travel - Air/Rail/Road             ,NEW SOUTHERN RAILW       LND SW1V 5,21.80
22/01/2015,Travel - Air/Rail/Road             ,METEOR PARKING LTD       0845603619,8.20
22/01/2015,Automotive Fuel                    ,CO-OP GROUP PETROL       PETROL RIV,23.81
22/01/2015,Travel - Air/Rail/Road             ,WEST COAST TRAINS        SOLIHULL 1,8.00
22/01/2015,Hotels and Accommodation           ,ROYAL CHACE HOTEL        ENFIELD   ,80.15
22/01/2015,Restaurants and Bars               ,PREZZO                   TAUNTON   ,17.00
22/01/2015,Automotive Fuel                    ,TESCO PFS 5204           BRAMHALL  ,27.86
22/01/2015,Automotive Fuel                    ,WETHERBY MWSA            WETHERBY W,2.39
22/01/2015,Catering and Catering Supplies     ,M&S SIMPLY FOOD          WETHERBY A,2.95
22/01/2015,Computer Equipment & Services      ,THAWTE                   877-438-87,235.51
22/01/2015,Restaurants and Bars               ,WETHERBY COSTA           WETHERBY  ,5.84
22/01/2015,Hotels and Accommodation           ,THE MANOR HOUSE HOTEL    WEST AUCKL,15.50
22/01/2015,Hotels and Accommodation           ,HOLIDAY INNS             DONCASTER ,92.70
22/01/2015,Hotels and Accommodation           ,BEST WESTERN MONKBAR H   YORK      ,10.00
22/01/2015,Restaurants and Bars               ,LA VECCHIA RESTAURANT    YORK      ,19.39
22/01/2015,Automotive Fuel                    ,SYMONDS FORECOURTS       GLOUCESTER,17.71
22/01/2015,Hotels and Accommodation           ,BEST WESTERN STOKE       BOREHAMWOO,72.25
22/01/2015,General Retail and Wholesale       ,TESCO STORES 5223        BIRMINGHAM,3.00
22/01/2015,Restaurants and Bars               ,DRAGON INN               BIRMINGHAM,8.29
22/01/2015,General Retail and Wholesale       ,TESCO STORES 2731        ILKLEY    ,5.00
22/01/2015,Restaurants and Bars               ,PICCOLINO                ILKLEY    ,26.00
22/01/2015,Hotels and Accommodation           ,HOLIDAY INNS             LONDON BLO,7.65
22/01/2015,Restaurants and Bars               ,PRET A MANGER            102 SOUTHA,10.65
22/01/2015,Restaurants and Bars               ,CARLUCCIOS LTD           BRUNSWICK ,21.00
22/01/2015,Automotive Fuel                    ,WM MORRISONS PETRO       SEAFORD   ,20.47
22/01/2015,Restaurants and Bars               ,BIBIS RESTAURANTS        LEEDS     ,24.25
22/01/2015,Restaurants and Bars               ,LA VECCHIA RESTAURANT    YORK      ,19.39
22/01/2015,Hotels and Accommodation           ,LFH THE ICKWORTH LTD     BURY ST ED,26.25
22/01/2015,Restaurants and Bars               ,BEEFEATER40017800        THREE PEAR,20.59
22/01/2015,Restaurants and Bars               ,NIMMI                    THETFORD  ,20.60
22/01/2015,Restaurants and Bars               ,SAN CARLO                BIRMINGHAM,31.15
22/01/2015,Automotive Fuel                    ,TESCO PFS 3995           CHICHESTER,13.83
22/01/2015,Restaurants and Bars               ,CARLUCCIOS LTD           BRUNSWICK ,21.00
22/01/2015,Restaurants and Bars               ,STARBUCKS                LONDON    ,5.45
22/01/2015,Restaurants and Bars               ,PREZZO                   TAUNTON   ,17.00
22/01/2015,Automotive Fuel                    ,TESCO PAY AT PUMP 3953   NEW OSCOTT,22.27
22/01/2015,Hotels and Accommodation           ,RINGWOOD HALL HOTEL      CHESTERFIE,44.55
22/01/2015,Hotels and Accommodation           ,REDWORTH HALL            NEWTON AYC,12.95
22/01/2015,Automotive Fuel                    ,BP GILHAMS S/STN         MIDHURST W,26.00
22/01/2015,Automotive Fuel                    ,SHELL SANDLING ROA       MAIDSTONE ,19.35
22/01/2015,Hotels and Accommodation           ,ROYAL CHACE HOTEL        ENFIELD   ,61.85
22/01/2015,Automotive Fuel                    ,Shell Elm Tree           RADSTOCK  ,24.48
22/01/2015,Hotels and Accommodation           ,HILTON GARDEN INN        HOUNSLOW  ,7.00
22/01/2015,Hotels and Accommodation           ,HILTON GARDEN INN        HOUNSLOW  ,28.70
22/01/2015,Automotive Fuel                    ,SHELL IPSWICH ROAD       NORWICH 60,6.28
22/01/2015,Hotels and Accommodation           ,HI NORWICH               0208 334 4,14.40
22/01/2015,Hotels and Accommodation           ,THE NOTTINGHAM BELFRY    NOTTINGHAM,10.95
22/01/2015,Hotels and Accommodation           ,MERCURE SHREWSBURY ALBRIG SHREWSBUR,40.10
22/01/2015,Restaurants and Bars               ,PREZZO                   NOTTINGHAM,17.96
22/01/2015,Travel - Air/Rail/Road             ,M6 TOLL                  TOLL CHARG,4.00
22/01/2015,General Retail and Wholesale       ,CHICHESTER STOCKBRIDGE   CHICHESTER,13.39
22/01/2015,Travel - Air/Rail/Road             ,NEW SOUTHERN RAILW       CHIHSTER 4,4.90
22/01/2015,Restaurants and Bars               ,COTE CAMDEN              LONDON  NW,30.71
22/01/2015,Restaurants and Bars               ,PICCOLINO                ILKLEY    ,26.00
22/01/2015,Restaurants and Bars               ,NORFOLK ARMS             LONDON WC1,30.00
22/01/2015,Hotels and Accommodation           ,HOLIDAY INN LDN-SUTT     LONDON    ,21.00
22/01/2015,Hotels and Accommodation           ,HOLIDAY INN CAMDEN       LONDON  NW,2.60
22/01/2015,Automotive Fuel                    ,CASINO FILLING STN       KENT      ,24.69
22/01/2015,Hotels and Accommodation           ,HOLIDAY INN LDN-SUTT     LONDON    ,21.00
22/01/2015,General Retail and Wholesale       ,UPPER CRUST              SWINDON   ,4.40
22/01/2015,Restaurants and Bars               ,THE CHAMBELI REST        LONDON  WC,19.72
22/01/2015,Travel - Air/Rail/Road             ,LUL TICKET MACHINE       PADDINGTON,20.00
22/01/2015,Automotive Fuel                    ,BARNSDALE BARR STH       PONTEFRACT,29.94
22/01/2015,Hotels and Accommodation           ,REDWORTH HALL            NEWTON AYC,53.50
22/01/2015,General Retail and Wholesale       ,TESCO STORES 5597        LEEDS     ,1.80
22/01/2015,Restaurants and Bars               ,BIBIS RESTAURANTS        LEEDS     ,24.25
22/01/2015,Mail and Courier Services          ,POST OFFICE COUNTER      SOUTHAMPTO,7.15
22/01/2015,Restaurants and Bars               ,PREZZO                   TAUNTON   ,17.00
22/01/2015,Restaurants and Bars               ,SAN CARLO                BIRMINGHAM,31.15
22/01/2015,Automotive Fuel                    ,MORRISONS PETROL         DOXFORD 10,55.36
22/01/2015,Hotels and Accommodation           ,HOLIDAY INNS             NORWICH   ,61.50
22/01/2015,Restaurants and Bars               ,PREZZO                   TAUNTON   ,17.00
22/01/2015,Restaurants and Bars               ,THE MEMSAAB              NOTTINGHAM,30.42
23/01/2015,Automotive Fuel                    ,SAINSBURYS PETROL        BYST.EDMUN,51.82
23/01/2015,Hotels and Accommodation           ,ANTOINETTE HOTEL         KINGSTON  ,35.80
23/01/2015,Travel - Air/Rail/Road             ,SELFSERVE TICKET         SWTRAINSST,20.00
23/01/2015,Automotive Fuel                    ,FERRYBRIDGE MWSA         KNOTTINGLE,27.94
23/01/2015,Travel - Air/Rail/Road             ,OYSTER BUS AUTOTOP       0343 22212,20.00
23/01/2015,Hotels and Accommodation           ,BEST WESTERN MONKBAR H   YORK      ,10.00
23/01/2015,Travel - Air/Rail/Road             ,TSGN                     HUNTINGDON,25.30
23/01/2015,Travel - Air/Rail/Road             ,EC MAINLINE CO SST       LNDON N1 7,25.30
23/01/2015,Automotive Fuel                    ,TEXACO CROSSGATES        LLANDRINDO,44.42
23/01/2015,Automotive Fuel                    ,CO-OP GROUP PETROL       PETROL WEY,59.60
23/01/2015,General Retail and Wholesale       ,SAINSBURYS               HOLBORN   ,8.75
23/01/2015,Hotels and Accommodation           ,CROWNE PLAZA LONDON EALIN LONDON   ,12.50
23/01/2015,Restaurants and Bars               ,IZ  THE TURKISH DELI LIMI LONDON   ,6.00
23/01/2015,Travel - Air/Rail/Road             ,LUL TICKET MACHINE       HANGER LAN,12.00
23/01/2015,Travel - Air/Rail/Road             ,SEVERN RIVER CROSSIN PLC BRISTOL   ,6.50
23/01/2015,Hotels and Accommodation           ,ANTOINETTE HOTEL         KINGSTON  ,41.65
23/01/2015,Travel - Air/Rail/Road             ,EC MAINLINE CO T/O       DONCSTER 6,15.00
23/01/2015,Automotive Fuel                    ,SNAX 24 LEIGH ON SEA     LEIGH ON S,49.13
23/01/2015,Catering and Catering Supplies     ,MARTIN MCCOLL            RUNCORN   ,4.94
23/01/2015,Hotels and Accommodation           ,MERCURE SOUTHGATE HOTEL & EXETER DE,23.95
23/01/2015,Professional Services              ,UPT - EMT NOTTINGHAM RAI NOTTINGHAM,7.00
23/01/2015,Automotive Fuel                    ,CO-OP GROUP 014029       Petrol Dea,21.28
23/01/2015,Restaurants and Bars               ,W M MORRISONS CAFE       PRESTON   ,2.50
23/01/2015,Restaurants and Bars               ,W M MORRISONS CAFE       PRESTON   ,4.15
23/01/2015,Travel - Air/Rail/Road             ,M6 TOLL                  TOLL CHARG,5.50
23/01/2015,Hotels and Accommodation           ,HOL INN BIRM CITY        BIRMINGHAM,126.69
23/01/2015,Travel - Air/Rail/Road             ,NCP LIMITED              BHAM ALBAN,60.70
23/01/2015,General Retail and Wholesale       ,SAINSBURYS S/MKTS        HAMPTON HI,3.00
23/01/2015,Restaurants and Bars               ,COSTA COFFEE             HAMPTON 73,6.65
23/01/2015,Automotive Fuel                    ,BP RYLANDS S/STN         SKERTON LA,20.13
23/01/2015,Hotels and Accommodation           ,BEST WESTERN STOKE       BOREHAMWOO,41.90
23/01/2015,Automotive Fuel                    ,ESSO CITY SSTN           CAMBRIDGE ,16.43
23/01/2015,Automotive Fuel                    ,CO-OP GROUP 014029       Petrol Dea,52.86
23/01/2015,Travel - Air/Rail/Road             ,ECML YORK PARKING        YORK      ,15.00
23/01/2015,Travel - Air/Rail/Road             ,NCP LIMITED              NOTTM MOUN,8.20
23/01/2015,Travel - Air/Rail/Road             ,FIRST/KEOLIS TRANS       SCNTHRPE 6,25.75
23/01/2015,Travel - Air/Rail/Road             ,EAST MIDLANDS TRAI       LONDON NW1,22.40
23/01/2015,Automotive Fuel                    ,TEXPARKGARAGE            886901BB19,18.30
23/01/2015,Hotels and Accommodation           ,THE ROYAL YORK HOTEL     YORK      ,10.00
23/01/2015,Travel - Air/Rail/Road             ,ECML NEWCASTLE PARKING   NEWCASTLE ,15.00
23/01/2015,Automotive Fuel                    ,DARSHAM SERVICE ST       DARSHAM 01,20.07
23/01/2015,Hotels and Accommodation           ,THE CLEVE HOTEL          WELLINGTON,40.40
23/01/2015,Hotels and Accommodation           ,THE QUEENS HOTEL         LEEDS     ,47.85
23/01/2015,Automotive Fuel                    ,BP KEMPTON PARK CONNECT  SUNBURY ON,16.06
23/01/2015,Automotive Fuel                    ,SHELL MANCHESTERRD       BOLTON    ,27.88
23/01/2015,Catering and Catering Supplies     ,WELCOME B/WHS            WARWICK   ,3.20
23/01/2015,General Retail and Wholesale       ,SAINSBURYS S/MKTS        HAMPTON HI,1.20
23/01/2015,Restaurants and Bars               ,COSTA COFFEE             HAMPTON 73,6.45
23/01/2015,Automotive Fuel                    ,TESCO PFS 5098           SUTTON COL,26.72
23/01/2015,Automotive Fuel                    ,SHELL                    CONGLETON ,10.00
23/01/2015,Travel - Air/Rail/Road             ,NCP LIMITED              NOTTM MOUN,4.10
23/01/2015,Automotive Fuel                    ,G E MURGATROYD GEM DERWEN KESWICK  ,13.00
23/01/2015,Hotels and Accommodation           ,THE ROYAL YORK HOTEL     YORK      ,8.00
23/01/2015,Hotels and Accommodation           ,HILTON                   YORK      ,18.00
23/01/2015,Hotels and Accommodation           ,THE ROYAL YORK HOTEL     YORK      ,8.00
23/01/2015,Travel - Air/Rail/Road             ,FIRST GREATER WESTERN    SWINDON   ,3.10
23/01/2015,Hotels and Accommodation           ,ROYAL CHACE HOTEL        ENFIELD   ,74.80
23/01/2015,Automotive Fuel                    ,MALTHURST SOUTH NORWOOD  LONDON    ,10.49
23/01/2015,Automotive Fuel                    ,PJ NICHOLLS LTD          TEWKESBURY,17.48
23/01/2015,Hotels and Accommodation           ,WROXTON HOUSE HOTEL      BANBURY   ,33.00
23/01/2015,Automotive Fuel                    ,HORBURY BRIDGE AUT       WAKEFIELD/,8.84
23/01/2015,Automotive Fuel                    ,TESCO PFS 3855           CAMBRIDGE ,16.03
23/01/2015,Automotive Fuel                    ,TESCO PFS 3969           SAFFRON WA,15.80
23/01/2015,Hotels and Accommodation           ,ROYAL CHACE HOTEL        ENFIELD   ,86.40
23/01/2015,Automotive Fuel                    ,BP GREYSTONES F/STN      GRANGE-OVE,18.99
23/01/2015,Hotels and Accommodation           ,THE ROYAL YORK HOTEL     YORK      ,8.00
23/01/2015,Automotive Fuel                    ,SHELL NEWBROOK           BOLTON    ,37.03
23/01/2015,Automotive Fuel                    ,PJ NICHOLLS LTD          TEWKESBURY,13.80
23/01/2015,Automotive Fuel                    ,SHELL DOWNEND 386        BRISTOL   ,21.01
23/01/2015,General Retail and Wholesale       ,TESCO STORES 5223        BIRMINGHAM,3.48
23/01/2015,Travel - Air/Rail/Road             ,NCP LIMITED              BHAM ALBAN,52.70
23/01/2015,Hotels and Accommodation           ,NOTTINGHAM BELFRY        NOTTINGHAM,65.90
23/01/2015,Hotels and Accommodation           ,MARRIOTT                 SHIPLEY   ,84.95
23/01/2015,Travel - Air/Rail/Road             ,M6 TOLL                  TOLL CHARG,4.00
23/01/2015,Automotive Fuel                    ,SHELL TAUNTON            TAUNTON   ,23.58
23/01/2015,Automotive Fuel                    ,SAINSBURYS PETROL        BIRKENHEAD,27.31
23/01/2015,Automotive Fuel                    ,HKS  THREEWAYS           NOTTINGHAM,35.60
23/01/2015,Automotive Fuel                    ,TESCO PFS 5798           CHESHIRE  ,28.97
23/01/2015,Travel - Air/Rail/Road             ,WEST COAST TRAINS        STAFFORD 1,24.00
23/01/2015,Hotels and Accommodation           ,THE CASTLE HOTEL         TAUNTON   ,55.00
23/01/2015,Hotels and Accommodation           ,REDWORTH HALL            NEWTON AYC,34.40
23/01/2015,Travel - Air/Rail/Road             ,ECML NEWCASTLE PARKING   NEWCASTLE ,15.00
23/01/2015,Travel - Air/Rail/Road             ,TFL.GOV.UK/CP            TFL TRAVEL,4.60
23/01/2015,Travel - Air/Rail/Road             ,NCP LIMITED              NOTTM MOUN,2.56
23/01/2015,Automotive Fuel                    ,MACH ENTERPRISES         TRANENT   ,59.00
23/01/2015,Hotels and Accommodation           ,REDWORTH HALL            NEWTON AYC,70.80
23/01/2015,Hotels and Accommodation           ,HOLIDAY INN              CAMDEN LOC,23.75
23/01/2015,Automotive Fuel                    ,PACE MARTINEAU           NORWICH   ,9.36
23/01/2015,Catering and Catering Supplies     ,WELCOME BREAK WAITROSE   CORLEY    ,7.30
23/01/2015,Automotive Fuel                    ,SAINSBURYS PETROL        PERTON    ,19.68
23/01/2015,Hotels and Accommodation           ,CROWNE PLAZA             NOTTINGHAM,13.00
23/01/2015,Travel - Air/Rail/Road             ,M6 TOLL                  TOLL CHARG,5.50
23/01/2015,Travel - Air/Rail/Road             ,LUL TICKET MACHINE       CAMDEN TOW,4.80
23/01/2015,Hotels and Accommodation           ,CROWNE PLAZA             BIRMINGHAM,91.53
23/01/2015,Travel - Air/Rail/Road             ,M6 TOLL                  TOLL CHARG,5.50
23/01/2015,Automotive Fuel                    ,LOCKS GARAGE             HEREFORD 4,22.56
23/01/2015,Hotels and Accommodation           ,HOLIDAY INN CAMDEN       LONDON  NW,2.60
23/01/2015,Hotels and Accommodation           ,REDWORTH HALL            NEWTON AYC,83.05
23/01/2015,General Retail and Wholesale       ,SAINSBURYS S/MKTS        LONDON 400,5.85
23/01/2015,Automotive Fuel                    ,CO-OP GROUP PETROL       PETROL MOA,9.61
23/01/2015,Catering and Catering Supplies     ,M&S SIMPLY FOOD - SSP    WATERLOO S,4.20
23/01/2015,Travel - Air/Rail/Road             ,PAY N DISPLAY            OFF ST SOU,10.00
23/01/2015,Hotels and Accommodation           ,THISTLE BRIGHTON HTL     0871 977 2,40.00
23/01/2015,Hotels and Accommodation           ,THE CASTLE HOTEL         TAUNTON   ,30.00
23/01/2015,Hotels and Accommodation           ,THE CASTLE HOTEL         TAUNTON   ,23.50
23/01/2015,Miscellaneous Industrial/Commercial,INFRARED UK RETAIL NOM   LIVERPOOL ,25.00
24/01/2015,Mail and Courier Services          ,POST OFFICE COUNTER      HUDDERSFIE,8.45
25/01/2015,Restaurants and Bars               ,ZEN ORIENTAL RESTAURANT  HOUNSLOW M,40.00
25/01/2015,Cleaning Services and Supplies     ,PALACE DRY CLEANERS      MOLESEY   ,5.17
25/01/2015,Restaurants and Bars               ,PIZZA EXPRESS            HAMPTON CO,16.50
25/01/2015,Hotels and Accommodation           ,RICHMOND GATE HOTEL      RICHMOND T,21.45
25/01/2015,Automotive Fuel                    ,BP HATTON CROSS S/SERVE  HATTON CRO,22.50
25/01/2015,Automotive Fuel                    ,HAMPTON COURT SERVICE STA SURREY   ,5.24
25/01/2015,Restaurants and Bars               ,PIZZA EXPRESS            HAMPTON CO,18.85
25/01/2015,Restaurants and Bars               ,ZEN ORIENTAL RESTAURANT  HOUNSLOW M,40.00
25/01/2015,Restaurants and Bars               ,THE RAJ MAHAL            LOWESTOFT ,23.40
26/01/2015,General Retail and Wholesale       ,Amazon UK Marketplace    800-279-66,101.39
26/01/2015,Mail and Courier Services          ,POST OFFICE COUNTER      SIDMOUTH  ,6.40
26/01/2015,Travel - Air/Rail/Road             ,EARLESTOWN STN TO        NEWTON LE ,9.30
26/01/2015,Travel - Air/Rail/Road             ,APCOA PARKING (UK) LTD   UXBRIDGE  ,10.20
26/01/2015,Restaurants and Bars               ,PREZZO                   KINGS CROS,14.85
26/01/2015,Restaurants and Bars               ,GIRAFFE                  HEATHROW T,8.95
26/01/2015,Travel - Air/Rail/Road             ,TSGN                     HUNTINGDON,124.10
26/01/2015,Travel - Air/Rail/Road             ,APCOA FCC                HUNTINGDON,27.50
26/01/2015,Travel - Air/Rail/Road             ,LONDON MIDLAND           METEOR PAR,13.00
26/01/2015,Automotive Fuel                    ,TEXACO CROSSGATES        LLANDRINDO,30.59
26/01/2015,Hotels and Accommodation           ,HOLIDAY INN BIRMINGHAM   BIRMINGHAM,8.50
26/01/2015,Mail and Courier Services          ,POST OFFICE COUNTER      NORTHAMPTO,8.45
26/01/2015,General Retail and Wholesale       ,TESCO STORE 2081         BARRY     ,27.92
26/01/2015,Restaurants and Bars               ,CARLUCCIOS LTD           BRUNSWICK ,24.90
26/01/2015,General Retail and Wholesale       ,TESCO STORES 5851        STAFFORDSH,15.00
26/01/2015,Mail and Courier Services          ,POST OFFICE COUNTER      LEIGH-ON-S,7.15
26/01/2015,Automotive Fuel                    ,WM MORRISONS PETRO       BREDBURY 2,47.59
26/01/2015,Travel - Air/Rail/Road             ,WEST COAST TRAINS        STAFFORD 8,310.60
26/01/2015,Travel - Air/Rail/Road             ,WEST COAST TRAINS        STAFFORD 1,8.00
26/01/2015,Automotive Fuel                    ,ESSO BRANCH END SSTN     STOCKSFIEL,11.72
26/01/2015,Travel - Air/Rail/Road             ,LONDON MIDLAND SEL       NORTHAMPTO,8.50
26/01/2015,Catering and Catering Supplies     ,M&S SIMPLY FOOD          CMBRDGE A1,4.24
26/01/2015,Restaurants and Bars               ,TAMPOPO LTD              MANCHESTER,23.35
26/01/2015,Restaurants and Bars               ,HILTON NATIONAL          WATFORD   ,21.70
26/01/2015,Travel - Air/Rail/Road             ,RINGGO                   CHILTERN  ,7.00
26/01/2015,Restaurants and Bars               ,THE LOST DENE            MANCHESTER,20.75
26/01/2015,Restaurants and Bars               ,TRY THAI                 MANCHESTER,29.48
26/01/2015,Hotels and Accommodation           ,MERCURE MANCHESTER       HOTEL 0161,15.00
26/01/2015,Restaurants and Bars               ,JAMIE'S ITALIAN          MANCHESTER,27.35
26/01/2015,Restaurants and Bars               ,TRY THAI                 MANCHESTER,23.90
26/01/2015,Travel - Air/Rail/Road             ,APCOA CONNECT - FGW      UXBRIDGE  ,11.00
26/01/2015,Hotels and Accommodation           ,MERCURE MANCHESTER       HOTEL 0161,25.00
26/01/2015,Restaurants and Bars               ,JAMIE'S ITALIAN          MANCHESTER,24.20
26/01/2015,Hotels and Accommodation           ,CARLTON MITRE            HAMPTON CO,12.50
26/01/2015,Restaurants and Bars               ,SQUARE OLIVE             EAST MOLES,23.28
26/01/2015,General Retail and Wholesale       ,PC WORLD                 LANCASTER ,95.45
26/01/2015,Restaurants and Bars               ,TRY THAI                 MANCHESTER,29.48
26/01/2015,Automotive Fuel                    ,TESCO PFS 4010           WARRINGTON,6.37
26/01/2015,"Office Stationery, Equipment and Su",STAPLES UK               CAMBRIDGE ,5.99
26/01/2015,Miscellaneous Industrial/Commercial,ROWNHAMS EAST SERVICE  ST SOUTHAMPT,5.10
26/01/2015,Travel - Air/Rail/Road             ,ECML RETFORD PARKING     RETFORD   ,7.50
26/01/2015,Travel - Air/Rail/Road             ,TSGN                     BEDFORD   ,134.60
26/01/2015,Miscellaneous Industrial/Commercial,ROWNHAMS EAST SERVICE  ST SOUTHAMPT,9.73
26/01/2015,Hotels and Accommodation           ,MERCURE MANCHESTER       HOTEL 0161,32.15
26/01/2015,Travel - Air/Rail/Road             ,TICKETOFFICESALE         SWTRAINS S,106.60
26/01/2015,Travel - Air/Rail/Road             ,APCOA PARKING (UK) LTD   UXBRIDGE  ,20.60
26/01/2015,Catering and Catering Supplies     ,M&S SIMPLY FOOD - SSP    RICHMOND S,2.39
26/01/2015,Hotels and Accommodation           ,THE COUNTY HOTEL         CHELMSFORD,13.75
26/01/2015,Hotels and Accommodation           ,RICHMOND GATE HOTEL      RICHMOND T,22.50
26/01/2015,Travel - Air/Rail/Road             ,NCP LIMITED              RICHMOND M,18.66
26/01/2015,Hotels and Accommodation           ,MERCURE MANCHESTER       HOTEL 0161,13.00
26/01/2015,Restaurants and Bars               ,PRET A MANGER            HIGH HOLBU,3.85
26/01/2015,Restaurants and Bars               ,PRET A MANGER            HIGH HOLBU,4.10
26/01/2015,Catering and Catering Supplies     ,M&S SIMPLY FOOD - SSP    PICADILLY ,23.59
26/01/2015,Automotive Fuel                    ,TESCO PFS 3708           EXETER VAL,12.64
26/01/2015,Hotels and Accommodation           ,SALTHOUSE HARBOUR        IPSWICH   ,28.71
26/01/2015,Automotive Fuel                    ,SHELL JENNYFIE 466       HARROGATE ,30.97
26/01/2015,Restaurants and Bars               ,GIRAFFE                  HEATHROW T,9.00
26/01/2015,Restaurants and Bars               ,REIGATE MANOR HOTE       REIGATE   ,15.75
26/01/2015,Catering and Catering Supplies     ,M&S SIMPLY FOOD - SSP    WATERLOO R,15.68
26/01/2015,Restaurants and Bars               ,POD                      LONDON    ,4.99
26/01/2015,General Retail and Wholesale       ,SAINSBURYS S/MKT         SURY BASIN,5.50
26/01/2015,Hotels and Accommodation           ,CARLTON MITRE            HAMPTON CO,12.50
26/01/2015,Restaurants and Bars               ,SQUARE OLIVE             EAST MOLES,21.27
26/01/2015,Restaurants and Bars               ,GIRAFFE                  HEATHROW T,9.00
26/01/2015,Professional Services              ,UPT - EMT NOTTINGHAM RAI NOTTINGHAM,7.00
26/01/2015,Restaurants and Bars               ,PRET A MANGER            MANCHESTER,5.84
26/01/2015,Restaurants and Bars               ,KAYAL RESTAURANT         LEICESTER ,18.00
26/01/2015,Hotels and Accommodation           ,CEDAR COURT HOTEL        BRADFORD  ,26.20
26/01/2015,Restaurants and Bars               ,TAMPOPO LTD              MANCHESTER,23.35
26/01/2015,Travel - Air/Rail/Road             ,EUROTAXIS LTD            BRISTOL   ,23.76
26/01/2015,Travel - Air/Rail/Road             ,XC TRAINS LTD            BIRMINGHAM,2.30
26/01/2015,Hotels and Accommodation           ,NORTH LAKES HOTEL        PENRITH   ,11.95
26/01/2015,Travel - Air/Rail/Road             ,BRISTOL STN              CAR PARK  ,7.60
26/01/2015,Hotels and Accommodation           ,REDWORTH HALL            NEWTON AYC,28.60
26/01/2015,Hotels and Accommodation           ,SALTHOUSE HARBOUR        IPSWICH   ,28.00
26/01/2015,Travel - Air/Rail/Road             ,GOV.UK/DART-CHARGE       DART-CHARG,2.50
26/01/2015,Travel - Air/Rail/Road             ,SELFSERVE TICKET         NORBITON  ,20.00
26/01/2015,Automotive Fuel                    ,BP MOTO KNUTSFORD NORTH  KNUTSFORD ,15.13
26/01/2015,Restaurants and Bars               ,ANTALYA RESTAURANT TWO   LONDON    ,15.90
26/01/2015,Travel - Air/Rail/Road             ,LUL TICKET OFFICE.       EUSTON    ,30.00
26/01/2015,Hotels and Accommodation           ,ABODE MANCHESTER         MANCHESTER,11.76
26/01/2015,Restaurants and Bars               ,UPPERCRUST BARRIERLINE   EUSTON    ,2.85
26/01/2015,Travel - Air/Rail/Road             ,WWW.NCP.MYRINGGO.CO.UK   THETFORD  ,14.20
26/01/2015,Hotels and Accommodation           ,RAMADA ENCORE HAYDOCK    HAYDOCK ST,-0.01
26/01/2015,Hotels and Accommodation           ,RAMADA ENCORE HAYDOCK    HAYDOCK ST,0.01
26/01/2015,Hotels and Accommodation           ,RAMADA ENCORE HAYDOCK    HAYDOCK ST,11.75
26/01/2015,Hotels and Accommodation           ,CEDAR COURT HOTEL        BRADFORD  ,27.90
26/01/2015,Hotels and Accommodation           ,KETTERING PARK HTL       KETTERING ,34.37
26/01/2015,Hotels and Accommodation           ,VILLAGE HT WARRINGTON (G WARRINGTON,18.90
26/01/2015,Restaurants and Bars               ,BREWERS FAYRE 41016795   ROYAL FORE,12.28
26/01/2015,General Retail and Wholesale       ,SAINSBURYS S/MKTS        HOLBORN   ,8.05
26/01/2015,Travel - Air/Rail/Road             ,WEST COAST TRAINS        WARRINGTON,9.00
26/01/2015,Hotels and Accommodation           ,MERCURE LEICESTER        HOTEL 0116,22.25
26/01/2015,Hotels and Accommodation           ,MERCURE LEICESTER        HOTEL 0116,19.75
26/01/2015,General Retail and Wholesale       ,WAITROSE 619             KINGS CROS,7.88
26/01/2015,Hotels and Accommodation           ,SANDGATE WORCESTER LTD   WORCESTER ,18.00
26/01/2015,Automotive Fuel                    ,SAINSBURYS PETROL        BIRKENHEAD,18.37
26/01/2015,Automotive Fuel                    ,HKS  THREEWAYS           NOTTINGHAM,33.40
26/01/2015,Hotels and Accommodation           ,OXFORD WITNEY FOUR PILLAR WITNEY   ,24.07
26/01/2015,Hotels and Accommodation           ,SALTHOUSE HARBOUR        IPSWICH   ,39.11
26/01/2015,Hotels and Accommodation           ,"NOVOTEL IPSWICH          IPSWICH, I",8.50
26/01/2015,Restaurants and Bars               ,GOURMET COFFEE BAR & K   WREXHAM   ,5.35
26/01/2015,General Retail and Wholesale       ,SAINSBURYS S/MKTS        BRENTWOOD ,4.30
26/01/2015,Travel - Air/Rail/Road             ,M6 TOLL                  TOLL CHARG,5.50
26/01/2015,Catering and Catering Supplies     ,FOOD STANDARDS AGE       LONDON  WC,6.05
26/01/2015,Restaurants and Bars               ,GUOMAN TOWER F&B         LONDON    ,23.57
26/01/2015,Restaurants and Bars               ,PEACE AND LOAF LTD       NEWCASTLE ,34.00
26/01/2015,Restaurants and Bars               ,PAUL KINGSWAY            LONDON    ,13.50
26/01/2015,Restaurants and Bars               ,THE OLIVE GROVE          CAMBRIDGE ,25.00
26/01/2015,Automotive Fuel                    ,WARMINSTER FORECOURT     WARMINSTER,14.38
26/01/2015,Travel - Air/Rail/Road             ,TFL CC/LEZ CHARGE        0845 900 1,11.50
26/01/2015,Travel - Air/Rail/Road             ,NCP LIMITED              HOLBORN   ,21.94
26/01/2015,Travel - Air/Rail/Road             ,NEW SOUTHERN RAILW       LND SW1V 5,12.00
26/01/2015,Catering and Catering Supplies     ,QUICKSNACK               CHESTERFIE,2.10
26/01/2015,Restaurants and Bars               ,COSTA                    SWAFFHAM  ,6.15
26/01/2015,General Retail and Wholesale       ,TESCO STORES-2266        CHICHESTER,25.84
26/01/2015,Hotels and Accommodation           ,MERCURE LEICESTER        HOTEL 0116,22.75
26/01/2015,Restaurants and Bars               ,FRATELLI DELI CAFE       EUSTON    ,4.15
26/01/2015,Restaurants and Bars               ,CHINA HOUSE              LONDON    ,35.10
26/01/2015,Restaurants and Bars               ,WAGAMAMA STEATHAM ST     STREATHAM ,19.10
26/01/2015,Travel - Air/Rail/Road             ,EC MAINLINE CO T/O       DARLNGTN 7,33.00
26/01/2015,Automotive Fuel                    ,SHELL SUTTON ELMS        LEICESTER ,16.10
26/01/2015,Automotive Fuel                    ,PACE YORK ROAD           SHIPTON TH,30.00
26/01/2015,Restaurants and Bars               ,THE OLIVE GROVE          CAMBRIDGE ,25.00
26/01/2015,Restaurants and Bars               ,JINJUU                   LONDON  W1,40.00
26/01/2015,Travel - Air/Rail/Road             ,LONDON & SOUTH EAS       ORPINGTON ,17.00
27/01/2015,Travel - Air/Rail/Road             ,WEST COAST TRAINS        MANCHESTER,41.20
27/01/2015,Travel - Air/Rail/Road             ,EAST MIDLANDS TRAI       NOTTNGHM 1,43.70
27/01/2015,Restaurants and Bars               ,MOAT HOUSE RESTAURANT    STAFFORD  ,28.60
27/01/2015,Utilities and Non Automotive Fuel  ,APPLEGREEN               BRISTOL   ,10.10
27/01/2015,Restaurants and Bars               ,BABA RESTAURANT          TRURO     ,30.50
27/01/2015,Restaurants and Bars               ,THE BENGAL CLIPPER       STAMFORD  ,24.20
27/01/2015,Travel - Air/Rail/Road             ,WEST COAST TRAINS        STOKE-ON-T,8.00
27/01/2015,Hotels and Accommodation           ,DOUBLETREE BY HILTON     CLIFTON EA,21.50
27/01/2015,Restaurants and Bars               ,PITA PIT                 CHESSINGTO,7.00
27/01/2015,Restaurants and Bars               ,NANDOS HOLBORN           LONDON    ,15.95
27/01/2015,Travel - Air/Rail/Road             ,LUL TICKET MACHINE       PADDINGTON,4.80
27/01/2015,Auto Rental                        ,SIXT CAR RENTAL          PUL9819223,174.46
27/01/2015,Hotels and Accommodation           ,THE BEAR HOTEL-RECEPTI   DEVIZES   ,20.30
27/01/2015,Travel - Air/Rail/Road             ,LUL TICKET MACHINE       TEMPLE    ,30.00
27/01/2015,Restaurants and Bars               ,THE NEWBURY              NEWBURY   ,28.00
27/01/2015,Professional Services              ,TOWN CENTRE C P-MERRION  LEEDS     ,4.80
27/01/2015,Hotels and Accommodation           ,THE HUNDRED HOUSE HOTEL  TELFORD   ,34.15
27/01/2015,Restaurants and Bars               ,BASMATI                  RESTAURANT,17.30
27/01/2015,Restaurants and Bars               ,SAN CARLO                LEICESTER ,30.14
27/01/2015,Travel - Air/Rail/Road             ,MARPLE STN TO            STOCKPORT ,4.00
27/01/2015,Travel - Air/Rail/Road             ,GREATER ANGLIA           CAMBRIDGE ,45.50
27/01/2015,Travel - Air/Rail/Road             ,M6 TOLL                  TOLL CHARG,5.50
27/01/2015,Travel - Air/Rail/Road             ,EC MAINLINE CO SST       DURHAM 708,11.50
27/01/2015,Hotels and Accommodation           ,BREWERS FAYRE 40521570   WOODPECKER,22.57
27/01/2015,Catering and Catering Supplies     ,M&S SIMPLY FOOD - SSP    STANSTED A,20.57
27/01/2015,Travel - Air/Rail/Road             ,EAST MIDLANDS TRAI       SHEFIELD 9,18.30
27/01/2015,Travel - Air/Rail/Road             ,NCP LIMITED              LEICS RUTL,8.00
27/01/2015,Travel - Air/Rail/Road             ,NORWICH AIRPORT ADF 1    NORWICH   ,10.00
27/01/2015,Travel - Air/Rail/Road             ,METEOR CONNECT           HOUNSLOW  ,4.80
27/01/2015,Travel - Air/Rail/Road             ,NCP LIMITED              NOTTM MOUN,2.56
27/01/2015,Travel - Air/Rail/Road             ,TFGM METROLINK           0161 20520,1.70
27/01/2015,Travel - Air/Rail/Road             ,TFGM METROLINK           0161 20520,6.10
27/01/2015,Hotels and Accommodation           ,MERCURE BUSH HOTEL FARNHA FARNHAM. ,21.40
27/01/2015,Hotels and Accommodation           ,MERCURE MANCHESTER       HOTEL 0161,10.00
27/01/2015,Travel - Air/Rail/Road             ,LUL TICKET MACHINE       COVENT GAR,9.60
27/01/2015,Automotive Fuel                    ,HAMPTON COURT SERVICE STA SURREY   ,35.00
27/01/2015,Restaurants and Bars               ,THE BLACK SHEEP CAFFEE   MOLESEY   ,7.00
27/01/2015,Restaurants and Bars               ,NANDOS HOUNSLOW          HOUNSLOW  ,15.70
27/01/2015,Travel - Air/Rail/Road             ,NEWTON-LE-WILLOWS STN    NEWTON LE ,7.90
27/01/2015,Travel - Air/Rail/Road             ,EAST MIDLAND CHESTERFIEL CHESTERFIE,10.50
27/01/2015,Hotels and Accommodation           ,INTER CONTINE            LONDON    ,17.45
27/01/2015,Travel - Air/Rail/Road             ,LUL TICKET OFFICE.       EAST ACTON,20.00
27/01/2015,Travel - Air/Rail/Road             ,APCOA PARKING            SOUTHAMPTO,56.00
27/01/2015,Automotive Fuel                    ,SHELL RICHMOND           RICHMOND  ,30.39
27/01/2015,Catering and Catering Supplies     ,FOOD STANDARDS AGE       LONDON  WC,5.65
27/01/2015,Hotels and Accommodation           ,RICHMOND GATE HOTEL      RICHMOND T,17.50
27/01/2015,Travel - Air/Rail/Road             ,SELFSERVE TICKET         SWTRAINS R,20.00
27/01/2015,Travel - Air/Rail/Road             ,APCOA NWR LIVERPOOL LI   LIVERPOOL ,27.50
27/01/2015,Automotive Fuel                    ,WOODSIDE GARAGE          SOUTH MOLT,30.05
27/01/2015,Hotels and Accommodation           ,THE BEAR HOTEL-RECEPTI   DEVIZES   ,19.90
27/01/2015,Automotive Fuel                    ,MALTHURST LIMITED        SALTASH   ,21.53
27/01/2015,Hotels and Accommodation           ,BARNSTAPLE HOTEL         BARNSTAPLE,37.00
27/01/2015,Travel - Air/Rail/Road             ,LUL TICKET MACHINE       HOLBORN   ,30.00
27/01/2015,Automotive Fuel                    ,ESSO SUMMERSDALE SSTN    CHICHESTER,19.00
27/01/2015,Travel - Air/Rail/Road             ,APCOA - NWR MANCHESTER   MANCHESTER,8.50
27/01/2015,Automotive Fuel                    ,WOODSIDE GARAGE          USK MONMOU,35.87
27/01/2015,Restaurants and Bars               ,THE BLACK SHEEP CAFFEE   MOLESEY   ,8.00
27/01/2015,Restaurants and Bars               ,NANDOS HOUNSLOW          HOUNSLOW  ,8.20
27/01/2015,Restaurants and Bars               ,NANDOS HOUNSLOW          HOUNSLOW  ,7.72
27/01/2015,Travel - Air/Rail/Road             ,EBBSFLEET INT STAT       DARTFORD  ,9.20
27/01/2015,Travel - Air/Rail/Road             ,NCP LIMITED              NOTTM MOUN,8.20
27/01/2015,Restaurants and Bars               ,SAN CARLO                LEICESTER ,21.60
27/01/2015,Restaurants and Bars               ,MARCOS OLIVE BRANCH      BRISTOL   ,30.00
27/01/2015,Hotels and Accommodation           ,MILLENNIUM               MERRY HILL,10.90
27/01/2015,Hotels and Accommodation           ,MILLENNIUM               MERRY HILL,23.30
27/01/2015,Travel - Air/Rail/Road             ,WEST COAST TRAINS        MANCHSTR 8,11.20
27/01/2015,Restaurants and Bars               ,BREWERS FAYRE 40536580   STOKE ON T,11.98
27/01/2015,Hotels and Accommodation           ,FEATHERS (LEYLAND) LTD   LEYLAND   ,23.00
27/01/2015,Automotive Fuel                    ,TESCO PFS 3431           WORCESTER ,18.28
27/01/2015,Automotive Fuel                    ,ESSO ALDERSBROOK SSTN    WANSTEAD  ,20.20
27/01/2015,Hotels and Accommodation           ,HOLIDAY INNS             LONDON BLO,12.95
27/01/2015,Hotels and Accommodation           ,HILTON                   MAIDSTONE ,9.00
27/01/2015,Travel - Air/Rail/Road             ,NORTHERN RAIL LTD-       MANCHESTE9,4.20
27/01/2015,Travel - Air/Rail/Road             ,WEST COAST TRAINS        SOLIHULL 1,16.00
27/01/2015,Hotels and Accommodation           ,NORTH LAKES HOTEL        PENRITH   ,16.80
27/01/2015,Travel - Air/Rail/Road             ,NCP LTD                  MANCHESTER,14.40
27/01/2015,Automotive Fuel                    ,BP ROWLEY MILE CONNECT   NEWMARKET ,11.85
27/01/2015,Hotels and Accommodation           ,MILLENNIUM               MERRY HILL,26.10
27/01/2015,Hotels and Accommodation           ,BEST WESTERN STOKE       BOREHAMWOO,28.75
27/01/2015,Travel - Air/Rail/Road             ,OYSTER AUTOTOPUP         0343 22212,20.00
27/01/2015,Hotels and Accommodation           ,CRANAGE HALL F AND B     CRANAGE   ,17.50
27/01/2015,Hotels and Accommodation           ,CRANAGE HALL F AND B     CRANAGE   ,-3.50
27/01/2015,Hotels and Accommodation           ,RAMADA ENCORE HAYDOCK    HAYDOCK ST,12.20
27/01/2015,Automotive Fuel                    ,SHELL NEWBROOK           BOLTON    ,13.50
27/01/2015,Hotels and Accommodation           ,KETTERING PARK HTL       KETTERING ,32.70
27/01/2015,Restaurants and Bars               ,THISTLE CITY BARBICAN    LONDON    ,30.55
27/01/2015,Hotels and Accommodation           ,THE BEAR HOTEL-RECEPTI   DEVIZES   ,25.60
27/01/2015,Restaurants and Bars               ,SAN CARLO                LEICESTER ,21.58
27/01/2015,Hotels and Accommodation           ,OXFORD WITNEY FOUR PILLAR WITNEY   ,17.21
27/01/2015,Hotels and Accommodation           ,CAMPANILE                RUNCORN   ,13.85
27/01/2015,Hotels and Accommodation           ,"NOVOTEL IPSWICH          IPSWICH, I",28.80
27/01/2015,Restaurants and Bars               ,CHEZ GASTON              OXFORD    ,11.35
27/01/2015,Hotels and Accommodation           ,MARYGREEN MANOR HOTEL    BRENTWOOD ,16.95
27/01/2015,Restaurants and Bars               ,STRADA                   LONDON    ,20.20
27/01/2015,Restaurants and Bars               ,STRADA                   LONDON    ,20.20
27/01/2015,Travel - Air/Rail/Road             ,ECML NEWARK PARKING      NEWARK    ,10.50
27/01/2015,Restaurants and Bars               ,WAGAMAMA                 BRENT CROS,21.25
27/01/2015,Restaurants and Bars               ,THE FISH MARKET          NEWCASTLE ,24.10
27/01/2015,Hotels and Accommodation           ,MERCURE BUSH HOTEL FARNHA FARNHAM. ,20.95
27/01/2015,Automotive Fuel                    ,ESSO RAMSHILL SSTN       PETERSFIEL,21.00
27/01/2015,Automotive Fuel                    ,ESSO CHIRTON MAIN SERVICE NORTH SHI,4.48
27/01/2015,Restaurants and Bars               ,DE LUCA CUCINA           CAMBRIDGE ,31.50
27/01/2015,Automotive Fuel                    ,Shell Elm Tree           RADSTOCK  ,29.46
27/01/2015,Hotels and Accommodation           ,MARRIOTT                 LONDON    ,61.35
27/01/2015,Restaurants and Bars               ,WAGAMAMA                 BRENT CROS,16.30
27/01/2015,Restaurants and Bars               ,SAN CARLO                LEICESTER ,21.64
27/01/2015,Travel - Air/Rail/Road             ,NCP LIMITED              NOTTM MOUN,8.20
27/01/2015,Restaurants and Bars               ,THE NEWBURY              NEWBURY   ,25.75
27/01/2015,Travel - Air/Rail/Road             ,TFL.GOV.UK/CP            TFL TRAVEL,3.00
27/01/2015,Travel - Air/Rail/Road             ,NCP LTD                  MANCHESTER,18.00
27/01/2015,Hotels and Accommodation           ,CROWNE PLAZA BIRMINGHA   BIRMINGHAM,14.70
27/01/2015,Hotels and Accommodation           ,CROWNE PLAZA BIRMINGHA   BIRMINGHAM,22.14
27/01/2015,General Retail and Wholesale       ,SAINSBURYS S/MKTS        MILTON KEY,8.00
27/01/2015,Restaurants and Bars               ,LOCH FYNE RESTAURANT     MILTON KEY,40.00
27/01/2015,Hotels and Accommodation           ,RAMADA HOTEL & SUITES COV COVENTRY ,16.50
27/01/2015,Restaurants and Bars               ,BLUE ORCHID COVENTRY     BIRMINGHAM,34.86
27/01/2015,Automotive Fuel                    ,SHELL TOPCLIFFE          GUILDFORD ,30.88
27/01/2015,Restaurants and Bars               ,PRET A MANGER            PRET A MAN,5.38
27/01/2015,Restaurants and Bars               ,SAN CARLO                LEICESTER ,27.00
27/01/2015,Catering and Catering Supplies     ,LINCOLN'S INN BAR AND    LONDON WC2,6.15
27/01/2015,General Retail and Wholesale       ,SACAT MARKS & SPENCER    COVENT GAR,23.34
27/01/2015,Travel - Air/Rail/Road             ,LUL TICKET MACHINE       HOLBORN   ,9.60
27/01/2015,Travel - Air/Rail/Road             ,WEST COAST TRAINS        RUGBY 1087,5.00
27/01/2015,Restaurants and Bars               ,DE LUCA CUCINA           CAMBRIDGE ,26.50
27/01/2015,Automotive Fuel                    ,FERRIBY SERVICE STATION  HULL      ,3.09
27/01/2015,Restaurants and Bars               ,GRANGE                   020 8567 7,37.50
27/01/2015,Leisure Activities                 ,BRISTOL CITY COUNCIL -   BRISTOL   ,5.00
27/01/2015,Hotels and Accommodation           ,BLACKWELL GRANGE HOTEL   DARLINGTON,10.00
27/01/2015,General Retail and Wholesale       ,TESCO STORES 6981        BROMLEY   ,4.00
28/01/2015,Hotels and Accommodation           ,BEST WESTERN MONKBAR H   YORK      ,10.90
28/01/2015,Hotels and Accommodation           ,HOLIDAY INN BIRMINGHAM   BIRMINGHAM,26.30
28/01/2015,Restaurants and Bars               ,MANDARIN GARDEN          TRURO     ,22.60
28/01/2015,Travel - Air/Rail/Road             ,APCOA - NWR MANCHESTER   MANCHESTER,8.50
28/01/2015,Travel - Air/Rail/Road             ,LUL TICKET MACHINE       HOLBORN   ,20.00
28/01/2015,Restaurants and Bars               ,RED PEPPERS              BIRMINGHAM,14.20
28/01/2015,Restaurants and Bars               ,HARE & TORTOISE BRUNSW   LONDON  SW,17.00
28/01/2015,Travel - Air/Rail/Road             ,APCOA PARKING (UK) LTD   UXBRIDGE  ,20.40
28/01/2015,Hotels and Accommodation           ,THE WESLEY               LONDON NW1,52.50
28/01/2015,Medical Supplies and Services      ,BOOTS 1521               LONDON    ,3.79
28/01/2015,Travel - Air/Rail/Road             ,LUL TICKET MACHINE       HOLBORN   ,4.80
28/01/2015,Automotive Fuel                    ,HALES SERVICE STATION    NORFOLK   ,18.62
28/01/2015,Restaurants and Bars               ,PREZZO                   NEWBURY   ,26.00
28/01/2015,Travel - Air/Rail/Road             ,APCOA CONNECT - FGW      UXBRIDGE  ,11.50
28/01/2015,Travel - Air/Rail/Road             ,ROBIN CAR PARKS          SOUTHWELL ,8.50
28/01/2015,Automotive Fuel                    ,TEXACO CROSSGATES        LLANDRINDO,40.35
28/01/2015,Travel - Air/Rail/Road             ,E COAST MAIN LN CO LTD   PETERBOROU,13.00
28/01/2015,Hotels and Accommodation           ,HOLIDAY INN BIRMINGHAM   BIRMINGHAM,26.30
28/01/2015,Travel - Air/Rail/Road             ,FRENCHGATE SHOPPING PKNG DONCASTER ,11.00
28/01/2015,Automotive Fuel                    ,TESCO PAY AT PUMP 4035   GLOSSOP   ,11.75
28/01/2015,Hotels and Accommodation           ,"NOVOTEL IPSWICH          IPSWICH, I",32.50
28/01/2015,Restaurants and Bars               ,MOZA INDIAN              CAMBRIDGE ,17.35
28/01/2015,Automotive Fuel                    ,TEXMANORTERMONESST       887090M903,7.92
28/01/2015,Books and Periodicals              ,WH SMITH                 CHARING CR,4.00
28/01/2015,Hotels and Accommodation           ,BREWERS FAYRE 40521570   WOODPECKER,8.75
28/01/2015,Automotive Fuel                    ,SAINSBURYS PETROL        WEEDON ROA,40.73
28/01/2015,Hotels and Accommodation           ,RADISSON BLU HOTEL       STANSTED  ,36.15
28/01/2015,Hotels and Accommodation           ,RADISSON BLU HOTEL       STANSTED  ,-2.40
28/01/2015,Automotive Fuel                    ,SHELL MACKNADE           FAVERSHAM ,16.63
28/01/2015,Hotels and Accommodation           ,LINTON LODGE             OXFORD    ,18.75
28/01/2015,Automotive Fuel                    ,WOODSIDE GARAGE          SOUTH MOLT,42.27
28/01/2015,Hotels and Accommodation           ,RAMADA HOTEL             LEICESTER ,11.85
28/01/2015,Travel - Air/Rail/Road             ,NCP LIMITED              LEICS RUTL,8.00
28/01/2015,Hotels and Accommodation           ,THE CROWN WETHERAL       CARLISLE  ,56.00
28/01/2015,Automotive Fuel                    ,BP BEDFORD EXPRESS       BEDFORD   ,25.24
28/01/2015,Travel - Air/Rail/Road             ,METEOR CONNECT           HOUNSLOW  ,4.80
28/01/2015,Travel - Air/Rail/Road             ,NCP LIMITED              NOTTM MOUN,4.10
28/01/2015,Professional Services              ,UPT - EMT NOTTINGHAM RAI NOTTINGHAM,7.00
28/01/2015,Restaurants and Bars               ,TABLE TABLE41031755      GLASSHOUSE,12.99
28/01/2015,Restaurants and Bars               ,SHAHI MASALA RESTAURAN   M'STER M50,23.00
28/01/2015,Hotels and Accommodation           ,MERCURE BUSH HOTEL FARNHA FARNHAM. ,16.80
28/01/2015,Medical Supplies and Services      ,BOOTS 1521               LONDON    ,3.80
28/01/2015,Hotels and Accommodation           ,MERCURE GLOUCESTER       HOTEL 0145,27.20
28/01/2015,Hotels and Accommodation           ,CROWNE PLAZA             NOTTINGHAM,21.60
28/01/2015,Automotive Fuel                    ,HAMPTON COURT SERVICE STA SURREY   ,5.64
28/01/2015,General Retail and Wholesale       ,MARKS & SPENCER SIMPLY   TWICKENHAM,5.05
28/01/2015,Restaurants and Bars               ,WAGAMAMA                 RICHMOND  ,18.60
28/01/2015,Hotels and Accommodation           ,NORTH LAKES HOTEL        PENRITH   ,22.60
28/01/2015,Hotels and Accommodation           ,GOLF HOTEL               WIGTON    ,15.95
28/01/2015,Travel - Air/Rail/Road             ,NEWTON-LE-WILLOWS STN    NEWTON LE ,8.40
28/01/2015,Hotels and Accommodation           ,HOTEL VICTORIA LTD       LOWESTOFT ,-85.00
28/01/2015,Hotels and Accommodation           ,HOTEL VICTORIA LTD       LOWESTOFT ,109.20
28/01/2015,Restaurants and Bars               ,TABLE TABLE41031755      GLASSHOUSE,13.98
28/01/2015,Miscellaneous Industrial/Commercial,BRISTOL CITY COUNCIL     BRISTOL   ,3.70
28/01/2015,Hotels and Accommodation           ,RICHMOND GATE HOTEL      RICHMOND T,17.50
28/01/2015,Restaurants and Bars               ,POD                      LONDON    ,8.99
28/01/2015,Travel - Air/Rail/Road             ,NCP LIMITED              RICHMOND M,18.66
28/01/2015,Automotive Fuel                    ,ARMSTRONG MASSEY L       DRIFFIELD ,15.41
28/01/2015,Hotels and Accommodation           ,MOUNT PLEASANT HOTEL     DONCASTER ,30.65
28/01/2015,Automotive Fuel                    ,SEWELL RETAIL COTTINGHAM COTTINGHAM,13.80
28/01/2015,Automotive Fuel                    ,MURCO EAGLE THREE        NORTH YORK,15.57
28/01/2015,Restaurants and Bars               ,DP CAPPUCCINO ESPRESSO   LONDON  SE,5.70
28/01/2015,Travel - Air/Rail/Road             ,LONDON MIDLAND           METEOR PAR,10.00
28/01/2015,General Retail and Wholesale       ,WAITROSE                 HAMPTON 61,8.74
28/01/2015,General Retail and Wholesale       ,WM MORRISONS STORE       TWICKENHAM,4.15
28/01/2015,General Retail and Wholesale       ,HAMPTON COURT            EAST MOLES,5.47
28/01/2015,General Retail and Wholesale       ,MARKS & SPENCER SIMPLY   TWICKENHAM,2.09
28/01/2015,Restaurants and Bars               ,THE BLACK SHEEP CAFFEE   MOLESEY   ,8.30
28/01/2015,Restaurants and Bars               ,WAGAMAMA                 RICHMOND  ,19.85
28/01/2015,Automotive Fuel                    ,ESSO WALMER              DEAL      ,26.31
28/01/2015,Restaurants and Bars               ,GREAT NEPALESE           LONDON NW1,18.70
28/01/2015,Restaurants and Bars               ,STEAKOUT                 LEICESTER ,18.26
28/01/2015,Restaurants and Bars               ,SHAHI MASALA RESTAURAN   M'STER M50,23.00
28/01/2015,Restaurants and Bars               ,STEAKOUT                 LEICESTER ,18.27
28/01/2015,Hotels and Accommodation           ,HILTON                   LUTON     ,23.55
28/01/2015,Automotive Fuel                    ,MURCO ELTON              GLOUCESTER,38.34
28/01/2015,Restaurants and Bars               ,UNDAAL                   BRIERLEY H,17.95
28/01/2015,Restaurants and Bars               ,UNDAAL                   BRIERLEY H,17.95
28/01/2015,Restaurants and Bars               ,UNDAAL                   BRIERLEY H,17.95
28/01/2015,Travel - Air/Rail/Road             ,APCOA - NWR MANCHESTER   MANCHESTER,17.00
28/01/2015,Restaurants and Bars               ,SHAHI MASALA RESTAURAN   M'STER M50,23.00
28/01/2015,Restaurants and Bars               ,RAJ RESTAURANT           BRISTOL   ,27.20
28/01/2015,Hotels and Accommodation           ,HOLIDAY INN HAYDOC       0208 33448,44.45
28/01/2015,Automotive Fuel                    ,TESCO PFS 5165           KIDDERMINS,4.77
28/01/2015,Travel - Air/Rail/Road             ,SELFSERVE TICKET         NORBITON  ,10.00
28/01/2015,Hotels and Accommodation           ,HILTON                   MAIDSTONE ,17.50
28/01/2015,Hotels and Accommodation           ,MENZIES HOTELS           STRATHALLA,23.90
28/01/2015,Professional Services              ,WWW.MONEYSUPERMARKET.COM DEESIDE   ,5.49
28/01/2015,Automotive Fuel                    ,OSSETT SERVICE STA       WAKEFIELD ,42.87
28/01/2015,Restaurants and Bars               ,UNDAAL                   BRIERLEY H,17.95
28/01/2015,Restaurants and Bars               ,SUBWAY                   BIRMINGHAM,4.89
28/01/2015,Restaurants and Bars               ,STEAKOUT                 LEICESTER ,18.27
28/01/2015,Restaurants and Bars               ,SEASONS LOUNGE           CHORLEY   ,18.30
28/01/2015,Hotels and Accommodation           ,HOLIDAY INN ELLESMERE    ELLESMERE ,30.65
28/01/2015,Automotive Fuel                    ,PJ NICHOLLS LTD          TEWKESBURY,6.64
28/01/2015,Automotive Fuel                    ,BP HOLLYBUSH S/SERVE     QUINTON BI,34.68
28/01/2015,Automotive Fuel                    ,BRAMPTON SERVICE S       CHESTERFIE,37.30
28/01/2015,Hotels and Accommodation           ,QUORN COUNTRY HOTEL      QUORN     ,32.95
28/01/2015,Restaurants and Bars               ,BILLS NOTTINGHAM         QUEEN STRE,30.05
28/01/2015,Restaurants and Bars               ,STEAKOUT                 LEICESTER ,18.26
28/01/2015,Hotels and Accommodation           ,MARRIOTT                 MAIDSTONE ,24.30
28/01/2015,Hotels and Accommodation           ,NOVOTEL STEVENAGE        STEVENAGE ,21.00
28/01/2015,Hotels and Accommodation           ,MERCURE SHREWSBURY ALBRIG SHREWSBUR,23.70
28/01/2015,Hotels and Accommodation           ,DOUBLETREE               MANCHESTER,62.37
28/01/2015,Automotive Fuel                    ,GRANDSTAND S S           MORPETH NE,31.44
28/01/2015,Restaurants and Bars               ,BISTRO ON THE QUAY       IPSWICH   ,14.95
28/01/2015,Hotels and Accommodation           ,THE DERBYSHIRE HOTEL     DERBY     ,36.95
28/01/2015,Restaurants and Bars               ,BILLS NOTTINGHAM         QUEEN STRE,30.05
28/01/2015,Travel - Air/Rail/Road             ,WEST COAST TRAINS        STAFFORD 1,8.00
28/01/2015,Restaurants and Bars               ,LITTLE CHEF BURFORD      BURFORD   ,4.89
28/01/2015,Hotels and Accommodation           ,LINTON LODGE             OXFORD    ,19.70
28/01/2015,Restaurants and Bars               ,CAFE ROUGE               LONDON  E1,24.28
